Workbook

Sheet ST1 - Data sources and used files
A1: Supplementary Table 1: Data sources and used files.
A3: Species | B3: Common name | C3: Publication | D3: Download source | E3: Download date | F3: Genome file | G3: Automated annotation file | H3: OGS (manually curated annotation) file
A4: Anoplophora glabripennis | B4: Asian long-horned beetle | C4: McKenna et al. 2016 | D4: https://i5k.nal.usda.gov/data/Arthropoda/anogla-(Anoplophora_glabripennis)/ | E4: 2017-01-25 | F4: Agla_Btl03082013.genome.fa | G4: AGLA.Models.gff3 | H4: agla_OGS_v1_2.gff3
A5: Athalia rosae | B5: Turnip sawfly | C5: no | D5: https://i5k.nal.usda.gov/data/Arthropoda/athros-(Athalia_rosae)/ [OGS provided upon request] | E5: 2013-03-21 | F5: Aros01112013-genome.fa | G5: AROS.Models-NALmod.gff3 | H5: ATHROS_OGSv1-0.gff3
A6: Cimex lectularius | B6: Bed bug | C6: Benoit et al. 2016 | D6: https://i5k.nal.usda.gov/data/Arthropoda/cimlec-(Cimex_lectularius)/ | E6: 2017-01-25 | F6: Clec_Bbug02212013.genome.fa | G6: CLEC.Models-NALmod.gff3 | H6: clec_OGS_v1_2.gff3
A7: Frankliniella occidentalis | B7: Western flower thrips | C7: no | D7: https://i5k.nal.usda.gov/data/Arthropoda/fraocc-(Frankliniella_occidentalis )/ [OGS provided upon request] | E7: 2017-01-25 | F7: Focc_FINAL.scaffolds.fa | G7: FOCC.Models.gff3 | H7: fraocc_OGSv1.0.gff
A8: Leptinotarsa decemlineata | B8: Colorado potato beetle | C8: Schoville et al. 2017 | D8: https://i5k.nal.usda.gov/data/Arthropoda/lepdec-(Leptinotarsa_decemlineata) / [OGS provided upon request] | E8: 2017-01-25 | F8: Ldec.genome.10062013.fa | G8: LDEC.Models.gff3 | H8: lepdec_OGSv1.0.gff
A9: Oncopeltus fasciatus | B9: Large milkweed bug | C9: Panfilio et al. 2018 | D9: https://i5k.nal.usda.gov/data/Arthropoda/oncfas-(Oncopeltus_fasciatus)/Current%20Genome%20Assembly/ | E9: 2017-01-25 | F9: Ofas.scaffolds.fa | G9: OFAS.Models-NALmod.gff3 | H9: ofas_v1_1_original.gff3
A10: Orussus abietinus | B10: Parasitic wood-wasp | C10: no | D10: https://i5k.nal.usda.gov/data/Arthropoda/oruabi-(Orussus_abietinus)/ [OGS provided upon request] | E10: 2013-03-21 | F10: Oabi11242013.genome.fa | G10: OABI.Models-NALmod.gff3 | H10: ORUABI_OGSv1-0.gff3
A19: Table 1 Version 2
H20: Median of 'analyzed' set
D21: Assembly size [Mbp] (% det. Nucs) | E21: Gene models: complete manual / complete automatic | F21: Curated models: count (% of OGS) | G21: Added models: count (% of OGS) | H21: Transcript length [bp]: 'automatic' / 'manual' | I21: Protein length [aa]: 'automatic' / 'manual' | J21: Exon count p.t.: 'automatic' / 'manual' | K21: Exon length p.t [bp]: 'automatic' / 'manual' | L21: Median intron length p.t [bp]: 'automatic' / 'manual'
A22: Holo-metabolous | B22: Coleoptera | C22: Anoplohora glabripennis | D22: 707.7 (85.1) | E22: 22253 / 22035 | F22: 771 (3.5) | G22: 216 (0.97) | H22: 6183 / 5789.5 | I22: 358 / 389 | J22: 4 / 4 | K22: 1210 / 1345.5 | L22: 354.75 / 359 | N22: increase of median after manual curation
C23: Leptinotarsa decemlineata | D23: 1170.2 (58.0) | E23: 24732 / 24671 | F23: 933 (3.8) | G23: 98 (0.4) | H23: 8562.5 / 9280 | I23: 255 / 300 | J23: 4 / 4 | K23: 984 / 1127 | L23: 1192 / 1363 | N23: decrease of median after manual curation
B24: Hymenoptera | C24: Athalia rosae | D24: 163.8 (95.7) | E24: 11956 / 11894 | F24: 825 (6.9) | G24: 50 (0.42) | H24: 4340 / 3208 | I24: 445 / 423 | J24: 6 / 5 | K24: 2220 / 1786 | L24: 107.5 / 100.5
C25: Orussus abietinus | D25: 201.2 (92.7) | E25: 10966 / 10959 | F25: 672 (6.1) | G25: 30 (0.27) | H25: 5200 / 3996 | I25: 430 / 419 | J25: 5 / 5.5 | K25: 2151 / 1828 | L25: 1278.25 / 1434 | N25: largest genomes
A26: Hemi-metabolous | B26: Hemiptera | C26: Cimex lectularius | D26: 650.5 (79.0) | E26: 14085 / 13953 | F26: 784 (5.6) | G26: 221 (1.57) | H26: 4362 / 4360 | I26: 358 / 372.5 | J26: 5 / 5 | K26: 1200 / 1194.5 | L26: 75 / 74 | N26: smallest genomes
C27: Oncopeltus fasciatus | D27: 1098.7 (70.4) | E27: 19587 / 19615 | F27: 945 (4.8) | G27: 161 (0.82) | H27: 9324 / 11244 | I27: 257 / 320 | J27: 4 / 4 | K27: 1086 / 1347 | L27: 126.75 / 123
B28: Thysanoptera | C28: Frankliniella occidentalis | D28: 415.8 (63.4) | E28: 18021 / 17553 | F28: 1127 (6.3) | G28: 381 (2.11) | H28: 5001.5 / 4064 | I28: 419.5 / 419 | J28: 6 / 6 | K28: 1807.5 / 1755 | L28: 108 / 100.75 | N28: significant W-test

Sheet ST2 - Auto vs. Manual
A1: Supplementary Table 2a: Automated vs. manually annotated gene models (overlaps)
A3: Species | B3: # manually annotated gene models | C3: # non-coding within manually annotated gene models | D3: % non-coding gene models | E3: Types of non-coding gene models | F3: # de novo gene models (= MAN-ADD) | G3: % de novo gene models of all manually curated models | H3: # considered manually curated protein-coding gene models (= MAN-SUB) | I3: # overlapping automated gene models (= AUTO-SUB)
A4: Anoplophora glabripennis | B4: =H4+F4+C4 -> 1052 | C4: 66 | D4: ='ST2 - Auto vs. Manual'!C4/'ST2 - Auto vs. Manual'!B4*100 -> 6.273764259 | E4: pseudogenes | F4: 216 | G4: ='ST2 - Auto vs. Manual'!F4/'ST2 - Auto vs. Manual'!B4*100 -> 20.53231939 | H4: 770 | I4: 749
A5: Leptinotarsa decemlineata | B5: =H5+F5+C5 -> 1050 | C5: 19 | D5: ='ST2 - Auto vs. Manual'!C5/'ST2 - Auto vs. Manual'!B5*100 -> 1.80952381 | E5: Pseudogenes, rRNA, snRNA, miRNA | F5: 98 | G5: ='ST2 - Auto vs. Manual'!F5/'ST2 - Auto vs. Manual'!B5*100 -> 9.333333333 | H5: 933 | I5: 972
A6: Athalia rosae | B6: =H6+F6+C6 -> 1214 | C6: 339 | D6: ='ST2 - Auto vs. Manual'!C6/'ST2 - Auto vs. Manual'!B6*100 -> 27.92421746 | E6: tRNA, miRNA, snRNA | F6: 50 | G6: ='ST2 - Auto vs. Manual'!F6/'ST2 - Auto vs. Manual'!B6*100 -> 4.118616145 | H6: 825 | I6: 805
A7: Orussus abietinus | B7: =H7+F7+C7 -> 1021 | C7: 321 | D7: ='ST2 - Auto vs. Manual'!C7/'ST2 - Auto vs. Manual'!B7*100 -> 31.43976494 | E7: tRNA, miRNA, snRNA, snoRNA, rRNA, ncRNA | F7: 30 | G7: ='ST2 - Auto vs. Manual'!F7/'ST2 - Auto vs. Manual'!B7*100 -> 2.938295788 | H7: 670 | I7: 659
A8: Cimex lectularius | B8: =H8+F8+C8 -> 1001 | C8: 2 | D8: ='ST2 - Auto vs. Manual'!C8/'ST2 - Auto vs. Manual'!B8*100 -> 0.1998001998 | E8: pseudogenes | F8: 221 | G8: ='ST2 - Auto vs. Manual'!F8/'ST2 - Auto vs. Manual'!B8*100 -> 22.07792208 | H8: 778 | I8: 795
A9: Oncopeltus fasciatus | B9: =H9+F9+C9 -> 1118 | C9: 12 | D9: ='ST2 - Auto vs. Manual'!C9/'ST2 - Auto vs. Manual'!B9*100 -> 1.073345259 | E9: Pseudogenes, rRNA, snRNA, miRNA | F9: 161 | G9: ='ST2 - Auto vs. Manual'!F9/'ST2 - Auto vs. Manual'!B9*100 -> 14.40071556 | H9: 945 | I9: 1013
A10: Frankliniella occidentalis | B10: =H10+F10+C10 -> 1521 | C10: 13 | D10: ='ST2 - Auto vs. Manual'!C10/'ST2 - Auto vs. Manual'!B10*100 -> 0.8547008547 | E10: pseudogenes | F10: 381 | G10: ='ST2 - Auto vs. Manual'!F10/'ST2 - Auto vs. Manual'!B10*100 -> 25.04930966 | H10: 1127 | I10: 1118
A15: Supplementary Table 2b: Set sizes
A17: Species | B17: AUTO | C17: OGS | D17: AUTO-SUB | E17: MAN-SUB | F17: MAN-ADD | G17: MAN-ADD/OGS [%] | H17: MAN-ADD/(MAN-ADD+MAN-SUB) [%]
A18: Anoplophora glabripennis | B18: 22035 | C18: 22253 | D18: 749 | E18: 770 | F18: 216 | G18: =F18/C18*100 -> 0.9706556419 | H18: =(F18/(F18+E18))*100 -> 21.90669371
A19: Leptinotarsa decemlineata | B19: 24671 | C19: 24732 | D19: 972 | E19: 933 | F19: 98 | G19: =F19/C19*100 -> 0.3962477762 | H19: =(F19/(F19+E19))*100 -> 9.505334627
A20: Athalia rosae | B20: 11894 | C20: 11956 | D20: 805 | E20: 825 | F20: 50 | G20: =F20/C20*100 -> 0.4182000669 | H20: =(F20/(F20+E20))*100 -> 5.714285714
A21: Orussus abietinus | B21: 10959 | C21: 10986 | D21: 659 | E21: 670 | F21: 30 | G21: =F21/C21*100 -> 0.2730748225 | H21: =(F21/(F21+E21))*100 -> 4.285714286
A22: Cimex lectularius | B22: 13953 | C22: 14085 | D22: 795 | E22: 778 | F22: 221 | G22: =F22/C22*100 -> 1.569045083 | H22: =(F22/(F22+E22))*100 -> 22.12212212
A23: Oncopeltus fasciatus | B23: 19615 | C23: 19587 | D23: 1013 | E23: 945 | F23: 161 | G23: =F23/C23*100 -> 0.8219737581 | H23: =(F23/(F23+E23))*100 -> 14.55696203
A24: Frankliniella occidentalis | B24: 17553 | C24: 18021 | D24: 1118 | E24: 1127 | F24: 381 | G24: =F24/C24*100 -> 2.1142001 | H24: =(F24/(F24+E24))*100 -> 25.26525199

Sheet ST3 - Tests
A1: Supplementary Table 3: Test results of two-sample Kolmogorov-Smirnov (KS) test and two-sample Wilcoxon (W) test.
A2: Species | B2: Property | C2: Set (A) | D2: Set (B) | E2: A.n | F2: B.n | G2: A.min.val | H2: B.min.val | I2: A.median.val | J2: B.median.val | K2: A.max.val | L2: B.max.val | M2: ks.pval | N2: ks.padj | O2: ks.psignif | P2: Wilcox.pval | Q2: Wilcox.padj | R2: Wilcox.psignif
A3: Anoplophora glabripennis | B3: Exon count per transcript | C3: AUTO | D3: AUTO_SUB | E3: 22035 | F3: 749 | G3: 1 | H3: 1 | I3: 4 | J3: 4 | K3: 94 | L3: 38 | M3: 0.0001980978723 | N3: 0.06933425532 | O3: ns | P3: 7.508187092e-06 | Q3: 0.002627865482 | R3: **
A4: Anoplophora glabripennis | B4: Exon count per transcript | C4: AUTO | D4: MAN_ADD | E4: 22035 | F4: 216 | G4: 1 | H4: 1 | I4: 4 | J4: 2 | K4: 94 | L4: 8 | M4: 2.375421859e-09 | N4: 8.313976507e-07 | O4: **** | P4: 9.593139497e-06 | Q4: 0.003357598824 | R4: **
A5: Anoplophora glabripennis | B5: Exon count per transcript | C5: AUTO | D5: MAN_SUB | E5: 22035 | F5: 770 | G5: 1 | H5: 1 | I5: 4 | J5: 4 | K5: 94 | L5: 23 | M5: 4.529309765e-07 | N5: 0.0001585258418 | O5: *** | P5: 2.326116752e-06 | Q5: 0.0008141408631 | R5: ***
A6: Anoplophora glabripennis | B6: Exon count per transcript | C6: AUTO | D6: OGS | E6: 22035 | F6: 22253 | G6: 1 | H6: 1 | I6: 4 | J6: 4 | K6: 94 | L6: 94 | M6: 1 | N6: 1 | O6: ns | P6: 0.9869233 | Q6: 1 | R6: ns
A7: Anoplophora glabripennis | B7: Exon count per transcript | C7: AUTO_SUB | D7: MAN_ADD | E7: 749 | F7: 216 | G7: 1 | H7: 1 | I7: 4 | J7: 2 | K7: 38 | L7: 8 | M7: 1.092513857e-10 | N7: 3.8237985e-08 | O7: **** | P7: 1.866425901e-09 | Q7: 6.532490652e-07 | R7: ****
A8: Anoplophora glabripennis | B8: Exon count per transcript | C8: AUTO_SUB | D8: MAN_SUB | E8: 749 | F8: 770 | G8: 1 | H8: 1 | I8: 4 | J8: 4 | K8: 38 | L8: 23 | M8: 0.8016157237 | N8: 1 | O8: ns | P8: 0.9401880795 | Q8: 1 | R8: ns
A9: Anoplophora glabripennis | B9: Exon count per transcript | C9: MAN_SUB | D9: MAN_ADD | E9: 770 | F9: 216 | G9: 1 | H9: 1 | I9: 4 | J9: 2 | K9: 23 | L9: 8 | M9: 1.083405587e-10 | N9: 3.791919556e-08 | O9: **** | P9: 4.374017994e-10 | Q9: 1.530906298e-07 | R9: ****
A10: Anoplophora glabripennis | B10: Exon count per transcript | C10: OGS | D10: AUTO_SUB | E10: 22253 | F10: 749 | G10: 1 | H10: 1 | I10: 4 | J10: 4 | K10: 94 | L10: 38 | M10: 0.0002952851721 | N10: 0.1033498102 | O10: ns | P10: 7.310694207e-06 | Q10: 0.002558742972 | R10: **
A11: Anoplophora glabripennis | B11: Exon count per transcript | C11: OGS | D11: MAN_ADD | E11: 22253 | F11: 216 | G11: 1 | H11: 1 | I11: 4 | J11: 2 | K11: 94 | L11: 8 | M11: 3.147318184e-09 | N11: 1.101561364e-06 | O11: **** | P11: 9.496307786e-06 | Q11: 0.003323707725 | R11: **
A12: Anoplophora glabripennis | B12: Exon count per transcript | C12: OGS | D12: MAN_SUB | E12: 22253 | F12: 770 | G12: 1 | H12: 1 | I12: 4 | J12: 4 | K12: 94 | L12: 23 | M12: 7.627735568e-07 | N12: 0.0002669707449 | O12: *** | P12: 2.261099413e-06 | Q12: 0.0007913847946 | R12: ***
A13: Anoplophora glabripennis | B13: Median exon length per transcript [bp] | C13: AUTO | D13: AUTO_SUB | E13: 22035 | F13: 749 | G13: 6 | H13: 27 | I13: 206 | J13: 220 | K13: 9156 | L13: 2234.5 | M13: 0.006220150444 | N13: 1 | O13: ns | P13: 0.002805012019 | Q13: 0.9817542067 | R13: ns
A14: Anoplophora glabripennis | B14: Median exon length per transcript [bp] | C14: AUTO | D14: MAN_ADD | E14: 22035 | F14: 216 | G14: 6 | H14: 79.5 | I14: 206 | J14: 397 | K14: 9156 | L14: 1995 | M14: 0 | N14: 0 | O14: **** | P14: 0.0001556245568 | Q14: 0.05446859489 | R14: ns
A15: Anoplophora glabripennis | B15: Median exon length per transcript [bp] | C15: AUTO | D15: MAN_SUB | E15: 22035 | F15: 770 | G15: 6 | H15: 48 | I15: 206 | J15: 225 | K15: 9156 | L15: 2258 | M15: 2.658899603e-05 | N15: 0.009306148611 | O15: ** | P15: 6.396017709e-07 | Q15: 0.0002238606198 | R15: ***
A16: Anoplophora glabripennis | B16: Median exon length per transcript [bp] | C16: AUTO | D16: OGS | E16: 22035 | F16: 22253 | G16: 6 | H16: 6 | I16: 206 | J16: 206 | K16: 9156 | L16: 9156 | M16: 0.8666983185 | N16: 1 | O16: ns | P16: 0.5972830936 | Q16: 1 | R16: ns
A17: Anoplophora glabripennis | B17: Median exon length per transcript [bp] | C17: AUTO_SUB | D17: MAN_ADD | E17: 749 | F17: 216 | G17: 27 | H17: 79.5 | I17: 220 | J17: 397 | K17: 2234.5 | L17: 1995 | M17: 0 | N17: 0 | O17: **** | P17: 0.01052579971 | Q17: 1 | R17: ns
A18: Anoplophora glabripennis | B18: Median exon length per transcript [bp] | C18: AUTO_SUB | D18: MAN_SUB | E18: 749 | F18: 770 | G18: 27 | H18: 48 | I18: 220 | J18: 225 | K18: 2234.5 | L18: 2258 | M18: 0.2212375078 | N18: 1 | O18: ns | P18: 0.1394076737 | Q18: 1 | R18: ns
A19: Anoplophora glabripennis | B19: Median exon length per transcript [bp] | C19: MAN_SUB | D19: MAN_ADD | E19: 770 | F19: 216 | G19: 48 | H19: 79.5 | I19: 225 | J19: 397 | K19: 2258 | L19: 1995 | M19: 4.884981308e-15 | N19: 1.709743458e-12 | O19: **** | P19: 0.05889511018 | Q19: 1 | R19: ns
A20: Anoplophora glabripennis | B20: Median exon length per transcript [bp] | C20: OGS | D20: AUTO_SUB | E20: 22253 | F20: 749 | G20: 6 | H20: 27 | I20: 206 | J20: 220 | K20: 9156 | L20: 2234.5 | M20: 0.007427517586 | N20: 1 | O20: ns | P20: 0.004561136844 | Q20: 1 | R20: ns
A21: Anoplophora glabripennis | B21: Median exon length per transcript [bp] | C21: OGS | D21: MAN_ADD | E21: 22253 | F21: 216 | G21: 6 | H21: 79.5 | I21: 206 | J21: 397 | K21: 9156 | L21: 1995 | M21: 0 | N21: 0 | O21: **** | P21: 0.0002043277436 | Q21: 0.07151471026 | R21: ns
A22: Anoplophora glabripennis | B22: Median exon length per transcript [bp] | C22: OGS | D22: MAN_SUB | E22: 22253 | F22: 770 | G22: 6 | H22: 48 | I22: 206 | J22: 225 | K22: 9156 | L22: 2258 | M22: 3.339706152e-05 | N22: 0.01168897153 | O22: * | P22: 1.444771281e-06 | Q22: 0.0005056699485 | R22: ***
A23: Anoplophora glabripennis | B23: Median intron length per transcript [bp] | C23: AUTO | D23: AUTO_SUB | E23: 22035 | F23: 749 | G23: 3 | H23: 24.5 | I23: 193 | J23: 393.25 | K23: 22230 | L23: 17551.5 | M23: 0 | N23: 0 | O23: **** | P23: 1.85807299e-16 | Q23: 6.503255466e-14 | R23: ****
A24: Anoplophora glabripennis | B24: Median intron length per transcript [bp] | C24: AUTO | D24: MAN_ADD | E24: 22035 | F24: 216 | G24: 3 | H24: 3 | I24: 193 | J24: 347.5 | K24: 22230 | L24: 9061 | M24: 0.0003509641264 | N24: 0.1228374442 | O24: ns | P24: 0.03856838386 | Q24: 1 | R24: ns
A25: Anoplophora glabripennis | B25: Median intron length per transcript [bp] | C25: AUTO | D25: MAN_SUB | E25: 22035 | F25: 770 | G25: 3 | H25: 26.5 | I25: 193 | J25: 359 | K25: 22230 | L25: 32558 | M25: 0 | N25: 0 | O25: **** | P25: 3.810759756e-15 | Q25: 1.333765914e-12 | R25: ****
A26: Anoplophora glabripennis | B26: Median intron length per transcript [bp] | C26: AUTO | D26: OGS | E26: 22035 | F26: 22253 | G26: 3 | H26: 3 | I26: 193 | J26: 193 | K26: 22230 | L26: 105543 | M26: 1 | N26: 1 | O26: ns | P26: 0.8319781329 | Q26: 1 | R26: ns
A27: Anoplophora glabripennis | B27: Median intron length per transcript [bp] | C27: AUTO_SUB | D27: MAN_ADD | E27: 749 | F27: 216 | G27: 24.5 | H27: 3 | I27: 393.25 | J27: 347.5 | K27: 17551.5 | L27: 9061 | M27: 0.1897321638 | N27: 1 | O27: ns | P27: 0.05554872647 | Q27: 1 | R27: ns
A28: Anoplophora glabripennis | B28: Median intron length per transcript [bp] | C28: AUTO_SUB | D28: MAN_SUB | E28: 749 | F28: 770 | G28: 24.5 | H28: 26.5 | I28: 393.25 | J28: 359 | K28: 17551.5 | L28: 32558 | M28: 0.5744785885 | N28: 1 | O28: ns | P28: 0.5535632107 | Q28: 1 | R28: ns
A29: Anoplophora glabripennis | B29: Median intron length per transcript [bp] | C29: MAN_SUB | D29: MAN_ADD | E29: 770 | F29: 216 | G29: 26.5 | H29: 3 | I29: 359 | J29: 347.5 | K29: 32558 | L29: 9061 | M29: 0.06435281736 | N29: 1 | O29: ns | P29: 0.1185587787 | Q29: 1 | R29: ns
A30: Anoplophora glabripennis | B30: Median intron length per transcript [bp] | C30: OGS | D30: AUTO_SUB | E30: 22253 | F30: 749 | G30: 3 | H30: 24.5 | I30: 193 | J30: 393.25 | K30: 105543 | L30: 17551.5 | M30: 0 | N30: 0 | O30: **** | P30: 2.681454437e-16 | Q30: 9.385090531e-14 | R30: ****
A31: Anoplophora glabripennis | B31: Median intron length per transcript [bp] | C31: OGS | D31: MAN_ADD | E31: 22253 | F31: 216 | G31: 3 | H31: 3 | I31: 193 | J31: 347.5 | K31: 105543 | L31: 9061 | M31: 0.000390938574 | N31: 0.1368285009 | O31: ns | P31: 0.04082944806 | Q31: 1 | R31: ns
A32: Anoplophora glabripennis | B32: Median intron length per transcript [bp] | C32: OGS | D32: MAN_SUB | E32: 22253 | F32: 770 | G32: 3 | H32: 26.5 | I32: 193 | J32: 359 | K32: 105543 | L32: 32558 | M32: 0 | N32: 0 | O32: **** | P32: 5.604549846e-15 | Q32: 1.961592446e-12 | R32: ****
A33: Anoplophora glabripennis | B33: Protein length [aa] | C33: AUTO | D33: AUTO_SUB | E33: 22035 | F33: 749 | G33: 6 | H33: 41 | I33: 264 | J33: 356 | K33: 19530 | L33: 2668 | M33: 8.224532166e-13 | N33: 2.878586258e-10 | O33: **** | P33: 1.853865573e-11 | Q33: 6.488529506e-09 | R33: ****
A34: Anoplophora glabripennis | B34: Protein length [aa] | C34: AUTO | D34: MAN_ADD | E34: 22035 | F34: 216 | G34: 6 | H34: 14 | I34: 264 | J34: 384 | K34: 19530 | L34: 664 | M34: 0 | N34: 0 | O34: **** | P34: 1.08924036e-16 | Q34: 3.812341261e-14 | R34: ****
A35: Anoplophora glabripennis | B35: Protein length [aa] | C35: AUTO | D35: MAN_SUB | E35: 22035 | F35: 770 | G35: 6 | H35: 23 | I35: 264 | J35: 389 | K35: 19530 | L35: 2216 | M35: 0 | N35: 0 | O35: **** | P35: 1.938942993e-24 | Q35: 6.786300475e-22 | R35: ****
A36: Anoplophora glabripennis | B36: Protein length [aa] | C36: AUTO | D36: OGS | E36: 22035 | F36: 22253 | G36: 6 | H36: 6 | I36: 264 | J36: 268 | K36: 19530 | L36: 19530 | M36: 0.2542826045 | N36: 1 | O36: ns | P36: 0.226736907 | Q36: 1 | R36: ns
A37: Anoplophora glabripennis | B37: Protein length [aa] | C37: AUTO_SUB | D37: MAN_ADD | E37: 749 | F37: 216 | G37: 41 | H37: 14 | I37: 356 | J37: 384 | K37: 2668 | L37: 664 | M37: 1.110223025e-16 | N37: 3.885780586e-14 | O37: **** | P37: 0.001749793806 | Q37: 0.612427832 | R37: ns
A38: Anoplophora glabripennis | B38: Protein length [aa] | C38: AUTO_SUB | D38: MAN_SUB | E38: 749 | F38: 770 | G38: 41 | H38: 23 | I38: 356 | J38: 389 | K38: 2668 | L38: 2216 | M38: 2.106265802e-05 | N38: 0.007371930306 | O38: ** | P38: 0.01931696987 | Q38: 1 | R38: ns
A39: Anoplophora glabripennis | B39: Protein length [aa] | C39: MAN_SUB | D39: MAN_ADD | E39: 770 | F39: 216 | G39: 23 | H39: 14 | I39: 389 | J39: 384 | K39: 2216 | L39: 664 | M39: 7.028775562e-09 | N39: 2.460071447e-06 | O39: **** | P39: 0.5062329744 | Q39: 1 | R39: ns
A40: Anoplophora glabripennis | B40: Protein length [aa] | C40: OGS | D40: AUTO_SUB | E40: 22253 | F40: 749 | G40: 6 | H40: 41 | I40: 268 | J40: 356 | K40: 19530 | L40: 2668 | M40: 3.333344711e-11 | N40: 1.166670649e-08 | O40: **** | P40: 1.309230007e-10 | Q40: 4.582305025e-08 | R40: ****
A41: Anoplophora glabripennis | B41: Protein length [aa] | C41: OGS | D41: MAN_ADD | E41: 22253 | F41: 216 | G41: 6 | H41: 14 | I41: 268 | J41: 384 | K41: 19530 | L41: 664 | M41: 0 | N41: 0 | O41: **** | P41: 7.171118014e-16 | Q41: 2.509891305e-13 | R41: ****
A42: Anoplophora glabripennis | B42: Protein length [aa] | C42: OGS | D42: MAN_SUB | E42: 22253 | F42: 770 | G42: 6 | H42: 23 | I42: 268 | J42: 389 | K42: 19530 | L42: 2216 | M42: 0 | N42: 0 | O42: **** | P42: 3.488220375e-23 | Q42: 1.220877131e-20 | R42: ****
A43: Anoplophora glabripennis | B43: Transcript length [bp] | C43: AUTO | D43: AUTO_SUB | E43: 22035 | F43: 749 | G43: 162 | H43: 216 | I43: 4156 | J43: 6183 | K43: 129625 | L43: 91763 | M43: 3.925082481e-12 | N43: 1.373778868e-09 | O43: **** | P43: 7.048372711e-12 | Q43: 2.466930449e-09 | R43: ****
A44: Anoplophora glabripennis | B44: Transcript length [bp] | C44: AUTO | D44: MAN_ADD | E44: 22035 | F44: 216 | G44: 162 | H44: 135 | I44: 4156 | J44: 3041 | K44: 129625 | L44: 43526 | M44: 9.504438019e-06 | N44: 0.003326553307 | O44: ** | P44: 0.03965447351 | Q44: 1 | R44: ns
A45: Anoplophora glabripennis | B45: Transcript length [bp] | C45: AUTO | D45: MAN_SUB | E45: 22035 | F45: 770 | G45: 162 | H45: 216 | I45: 4156 | J45: 5789.5 | K45: 129625 | L45: 250876 | M45: 4.152234112e-14 | N45: 1.453281939e-11 | O45: **** | P45: 1.227895497e-11 | Q45: 4.29763424e-09 | R45: ****
A46: Anoplophora glabripennis | B46: Transcript length [bp] | C46: AUTO | D46: OGS | E46: 22035 | F46: 22253 | G46: 162 | H46: 135 | I46: 4156 | J46: 4154 | K46: 129625 | L46: 315448 | M46: 0.9999921846 | N46: 1 | O46: ns | P46: 0.86074001 | Q46: 1 | R46: ns
A47: Anoplophora glabripennis | B47: Transcript length [bp] | C47: AUTO_SUB | D47: MAN_ADD | E47: 749 | F47: 216 | G47: 216 | H47: 135 | I47: 6183 | J47: 3041 | K47: 91763 | L47: 43526 | M47: 5.59120461e-09 | N47: 1.956921614e-06 | O47: **** | P47: 2.630991713e-10 | Q47: 9.208470996e-08 | R47: ****
A48: Anoplophora glabripennis | B48: Transcript length [bp] | C48: AUTO_SUB | D48: MAN_SUB | E48: 749 | F48: 770 | G48: 216 | H48: 216 | I48: 6183 | J48: 5789.5 | K48: 91763 | L48: 250876 | M48: 0.8116422533 | N48: 1 | O48: ns | P48: 0.6830765209 | Q48: 1 | R48: ns
A49: Anoplophora glabripennis | B49: Transcript length [bp] | C49: MAN_SUB | D49: MAN_ADD | E49: 770 | F49: 216 | G49: 216 | H49: 135 | I49: 5789.5 | J49: 3041 | K49: 250876 | L49: 43526 | M49: 3.664375658e-08 | N49: 1.28253148e-05 | O49: **** | P49: 4.958187726e-10 | Q49: 1.735365704e-07 | R49: ****
A50: Anoplophora glabripennis | B50: Transcript length [bp] | C50: OGS | D50: AUTO_SUB | E50: 22253 | F50: 749 | G50: 135 | H50: 216 | I50: 4154 | J50: 6183 | K50: 315448 | L50: 91763 | M50: 4.816702592e-12 | N50: 1.685845907e-09 | O50: **** | P50: 8.005898219e-12 | Q50: 2.802064376e-09 | R50: ****
A51: Anoplophora glabripennis | B51: Transcript length [bp] | C51: OGS | D51: MAN_ADD | E51: 22253 | F51: 216 | G51: 135 | H51: 135 | I51: 4154 | J51: 3041 | K51: 315448 | L51: 43526 | M51: 1.067495689e-05 | N51: 0.003736234911 | O51: ** | P51: 0.03706058575 | Q51: 1 | R51: ns
A52: Anoplophora glabripennis | B52: Transcript length [bp] | C52: OGS | D52: MAN_SUB | E52: 22253 | F52: 770 | G52: 135 | H52: 216 | I52: 4154 | J52: 5789.5 | K52: 315448 | L52: 250876 | M52: 8.815170816e-14 | N52: 3.085309785e-11 | O52: **** | P52: 1.404069646e-11 | Q52: 4.914243761e-09 | R52: ****
A53: Athalia rosae | B53: Exon count per transcript | C53: AUTO | D53: AUTO_SUB | E53: 11894 | F53: 805 | G53: 1 | H53: 1 | I53: 5 | J53: 6 | K53: 191 | L53: 47 | M53: 0.03619730042 | N53: 1 | O53: ns | P53: 0.004604691949 | Q53: 1 | R53: ns
A54: Athalia rosae | B54: Exon count per transcript | C54: AUTO | D54: MAN_ADD | E54: 11894 | F54: 50 | G54: 1 | H54: 1 | I54: 5 | J54: 4 | K54: 191 | L54: 15 | M54: 0.002567253419 | N54: 0.8985386967 | O54: ns | P54: 0.00017893594 | Q54: 0.062627579 | R54: ns
A55: Athalia rosae | B55: Exon count per transcript | C55: AUTO | D55: MAN_SUB | E55: 11894 | F55: 825 | G55: 1 | H55: 1 | I55: 5 | J55: 5 | K55: 191 | L55: 37 | M55: 0.308632785 | N55: 1 | O55: ns | P55: 0.6391424506 | Q55: 1 | R55: ns
A56: Athalia rosae | B56: Exon count per transcript | C56: AUTO | D56: OGS | E56: 11894 | F56: 11956 | G56: 1 | H56: 1 | I56: 5 | J56: 5 | K56: 191 | L56: 191 | M56: 0.9999556369 | N56: 1 | O56: ns | P56: 0.5138893051 | Q56: 1 | R56: ns
A57: Athalia rosae | B57: Exon count per transcript | C57: AUTO_SUB | D57: MAN_ADD | E57: 805 | F57: 50 | G57: 1 | H57: 1 | I57: 6 | J57: 4 | K57: 47 | L57: 15 | M57: 0.001593882528 | N57: 0.5578588849 | O57: ns | P57: 1.99287697e-05 | Q57: 0.006975069394 | R57: **
A58: Athalia rosae | B58: Exon count per transcript | C58: AUTO_SUB | D58: MAN_SUB | E58: 805 | F58: 825 | G58: 1 | H58: 1 | I58: 6 | J58: 5 | K58: 47 | L58: 37 | M58: 0.1830424468 | N58: 1 | O58: ns | P58: 0.01354335139 | Q58: 1 | R58: ns
A59: Athalia rosae | B59: Exon count per transcript | C59: MAN_SUB | D59: MAN_ADD | E59: 825 | F59: 50 | G59: 1 | H59: 1 | I59: 5 | J59: 4 | K59: 37 | L59: 15 | M59: 0.009001931495 | N59: 1 | O59: ns | P59: 0.0003728156956 | Q59: 0.1304854935 | R59: ns
A60: Athalia rosae | B60: Exon count per transcript | C60: OGS | D60: AUTO_SUB | E60: 11956 | F60: 805 | G60: 1 | H60: 1 | I60: 5 | J60: 6 | K60: 191 | L60: 47 | M60: 0.02840838858 | N60: 1 | O60: ns | P60: 0.002150362882 | Q60: 0.7526270088 | R60: ns
A61: Athalia rosae | B61: Exon count per transcript | C61: OGS | D61: MAN_ADD | E61: 11956 | F61: 50 | G61: 1 | H61: 1 | I61: 5 | J61: 4 | K61: 191 | L61: 15 | M61: 0.003124653315 | N61: 1 | O61: ns | P61: 0.0002203928166 | Q61: 0.0771374858 | R61: ns
A62: Athalia rosae | B62: Exon count per transcript | C62: OGS | D62: MAN_SUB | E62: 11956 | F62: 825 | G62: 1 | H62: 1 | I62: 5 | J62: 5 | K62: 191 | L62: 37 | M62: 0.4607592428 | N62: 1 | O62: ns | P62: 0.8170463943 | Q62: 1 | R62: ns
A63: Athalia rosae | B63: Median exon length per transcript [bp] | C63: AUTO | D63: AUTO_SUB | E63: 11894 | F63: 805 | G63: 12.5 | H63: 29 | I63: 211.5 | J63: 218 | K63: 8138.5 | L63: 7903 | M63: 0.05712589759 | N63: 1 | O63: ns | P63: 0.03815561222 | Q63: 1 | R63: ns
A64: Athalia rosae | B64: Median exon length per transcript [bp] | C64: AUTO | D64: MAN_ADD | E64: 11894 | F64: 50 | G64: 12.5 | H64: 45 | I64: 211.5 | J64: 115 | K64: 8138.5 | L64: 3414 | M64: 1.575989206e-08 | N64: 5.51596222e-06 | O64: **** | P64: 8.545450274e-10 | Q64: 2.990907596e-07 | R64: ****
A65: Athalia rosae | B65: Median exon length per transcript [bp] | C65: AUTO | D65: MAN_SUB | E65: 11894 | F65: 825 | G65: 12.5 | H65: 45 | I65: 211.5 | J65: 216.5 | K65: 8138.5 | L65: 7903 | M65: 0.001885555875 | N65: 0.6599445561 | O65: ns | P65: 0.01401080412 | Q65: 1 | R65: ns
A66: Athalia rosae | B66: Median exon length per transcript [bp] | C66: AUTO | D66: OGS | E66: 11894 | F66: 11956 | G66: 12.5 | H66: 12.5 | I66: 211.5 | J66: 211 | K66: 8138.5 | L66: 8138.5 | M66: 1 | N66: 1 | O66: ns | P66: 0.8672650586 | Q66: 1 | R66: ns
A67: Athalia rosae | B67: Median exon length per transcript [bp] | C67: AUTO_SUB | D67: MAN_ADD | E67: 805 | F67: 50 | G67: 29 | H67: 45 | I67: 218 | J67: 115 | K67: 7903 | L67: 3414 | M67: 2.175667757e-09 | N67: 7.61483715e-07 | O67: **** | P67: 1.517773946e-10 | Q67: 5.312208812e-08 | R67: ****
A68: Athalia rosae | B68: Median exon length per transcript [bp] | C68: AUTO_SUB | D68: MAN_SUB | E68: 805 | F68: 825 | G68: 29 | H68: 45 | I68: 218 | J68: 216.5 | K68: 7903 | L68: 7903 | M68: 0.9817490332 | N68: 1 | O68: ns | P68: 0.8142644626 | Q68: 1 | R68: ns
A69: Athalia rosae | B69: Median exon length per transcript [bp] | C69: MAN_SUB | D69: MAN_ADD | E69: 825 | F69: 50 | G69: 45 | H69: 45 | I69: 216.5 | J69: 115 | K69: 7903 | L69: 3414 | M69: 1.07819409e-09 | N69: 3.773679313e-07 | O69: **** | P69: 5.657001073e-11 | Q69: 1.979950376e-08 | R69: ****
A70: Athalia rosae | B70: Median exon length per transcript [bp] | C70: OGS | D70: AUTO_SUB | E70: 11956 | F70: 805 | G70: 12.5 | H70: 29 | I70: 211 | J70: 218 | K70: 8138.5 | L70: 7903 | M70: 0.0560940774 | N70: 1 | O70: ns | P70: 0.03280006307 | Q70: 1 | R70: ns
A71: Athalia rosae | B71: Median exon length per transcript [bp] | C71: OGS | D71: MAN_ADD | E71: 11956 | F71: 50 | G71: 12.5 | H71: 45 | I71: 211 | J71: 115 | K71: 8138.5 | L71: 3414 | M71: 1.679404515e-08 | N71: 5.877915804e-06 | O71: **** | P71: 9.179023924e-10 | Q71: 3.212658374e-07 | R71: ****
A72: Athalia rosae | B72: Median exon length per transcript [bp] | C72: OGS | D72: MAN_SUB | E72: 11956 | F72: 825 | G72: 12.5 | H72: 45 | I72: 211 | J72: 216.5 | K72: 8138.5 | L72: 7903 | M72: 0.001942782774 | N72: 0.6799739709 | O72: ns | P72: 0.01177220289 | Q72: 1 | R72: ns
A73: Athalia rosae | B73: Median intron length per transcript [bp] | C73: AUTO | D73: AUTO_SUB | E73: 11894 | F73: 805 | G73: 3 | H73: 9.5 | I73: 102.5 | J73: 106.5 | K73: 18884 | L73: 5389 | M73: 0.04264391172 | N73: 1 | O73: ns | P73: 0.0305697617 | Q73: 1 | R73: ns
A74: Athalia rosae | B74: Median intron length per transcript [bp] | C74: AUTO | D74: MAN_ADD | E74: 11894 | F74: 50 | G74: 3 | H74: 36.5 | I74: 102.5 | J74: 86 | K74: 18884 | L74: 232 | M74: 0.0007096961546 | N74: 0.2483936541 | O74: ns | P74: 9.45113456e-05 | Q74: 0.03307897096 | R74: *
A75: Athalia rosae | B75: Median intron length per transcript [bp] | C75: AUTO | D75: MAN_SUB | E75: 11894 | F75: 825 | G75: 3 | H75: 9.5 | I75: 102.5 | J75: 100.5 | K75: 18884 | L75: 7093 | M75: 0.3396843587 | N75: 1 | O75: ns | P75: 0.6187043433 | Q75: 1 | R75: ns
A76: Athalia rosae | B76: Median intron length per transcript [bp] | C76: AUTO | D76: OGS | E76: 11894 | F76: 11956 | G76: 3 | H76: 3 | I76: 102.5 | J76: 102 | K76: 18884 | L76: 18884 | M76: 0.9995960416 | N76: 1 | O76: ns | P76: 0.5317462643 | Q76: 1 | R76: ns
A77: Athalia rosae | B77: Median intron length per transcript [bp] | C77: AUTO_SUB | D77: MAN_ADD | E77: 805 | F77: 50 | G77: 9.5 | H77: 36.5 | I77: 106.5 | J77: 86 | K77: 5389 | L77: 232 | M77: 0.000191670371 | N77: 0.06708462985 | O77: ns | P77: 7.542274587e-06 | Q77: 0.002639796106 | R77: **
A78: Athalia rosae | B78: Median intron length per transcript [bp] | C78: AUTO_SUB | D78: MAN_SUB | E78: 805 | F78: 825 | G78: 9.5 | H78: 9.5 | I78: 106.5 | J78: 100.5 | K78: 5389 | L78: 7093 | M78: 0.1507097023 | N78: 1 | O78: ns | P78: 0.04150782443 | Q78: 1 | R78: ns
A79: Athalia rosae | B79: Median intron length per transcript [bp] | C79: MAN_SUB | D79: MAN_ADD | E79: 825 | F79: 50 | G79: 9.5 | H79: 36.5 | I79: 100.5 | J79: 86 | K79: 7093 | L79: 232 | M79: 0.001286837505 | N79: 0.4503931266 | O79: ns | P79: 9.408769896e-05 | Q79: 0.03293069464 | R79: *
A80: Athalia rosae | B80: Median intron length per transcript [bp] | C80: OGS | D80: AUTO_SUB | E80: 11956 | F80: 805 | G80: 3 | H80: 9.5 | I80: 102 | J80: 106.5 | K80: 18884 | L80: 5389 | M80: 0.02661914989 | N80: 1 | O80: ns | P80: 0.01645540206 | Q80: 1 | R80: ns
A81: Athalia rosae | B81: Median intron length per transcript [bp] | C81: OGS | D81: MAN_ADD | E81: 11956 | F81: 50 | G81: 3 | H81: 36.5 | I81: 102 | J81: 86 | K81: 18884 | L81: 232 | M81: 0.0008518592833 | N81: 0.2981507491 | O81: ns | P81: 0.0001145100683 | Q81: 0.04007852391 | R81: *
A82: Athalia rosae | B82: Median intron length per transcript [bp] | C82: OGS | D82: MAN_SUB | E82: 11956 | F82: 825 | G82: 3 | H82: 9.5 | I82: 102 | J82: 100.5 | K82: 18884 | L82: 7093 | M82: 0.470247526 | N82: 1 | O82: ns | P82: 0.7925989255 | Q82: 1 | R82: ns
A83: Athalia rosae | B83: Protein length [aa] | C83: AUTO | D83: AUTO_SUB | E83: 11894 | F83: 805 | G83: 21 | H83: 66 | I83: 406 | J83: 445 | K83: 18467 | L83: 4341 | M83: 3.974500501e-05 | N83: 0.01391075175 | O83: * | P83: 0.0003842374458 | Q83: 0.134483106 | R83: ns
A84: Athalia rosae | B84: Protein length [aa] | C84: AUTO | D84: MAN_ADD | E84: 11894 | F84: 50 | G84: 21 | H84: 2 | I84: 406 | J84: 358.5 | K84: 18467 | L84: 1451 | M84: 1.440642847e-06 | N84: 0.0005042249966 | O84: *** | P84: 1.770715164e-05 | Q84: 0.006197503075 | R84: **
A85: Athalia rosae | B85: Protein length [aa] | C85: AUTO | D85: MAN_SUB | E85: 11894 | F85: 825 | G85: 21 | H85: 6 | I85: 406 | J85: 423 | K85: 18467 | L85: 4341 | M85: 7.183071874e-07 | N85: 0.0002514075156 | O85: *** | P85: 0.07508450099 | Q85: 1 | R85: ns
A86: Athalia rosae | B86: Protein length [aa] | C86: AUTO | D86: OGS | E86: 11894 | F86: 11956 | G86: 21 | H86: 2 | I86: 406 | J86: 405 | K86: 18467 | L86: 18467 | M86: 0.9997097179 | N86: 1 | O86: ns | P86: 0.6624176714 | Q86: 1 | R86: ns
A87: Athalia rosae | B87: Protein length [aa] | C87: AUTO_SUB | D87: MAN_ADD | E87: 805 | F87: 50 | G87: 66 | H87: 2 | I87: 445 | J87: 358.5 | K87: 4341 | L87: 1451 | M87: 7.104020905e-08 | N87: 2.486407317e-05 | O87: **** | P87: 3.505988818e-07 | Q87: 0.0001227096086 | R87: ***
A88: Athalia rosae | B88: Protein length [aa] | C88: AUTO_SUB | D88: MAN_SUB | E88: 805 | F88: 825 | G88: 66 | H88: 6 | I88: 445 | J88: 423 | K88: 4341 | L88: 4341 | M88: 0.1758735615 | N88: 1 | O88: ns | P88: 0.1620218501 | Q88: 1 | R88: ns
A89: Athalia rosae | B89: Protein length [aa] | C89: MAN_SUB | D89: MAN_ADD | E89: 825 | F89: 50 | G89: 6 | H89: 2 | I89: 423 | J89: 358.5 | K89: 4341 | L89: 1451 | M89: 3.034594027e-06 | N89: 0.00106210791 | O89: ** | P89: 1.632396878e-06 | Q89: 0.0005713389072 | R89: ***
A90: Athalia rosae | B90: Protein length [aa] | C90: OGS | D90: AUTO_SUB | E90: 11956 | F90: 805 | G90: 2 | H90: 66 | I90: 405 | J90: 445 | K90: 18467 | L90: 4341 | M90: 3.704879441e-05 | N90: 0.01296707804 | O90: * | P90: 0.0002048508025 | Q90: 0.07169778088 | R90: ns
A91: Athalia rosae | B91: Protein length [aa] | C91: OGS | D91: MAN_ADD | E91: 11956 | F91: 50 | G91: 2 | H91: 2 | I91: 405 | J91: 358.5 | K91: 18467 | L91: 1451 | M91: 1.996463599e-06 | N91: 0.0006987622595 | O91: *** | P91: 2.015508853e-05 | Q91: 0.007054280987 | R91: **
A92: Athalia rosae | B92: Protein length [aa] | C92: OGS | D92: MAN_SUB | E92: 11956 | F92: 825 | G92: 2 | H92: 6 | I92: 405 | J92: 423 | K92: 18467 | L92: 4341 | M92: 1.033732346e-06 | N92: 0.0003618063209 | O92: *** | P92: 0.05186670977 | Q92: 1 | R92: ns
A93: Athalia rosae | B93: Transcript length [bp] | C93: AUTO | D93: AUTO_SUB | E93: 11894 | F93: 805 | G93: 186 | H93: 216 | I93: 3931.5 | J93: 4340 | K93: 169257 | L93: 48363 | M93: 0.001479892111 | N93: 0.5179622389 | O93: ns | P93: 0.000441866052 | Q93: 0.1546531182 | R93: ns
A94: Athalia rosae | B94: Transcript length [bp] | C94: AUTO | D94: MAN_ADD | E94: 11894 | F94: 50 | G94: 186 | H94: 45 | I94: 3931.5 | J94: 1493.5 | K94: 169257 | L94: 8417 | M94: 2.339239913e-13 | N94: 8.187339695e-11 | O94: **** | P94: 2.912761225e-14 | Q94: 1.019466429e-11 | R94: ****
A95: Athalia rosae | B95: Transcript length [bp] | C95: AUTO | D95: MAN_SUB | E95: 11894 | F95: 825 | G95: 186 | H95: 45 | I95: 3931.5 | J95: 3208 | K95: 169257 | L95: 91826 | M95: 0.0004276258702 | N95: 0.1496690546 | O95: ns | P95: 0.04176914209 | Q95: 1 | R95: ns
A96: Athalia rosae | B96: Transcript length [bp] | C96: AUTO | D96: OGS | E96: 11894 | F96: 11956 | G96: 186 | H96: 45 | I96: 3931.5 | J96: 3854 | K96: 169257 | L96: 169257 | M96: 0.7165050961 | N96: 1 | O96: ns | P96: 0.2216073308 | Q96: 1 | R96: ns
A97: Athalia rosae | B97: Transcript length [bp] | C97: AUTO_SUB | D97: MAN_ADD | E97: 805 | F97: 50 | G97: 216 | H97: 45 | I97: 4340 | J97: 1493.5 | K97: 48363 | L97: 8417 | M97: 1.221245327e-15 | N97: 4.274358645e-13 | O97: **** | P97: 9.684615744e-17 | Q97: 3.38961551e-14 | R97: ****
A98: Athalia rosae | B98: Transcript length [bp] | C98: AUTO_SUB | D98: MAN_SUB | E98: 805 | F98: 825 | G98: 216 | H98: 45 | I98: 4340 | J98: 3208 | K98: 48363 | L98: 91826 | M98: 8.825496508e-05 | N98: 0.03088923778 | O98: * | P98: 2.213265199e-05 | Q98: 0.007746428197 | R98: **
A99: Athalia rosae | B99: Transcript length [bp] | C99: MAN_SUB | D99: MAN_ADD | E99: 825 | F99: 50 | G99: 45 | H99: 45 | I99: 3208 | J99: 1493.5 | K99: 91826 | L99: 8417 | M99: 2.146605116e-11 | N99: 7.513117906e-09 | O99: **** | P99: 4.043372606e-13 | Q99: 1.415180412e-10 | R99: ****
A100: Athalia rosae | B100: Transcript length [bp] | C100: OGS | D100: AUTO_SUB | E100: 11956 | F100: 805 | G100: 45 | H100: 216 | I100: 3854 | J100: 4340 | K100: 169257 | L100: 48363 | M100: 0.0003025019653 | N100: 0.1058756878 | O100: ns | P100: 7.281822468e-05 | Q100: 0.02548637864 | R100: *
A101: Athalia rosae | B101: Transcript length [bp] | C101: OGS | D101: MAN_ADD | E101: 11956 | F101: 50 | G101: 45 | H101: 45 | I101: 3854 | J101: 1493.5 | K101: 169257 | L101: 8417 | M101: 5.269118475e-13 | N101: 1.844191466e-10 | O101: **** | P101: 5.835962798e-14 | Q101: 2.042586979e-11 | R101: ****
A102: Athalia rosae | B102: Transcript length [bp] | C102: OGS | D102: MAN_SUB | E102: 11956 | F102: 825 | G102: 45 | H102: 45 | I102: 3854 | J102: 3208 | K102: 169257 | L102: 91826 | M102: 0.002943048639 | N102: 1 | O102: ns | P102: 0.1148624364 | Q102: 1 | R102: ns
A103: Cimex lectularius | B103: Exon count per transcript | C103: AUTO | D103: AUTO_SUB | E103: 13953 | F103: 795 | G103: 1 | H103: 1 | I103: 5 | J103: 5 | K103: 134 | L103: 88 | M103: 0.03831610365 | N103: 1 | O103: ns | P103: 0.0004010719661 | Q103: 0.1403751881 | R103: ns
A104: Cimex lectularius | B104: Exon count per transcript | C104: AUTO | D104: MAN_ADD | E104: 13953 | F104: 221 | G104: 1 | H104: 1 | I104: 5 | J104: 3 | K104: 134 | L104: 18 | M104: 1.304562339e-05 | N104: 0.004565968187 | O104: ** | P104: 8.835524542e-11 | Q104: 3.09243359e-08 | R104: ****
A105: Cimex lectularius | B105: Exon count per transcript | C105: AUTO | D105: MAN_SUB | E105: 13953 | F105: 778 | G105: 1 | H105: 1 | I105: 5 | J105: 5 | K105: 134 | L105: 120 | M105: 0.002084816089 | N105: 0.7296856311 | O105: ns | P105: 0.001790293062 | Q105: 0.6266025718 | R105: ns
A106: Cimex lectularius | B106: Exon count per transcript | C106: AUTO | D106: OGS | E106: 13953 | F106: 14085 | G106: 1 | H106: 1 | I106: 5 | J106: 5 | K106: 134 | L106: 134 | M106: 0.9995967326 | N106: 1 | O106: ns | P106: 0.7126396325 | Q106: 1 | R106: ns
A107: Cimex lectularius | B107: Exon count per transcript | C107: AUTO_SUB | D107: MAN_ADD | E107: 795 | F107: 221 | G107: 1 | H107: 1 | I107: 5 | J107: 3 | K107: 88 | L107: 18 | M107: 6.130900909e-07 | N107: 0.0002145815318 | O107: *** | P107: 1.343667184e-13 | Q107: 4.702835144e-11 | R107: ****
A108: Cimex lectularius | B108: Exon count per transcript | C108: AUTO_SUB | D108: MAN_SUB | E108: 795 | F108: 778 | G108: 1 | H108: 1 | I108: 5 | J108: 5 | K108: 88 | L108: 120 | M108: 0.6611498249 | N108: 1 | O108: ns | P108: 0.8243645779 | Q108: 1 | R108: ns
A109: Cimex lectularius | B109: Exon count per transcript | C109: MAN_SUB | D109: MAN_ADD | E109: 778 | F109: 221 | G109: 1 | H109: 1 | I109: 5 | J109: 3 | K109: 120 | L109: 18 | M109: 2.048096515e-08 | N109: 7.168337801e-06 | O109: **** | P109: 7.594878911e-13 | Q109: 2.658207619e-10 | R109: ****
A110: Cimex lectularius | B110: Exon count per transcript | C110: OGS | D110: AUTO_SUB | E110: 14085 | F110: 795 | G110: 1 | H110: 1 | I110: 5 | J110: 5 | K110: 134 | L110: 88 | M110: 0.05514087723 | N110: 1 | O110: ns | P110: 0.0006420787086 | Q110: 0.224727548 | R110: ns
A111: Cimex lectularius | B111: Exon count per transcript | C111: OGS | D111: MAN_ADD | E111: 14085 | F111: 221 | G111: 1 | H111: 1 | I111: 5 | J111: 3 | K111: 134 | L111: 18 | M111: 7.627669596e-06 | N111: 0.002669684359 | O111: ** | P111: 6.005945269e-11 | Q111: 2.102080844e-08 | R111: ****
A112: Cimex lectularius | B112: Exon count per transcript | C112: OGS | D112: MAN_SUB | E112: 14085 | F112: 778 | G112: 1 | H112: 1 | I112: 5 | J112: 5 | K112: 134 | L112: 120 | M112: 0.00391325027 | N112: 1 | O112: ns | P112: 0.002623500939 | Q112: 0.9182253285 | R112: ns
A113: Cimex lectularius | B113: Median exon length per transcript [bp] | C113: AUTO | D113: AUTO_SUB | E113: 13953 | F113: 795 | G113: 8 | H113: 16 | I113: 160 | J113: 168 | K113: 42998 | L113: 21522 | M113: 0.0001127200456 | N113: 0.03945201596 | O113: * | P113: 0.0001566418357 | Q113: 0.05482464248 | R113: ns
A114: Cimex lectularius | B114: Median exon length per transcript [bp] | C114: AUTO | D114: MAN_ADD | E114: 13953 | F114: 221 | G114: 8 | H114: 48 | I114: 160 | J114: 178 | K114: 42998 | L114: 4082 | M114: 6.576456415e-05 | N114: 0.02301759745 | O114: * | P114: 0.07867691293 | Q114: 1 | R114: ns
A115: Cimex lectularius | B115: Median exon length per transcript [bp] | C115: AUTO | D115: MAN_SUB | E115: 13953 | F115: 778 | G115: 8 | H115: 27 | I115: 160 | J115: 174.75 | K115: 42998 | L115: 3168 | M115: 4.107825191e-15 | N115: 1.437738817e-12 | O115: **** | P115: 4.211016359e-14 | Q115: 1.473855726e-11 | R115: ****
A116: Cimex lectularius | B116: Median exon length per transcript [bp] | C116: AUTO | D116: OGS | E116: 13953 | F116: 14085 | G116: 8 | H116: 8 | I116: 160 | J116: 160.5 | K116: 42998 | L116: 42998 | M116: 0.9137627929 | N116: 1 | O116: ns | P116: 0.2034461103 | Q116: 1 | R116: ns
A117: Cimex lectularius | B117: Median exon length per transcript [bp] | C117: AUTO_SUB | D117: MAN_ADD | E117: 795 | F117: 221 | G117: 16 | H117: 48 | I117: 168 | J117: 178 | K117: 21522 | L117: 4082 | M117: 0.0008161365915 | N117: 0.285647807 | O117: ns | P117: 0.78773018 | Q117: 1 | R117: ns
A118: Cimex lectularius | B118: Median exon length per transcript [bp] | C118: AUTO_SUB | D118: MAN_SUB | E118: 795 | F118: 778 | G118: 16 | H118: 27 | I118: 168 | J118: 174.75 | K118: 21522 | L118: 3168 | M118: 0.03085413466 | N118: 1 | O118: ns | P118: 0.004706483057 | Q118: 1 | R118: ns
A119: Cimex lectularius | B119: Median exon length per transcript [bp] | C119: MAN_SUB | D119: MAN_ADD | E119: 778 | F119: 221 | G119: 27 | H119: 48 | I119: 174.75 | J119: 178 | K119: 3168 | L119: 4082 | M119: 2.820234264e-07 | N119: 9.870819924e-05 | O119: **** | P119: 0.2068481356 | Q119: 1 | R119: ns
A120: Cimex lectularius | B120: Median exon length per transcript [bp] | C120: OGS | D120: AUTO_SUB | E120: 14085 | F120: 795 | G120: 8 | H120: 16 | I120: 160.5 | J120: 168 | K120: 42998 | L120: 21522 | M120: 0.0004533399168 | N120: 0.1586689709 | O120: ns | P120: 0.0008181732422 | Q120: 0.2863606348 | R120: ns
A121: Cimex lectularius | B121: Median exon length per transcript [bp] | C121: OGS | D121: MAN_ADD | E121: 14085 | F121: 221 | G121: 8 | H121: 48 | I121: 160.5 | J121: 178 | K121: 42998 | L121: 4082 | M121: 0.0001280636356 | N121: 0.04482227246 | O121: * | P121: 0.1175401603 | Q121: 1 | R121: ns
A122: Cimex lectularius | B122: Median exon length per transcript [bp] | C122: OGS | D122: MAN_SUB | E122: 14085 | F122: 778 | G122: 8 | H122: 27 | I122: 160.5 | J122: 174.75 | K122: 42998 | L122: 3168 | M122: 7.371880884e-14 | N122: 2.580158309e-11 | O122: **** | P122: 1.109762982e-12 | Q122: 3.884170435e-10 | R122: ****
A123: Cimex lectularius | B123: Median intron length per transcript [bp] | C123: AUTO | D123: AUTO_SUB | E123: 13953 | F123: 795 | G123: 3 | H123: 27 | I123: 77 | J123: 75 | K123: 26287 | L123: 8773 | M123: 0.440508185 | N123: 1 | O123: ns | P123: 0.6441547909 | Q123: 1 | R123: ns
A124: Cimex lectularius | B124: Median intron length per transcript [bp] | C124: AUTO | D124: MAN_ADD | E124: 13953 | F124: 221 | G124: 3 | H124: 3 | I124: 77 | J124: 70.25 | K124: 26287 | L124: 105428 | M124: 0.004672351278 | N124: 1 | O124: ns | P124: 0.1273475429 | Q124: 1 | R124: ns
A125: Cimex lectularius | B125: Median intron length per transcript [bp] | C125: AUTO | D125: MAN_SUB | E125: 13953 | F125: 778 | G125: 3 | H125: 9.5 | I125: 77 | J125: 74 | K125: 26287 | L125: 276986 | M125: 0.02420820614 | N125: 1 | O125: ns | P125: 0.2981235153 | Q125: 1 | R125: ns
A126: Cimex lectularius | B126: Median intron length per transcript [bp] | C126: AUTO | D126: OGS | E126: 13953 | F126: 14085 | G126: 3 | H126: 3 | I126: 77 | J126: 77 | K126: 26287 | L126: 276986 | M126: 0.8699810618 | N126: 1 | O126: ns | P126: 0.7730534037 | Q126: 1 | R126: ns
A127: Cimex lectularius | B127: Median intron length per transcript [bp] | C127: AUTO_SUB | D127: MAN_ADD | E127: 795 | F127: 221 | G127: 27 | H127: 3 | I127: 75 | J127: 70.25 | K127: 8773 | L127: 105428 | M127: 0.02451307656 | N127: 1 | O127: ns | P127: 0.2349094968 | Q127: 1 | R127: ns
A128: Cimex lectularius | B128: Median intron length per transcript [bp] | C128: AUTO_SUB | D128: MAN_SUB | E128: 795 | F128: 778 | G128: 27 | H128: 9.5 | I128: 75 | J128: 74 | K128: 8773 | L128: 276986 | M128: 0.3639446659 | N128: 1 | O128: ns | P128: 0.6872052049 | Q128: 1 | R128: ns
A129: Cimex lectularius | B129: Median intron length per transcript [bp] | C129: MAN_SUB | D129: MAN_ADD | E129: 778 | F129: 221 | G129: 9.5 | H129: 3 | I129: 74 | J129: 70.25 | K129: 276986 | L129: 105428 | M129: 0.09387309371 | N129: 1 | O129: ns | P129: 0.2997309063 | Q129: 1 | R129: ns
A130: Cimex lectularius | B130: Median intron length per transcript [bp] | C130: OGS | D130: AUTO_SUB | E130: 14085 | F130: 795 | G130: 3 | H130: 27 | I130: 77 | J130: 75 | K130: 276986 | L130: 8773 | M130: 0.4678361509 | N130: 1 | O130: ns | P130: 0.5728424682 | Q130: 1 | R130: ns
A131: Cimex lectularius | B131: Median intron length per transcript [bp] | C131: OGS | D131: MAN_ADD | E131: 14085 | F131: 221 | G131: 3 | H131: 3 | I131: 77 | J131: 70.25 | K131: 276986 | L131: 105428 | M131: 0.004842115196 | N131: 1 | O131: ns | P131: 0.1155132489 | Q131: 1 | R131: ns
A132: Cimex lectularius | B132: Median intron length per transcript [bp] | C132: OGS | D132: MAN_SUB | E132: 14085 | F132: 778 | G132: 3 | H132: 9.5 | I132: 77 | J132: 74 | K132: 276986 | L132: 276986 | M132: 0.03062463501 | N132: 1 | O132: ns | P132: 0.2580415826 | Q132: 1 | R132: ns
A133: Cimex lectularius | B133: Protein length [aa] | C133: AUTO | D133: AUTO_SUB | E133: 13953 | F133: 795 | G133: 14 | H133: 62 | I133: 290 | J133: 351 | K133: 13863 | L133: 6700 | M133: 4.16407675e-09 | N133: 1.457426863e-06 | O133: **** | P133: 2.427957986e-10 | Q133: 8.497852952e-08 | R133: ****
A134: Cimex lectularius | B134: Protein length [aa] | C134: AUTO | D134: MAN_ADD | E134: 13953 | F134: 221 | G134: 14 | H134: 33 | I134: 290 | J134: 304 | K134: 13863 | L134: 1321 | M134: 1.322516343e-07 | N134: 4.628807201e-05 | O134: **** | P134: 0.002280874188 | Q134: 0.7983059658 | R134: ns
A135: Cimex lectularius | B135: Protein length [aa] | C135: AUTO | D135: MAN_SUB | E135: 13953 | F135: 778 | G135: 14 | H135: 20 | I135: 290 | J135: 372.5 | K135: 13863 | L135: 12156 | M135: 0 | N135: 0 | O135: **** | P135: 2.970783749e-15 | Q135: 1.039774312e-12 | R135: ****
A136: Cimex lectularius | B136: Protein length [aa] | C136: AUTO | D136: OGS | E136: 13953 | F136: 14085 | G136: 14 | H136: 14 | I136: 290 | J136: 296 | K136: 13863 | L136: 13863 | M136: 0.5389371905 | N136: 1 | O136: ns | P136: 0.3309414165 | Q136: 1 | R136: ns
A137: Cimex lectularius | B137: Protein length [aa] | C137: AUTO_SUB | D137: MAN_ADD | E137: 795 | F137: 221 | G137: 62 | H137: 33 | I137: 351 | J137: 304 | K137: 6700 | L137: 1321 | M137: 8.563139087e-11 | N137: 2.99709868e-08 | O137: **** | P137: 1.047747051e-09 | Q137: 3.667114679e-07 | R137: ****
A138: Cimex lectularius | B138: Protein length [aa] | C138: AUTO_SUB | D138: MAN_SUB | E138: 795 | F138: 778 | G138: 62 | H138: 20 | I138: 351 | J138: 372.5 | K138: 6700 | L138: 12156 | M138: 0.137487025 | N138: 1 | O138: ns | P138: 0.1950773068 | Q138: 1 | R138: ns
A139: Cimex lectularius | B139: Protein length [aa] | C139: MAN_SUB | D139: MAN_ADD | E139: 778 | F139: 221 | G139: 20 | H139: 33 | I139: 372.5 | J139: 304 | K139: 12156 | L139: 1321 | M139: 6.356026816e-13 | N139: 2.224609386e-10 | O139: **** | P139: 4.362102078e-12 | Q139: 1.526735727e-09 | R139: ****
A140: Cimex lectularius | B140: Protein length [aa] | C140: OGS | D140: AUTO_SUB | E140: 14085 | F140: 795 | G140: 14 | H140: 62 | I140: 296 | J140: 351 | K140: 13863 | L140: 6700 | M140: 5.200473341e-08 | N140: 1.820165669e-05 | O140: **** | P140: 2.005896231e-09 | Q140: 7.020636808e-07 | R140: ****
A141: Cimex lectularius | B141: Protein length [aa] | C141: OGS | D141: MAN_ADD | E141: 14085 | F141: 221 | G141: 14 | H141: 33 | I141: 296 | J141: 304 | K141: 13863 | L141: 1321 | M141: 8.744614455e-08 | N141: 3.060615059e-05 | O141: **** | P141: 0.001206786043 | Q141: 0.4223751151 | R141: ns
A142: Cimex lectularius | B142: Protein length [aa] | C142: OGS | D142: MAN_SUB | E142: 14085 | F142: 778 | G142: 14 | H142: 20 | I142: 296 | J142: 372.5 | K142: 13863 | L142: 12156 | M142: 2.220446049e-16 | N142: 7.771561172e-14 | O142: **** | P142: 3.936502377e-14 | Q142: 1.377775832e-11 | R142: ****
A143: Cimex lectularius | B143: Transcript length [bp] | C143: AUTO | D143: AUTO_SUB | E143: 13953 | F143: 795 | G143: 180 | H143: 219 | I143: 3511 | J143: 4362 | K143: 223114 | L143: 117893 | M143: 0.0001934404924 | N143: 0.06770417235 | O143: ns | P143: 1.246593014e-06 | Q143: 0.0004363075548 | R143: ***
A144: Cimex lectularius | B144: Transcript length [bp] | C144: AUTO | D144: MAN_ADD | E144: 13953 | F144: 221 | G144: 180 | H144: 154 | I144: 3511 | J144: 1842 | K144: 223114 | L144: 333143 | M144: 1.489053273e-07 | N144: 5.211686455e-05 | O144: **** | P144: 0.0002634260677 | Q144: 0.09219912371 | R144: ns
A145: Cimex lectularius | B145: Transcript length [bp] | C145: AUTO | D145: MAN_SUB | E145: 13953 | F145: 778 | G145: 180 | H145: 272 | I145: 3511 | J145: 4360 | K145: 223114 | L145: 755913 | M145: 5.049457097e-08 | N145: 1.767309984e-05 | O145: **** | P145: 1.452883118e-08 | Q145: 5.085090914e-06 | R145: ****
A146: Cimex lectularius | B146: Transcript length [bp] | C146: AUTO | D146: OGS | E146: 13953 | F146: 14085 | G146: 180 | H146: 154 | I146: 3511 | J146: 3598 | K146: 223114 | L146: 755913 | M146: 0.09778621169 | N146: 1 | O146: ns | P146: 0.04047821474 | Q146: 1 | R146: ns
A147: Cimex lectularius | B147: Transcript length [bp] | C147: AUTO_SUB | D147: MAN_ADD | E147: 795 | F147: 221 | G147: 219 | H147: 154 | I147: 4362 | J147: 1842 | K147: 117893 | L147: 333143 | M147: 1.975380304e-09 | N147: 6.913831063e-07 | O147: **** | P147: 1.178761313e-07 | Q147: 4.125664596e-05 | R147: ****
A148: Cimex lectularius | B148: Transcript length [bp] | C148: AUTO_SUB | D148: MAN_SUB | E148: 795 | F148: 778 | G148: 219 | H148: 272 | I148: 4362 | J148: 4360 | K148: 117893 | L148: 755913 | M148: 0.05442980633 | N148: 1 | O148: ns | P148: 0.3753955663 | Q148: 1 | R148: ns
A149: Cimex lectularius | B149: Transcript length [bp] | C149: MAN_SUB | D149: MAN_ADD | E149: 778 | F149: 221 | G149: 272 | H149: 154 | I149: 4360 | J149: 1842 | K149: 755913 | L149: 333143 | M149: 1.60574869e-08 | N149: 5.620120413e-06 | O149: **** | P149: 4.793293616e-08 | Q149: 1.677652766e-05 | R149: ****
A150: Cimex lectularius | B150: Transcript length [bp] | C150: OGS | D150: AUTO_SUB | E150: 14085 | F150: 795 | G150: 154 | H150: 219 | I150: 3598 | J150: 4362 | K150: 755913 | L150: 117893 | M150: 0.00153815513 | N150: 0.5383542955 | O150: ns | P150: 3.880658168e-05 | Q150: 0.01358230359 | R150: *
A151: Cimex lectularius | B151: Transcript length [bp] | C151: OGS | D151: MAN_ADD | E151: 14085 | F151: 221 | G151: 154 | H151: 154 | I151: 3598 | J151: 1842 | K151: 755913 | L151: 333143 | M151: 7.813134173e-08 | N151: 2.734596961e-05 | O151: **** | P151: 9.487462307e-05 | Q151: 0.03320611808 | R151: *
A152: Cimex lectularius | B152: Transcript length [bp] | C152: OGS | D152: MAN_SUB | E152: 14085 | F152: 778 | G152: 154 | H152: 272 | I152: 3598 | J152: 4360 | K152: 755913 | L152: 755913 | M152: 2.921602924e-06 | N152: 0.001022561024 | O152: ** | P152: 5.973635257e-07 | Q152: 0.000209077234 | R152: ***
A153: Frankliniella occidentalis | B153: Exon count per transcript | C153: AUTO | D153: AUTO_SUB | E153: 17553 | F153: 1118 | G153: 1 | H153: 1 | I153: 5 | J153: 6 | K153: 84 | L153: 62 | M153: 1.166688968e-11 | N153: 4.083411387e-09 | O153: **** | P153: 1.816871576e-18 | Q153: 6.359050516e-16 | R153: ****
A154: Frankliniella occidentalis | B154: Exon count per transcript | C154: AUTO | D154: MAN_ADD | E154: 17553 | F154: 381 | G154: 1 | H154: 1 | I154: 5 | J154: 3 | K154: 84 | L154: 12 | M154: 0 | N154: 0 | O154: **** | P154: 3.157665841e-41 | Q154: 1.105183044e-38 | R154: ****
A155: Frankliniella occidentalis | B155: Exon count per transcript | C155: AUTO | D155: MAN_SUB | E155: 17553 | F155: 1127 | G155: 1 | H155: 1 | I155: 5 | J155: 6 | K155: 84 | L155: 62 | M155: 1.449513842e-10 | N155: 5.073298448e-08 | O155: **** | P155: 1.50413119e-15 | Q155: 5.264459165e-13 | R155: ****
A156: Frankliniella occidentalis | B156: Exon count per transcript | C156: AUTO | D156: OGS | E156: 17553 | F156: 18021 | G156: 1 | H156: 1 | I156: 5 | J156: 5 | K156: 84 | L156: 84 | M156: 0.3649723848 | N156: 1 | O156: ns | P156: 0.07784340339 | Q156: 1 | R156: ns
A157: Frankliniella occidentalis | B157: Exon count per transcript | C157: AUTO_SUB | D157: MAN_ADD | E157: 1118 | F157: 381 | G157: 1 | H157: 1 | I157: 6 | J157: 3 | K157: 62 | L157: 12 | M157: 0 | N157: 0 | O157: **** | P157: 4.024465611e-58 | Q157: 1.408562964e-55 | R157: ****
A158: Frankliniella occidentalis | B158: Exon count per transcript | C158: AUTO_SUB | D158: MAN_SUB | E158: 1118 | F158: 1127 | G158: 1 | H158: 1 | I158: 6 | J158: 6 | K158: 62 | L158: 62 | M158: 0.9309681518 | N158: 1 | O158: ns | P158: 0.6154554957 | Q158: 1 | R158: ns
A159: Frankliniella occidentalis | B159: Exon count per transcript | C159: MAN_SUB | D159: MAN_ADD | E159: 1127 | F159: 381 | G159: 1 | H159: 1 | I159: 6 | J159: 3 | K159: 62 | L159: 12 | M159: 0 | N159: 0 | O159: **** | P159: 2.236065648e-54 | Q159: 7.826229769e-52 | R159: ****
A160: Frankliniella occidentalis | B160: Exon count per transcript | C160: OGS | D160: AUTO_SUB | E160: 18021 | F160: 1118 | G160: 1 | H160: 1 | I160: 5 | J160: 6 | K160: 84 | L160: 62 | M160: 5.510036871e-13 | N160: 1.928512905e-10 | O160: **** | P160: 8.809471858e-21 | Q160: 3.08331515e-18 | R160: ****
A161: Frankliniella occidentalis | B161: Exon count per transcript | C161: OGS | D161: MAN_ADD | E161: 18021 | F161: 381 | G161: 1 | H161: 1 | I161: 5 | J161: 3 | K161: 84 | L161: 12 | M161: 0 | N161: 0 | O161: **** | P161: 5.201334599e-39 | Q161: 1.82046711e-36 | R161: ****
A162: Frankliniella occidentalis | B162: Exon count per transcript | C162: OGS | D162: MAN_SUB | E162: 18021 | F162: 1127 | G162: 1 | H162: 1 | I162: 5 | J162: 6 | K162: 84 | L162: 62 | M162: 8.961942299e-12 | N162: 3.136679805e-09 | O162: **** | P162: 1.189553656e-17 | Q162: 4.163437796e-15 | R162: ****
A163: Frankliniella occidentalis | B163: Median exon length per transcript [bp] | C163: AUTO | D163: AUTO_SUB | E163: 17553 | F163: 1118 | G163: 6 | H163: 36 | I163: 194 | J163: 186.25 | K163: 9852 | L163: 5819 | M163: 6.717035891e-07 | N163: 0.0002350962562 | O163: *** | P163: 0.0003175469703 | Q163: 0.1111414396 | R163: ns
A164: Frankliniella occidentalis | B164: Median exon length per transcript [bp] | C164: AUTO | D164: MAN_ADD | E164: 17553 | F164: 381 | G164: 6 | H164: 53 | I164: 194 | J164: 228 | K164: 9852 | L164: 2079 | M164: 1.601019317e-11 | N164: 5.60356761e-09 | O164: **** | P164: 2.937788817e-08 | Q164: 1.028226086e-05 | R164: ****
A165: Frankliniella occidentalis | B165: Median exon length per transcript [bp] | C165: AUTO | D165: MAN_SUB | E165: 17553 | F165: 1127 | G165: 6 | H165: 43 | I165: 194 | J165: 191 | K165: 9852 | L165: 5839.5 | M165: 0.0003867422878 | N165: 0.1353598007 | O165: ns | P165: 0.4101077737 | Q165: 1 | R165: ns
A166: Frankliniella occidentalis | B166: Median exon length per transcript [bp] | C166: AUTO | D166: OGS | E166: 17553 | F166: 18021 | G166: 6 | H166: 6 | I166: 194 | J166: 196 | K166: 9852 | L166: 9852 | M166: 0.8584055217 | N166: 1 | O166: ns | P166: 0.1745953467 | Q166: 1 | R166: ns
A167: Frankliniella occidentalis | B167: Median exon length per transcript [bp] | C167: AUTO_SUB | D167: MAN_ADD | E167: 1118 | F167: 381 | G167: 36 | H167: 53 | I167: 186.25 | J167: 228 | K167: 5819 | L167: 2079 | M167: 5.551115123e-16 | N167: 1.942890293e-13 | O167: **** | P167: 1.175676477e-10 | Q167: 4.114867668e-08 | R167: ****
A168: Frankliniella occidentalis | B168: Median exon length per transcript [bp] | C168: AUTO_SUB | D168: MAN_SUB | E168: 1118 | F168: 1127 | G168: 36 | H168: 43 | I168: 186.25 | J168: 191 | K168: 5819 | L168: 5839.5 | M168: 0.04060324017 | N168: 1 | O168: ns | P168: 0.02427266502 | Q168: 1 | R168: ns
A169: Frankliniella occidentalis | B169: Median exon length per transcript [bp] | C169: MAN_SUB | D169: MAN_ADD | E169: 1127 | F169: 381 | G169: 43 | H169: 53 | I169: 191 | J169: 228 | K169: 5839.5 | L169: 2079 | M169: 8.881784197e-15 | N169: 3.108624469e-12 | O169: **** | P169: 9.534016641e-08 | Q169: 3.336905824e-05 | R169: ****
A170: Frankliniella occidentalis | B170: Median exon length per transcript [bp] | C170: OGS | D170: AUTO_SUB | E170: 18021 | F170: 1118 | G170: 6 | H170: 36 | I170: 196 | J170: 186.25 | K170: 9852 | L170: 5819 | M170: 7.842476257e-08 | N170: 2.74486669e-05 | O170: **** | P170: 4.589872699e-05 | Q170: 0.01606455444 | R170: *
A171: Frankliniella occidentalis | B171: Median exon length per transcript [bp] | C171: OGS | D171: MAN_ADD | E171: 18021 | F171: 381 | G171: 6 | H171: 53 | I171: 196 | J171: 228 | K171: 9852 | L171: 2079 | M171: 8.270573115e-11 | N171: 2.89470059e-08 | O171: **** | P171: 1.210897664e-07 | Q171: 4.238141823e-05 | R171: ****
A172: Frankliniella occidentalis | B172: Median exon length per transcript [bp] | C172: OGS | D172: MAN_SUB | E172: 18021 | F172: 1127 | G172: 6 | H172: 43 | I172: 196 | J172: 191 | K172: 9852 | L172: 5839.5 | M172: 8.208726552e-05 | N172: 0.02873054293 | O172: * | P172: 0.1877727023 | Q172: 1 | R172: ns
A173: Frankliniella occidentalis | B173: Median intron length per transcript [bp] | C173: AUTO | D173: AUTO_SUB | E173: 17553 | F173: 1118 | G173: 3 | H173: 16 | I173: 95 | J173: 108 | K173: 29198.5 | L173: 12864 | M173: 2.139495248e-10 | N173: 7.488233367e-08 | O173: **** | P173: 1.70610103e-11 | Q173: 5.971353604e-09 | R173: ****
A174: Frankliniella occidentalis | B174: Median intron length per transcript [bp] | C174: AUTO | D174: MAN_ADD | E174: 17553 | F174: 381 | G174: 3 | H174: 27 | I174: 95 | J174: 127.75 | K174: 29198.5 | L174: 28701 | M174: 1.125785684e-06 | N174: 0.0003940249893 | O174: *** | P174: 0.0001912108257 | Q174: 0.066923789 | R174: ns
A175: Frankliniella occidentalis | B175: Median intron length per transcript [bp] | C175: AUTO | D175: MAN_SUB | E175: 17553 | F175: 1127 | G175: 3 | H175: 20 | I175: 95 | J175: 100.75 | K175: 29198.5 | L175: 15934 | M175: 5.596795006e-05 | N175: 0.01958878252 | O175: * | P175: 4.640588779e-05 | Q175: 0.01624206073 | R175: *
A176: Frankliniella occidentalis | B176: Median intron length per transcript [bp] | C176: AUTO | D176: OGS | E176: 17553 | F176: 18021 | G176: 3 | H176: 3 | I176: 95 | J176: 95 | K176: 29198.5 | L176: 29198.5 | M176: 1 | N176: 1 | O176: ns | P176: 0.9675182357 | Q176: 1 | R176: ns
A177: Frankliniella occidentalis | B177: Median intron length per transcript [bp] | C177: AUTO_SUB | D177: MAN_ADD | E177: 1118 | F177: 381 | G177: 16 | H177: 27 | I177: 108 | J177: 127.75 | K177: 12864 | L177: 28701 | M177: 0.07387473096 | N177: 1 | O177: ns | P177: 0.4329235933 | Q177: 1 | R177: ns
A178: Frankliniella occidentalis | B178: Median intron length per transcript [bp] | C178: AUTO_SUB | D178: MAN_SUB | E178: 1118 | F178: 1127 | G178: 16 | H178: 20 | I178: 108 | J178: 100.75 | K178: 12864 | L178: 15934 | M178: 0.1517984354 | N178: 1 | O178: ns | P178: 0.03309538797 | Q178: 1 | R178: ns
A179: Frankliniella occidentalis | B179: Median intron length per transcript [bp] | C179: MAN_SUB | D179: MAN_ADD | E179: 1127 | F179: 381 | G179: 20 | H179: 27 | I179: 100.75 | J179: 127.75 | K179: 15934 | L179: 28701 | M179: 0.001970644389 | N179: 0.6897255363 | O179: ns | P179: 0.04339403875 | Q179: 1 | R179: ns
A180: Frankliniella occidentalis | B180: Median intron length per transcript [bp] | C180: OGS | D180: AUTO_SUB | E180: 18021 | F180: 1118 | G180: 3 | H180: 16 | I180: 95 | J180: 108 | K180: 29198.5 | L180: 12864 | M180: 2.422441137e-10 | N180: 8.478543978e-08 | O180: **** | P180: 1.430036333e-11 | Q180: 5.005127165e-09 | R180: ****
A181: Frankliniella occidentalis | B181: Median intron length per transcript [bp] | C181: OGS | D181: MAN_ADD | E181: 18021 | F181: 381 | G181: 3 | H181: 27 | I181: 95 | J181: 127.75 | K181: 29198.5 | L181: 28701 | M181: 1.149658584e-06 | N181: 0.0004023805043 | O181: *** | P181: 0.0001793633152 | Q181: 0.06277716033 | R181: ns
A182: Frankliniella occidentalis | B182: Median intron length per transcript [bp] | C182: OGS | D182: MAN_SUB | E182: 18021 | F182: 1127 | G182: 3 | H182: 20 | I182: 95 | J182: 100.75 | K182: 29198.5 | L182: 15934 | M182: 6.574494017e-05 | N182: 0.02301072906 | O182: * | P182: 4.229594675e-05 | Q182: 0.01480358136 | R182: *
A183: Frankliniella occidentalis | B183: Protein length [aa] | C183: AUTO | D183: AUTO_SUB | E183: 17553 | F183: 1118 | G183: 16 | H183: 49 | I183: 363 | J183: 418.5 | K183: 7213 | L183: 5399 | M183: 1.806434308e-06 | N183: 0.0006322520078 | O183: *** | P183: 2.089947547e-06 | Q183: 0.0007314816414 | R183: ***
A184: Frankliniella occidentalis | B184: Protein length [aa] | C184: AUTO | D184: MAN_ADD | E184: 17553 | F184: 381 | G184: 16 | H184: 27 | I184: 363 | J184: 353 | K184: 7213 | L184: 910 | M184: 5.419886762e-12 | N184: 1.896960367e-09 | O184: **** | P184: 0.0002907528368 | Q184: 0.1017634929 | R184: ns
A185: Frankliniella occidentalis | B185: Protein length [aa] | C185: AUTO | D185: MAN_SUB | E185: 17553 | F185: 1127 | G185: 16 | H185: 10 | I185: 363 | J185: 419 | K185: 7213 | L185: 4996 | M185: 2.263455801e-08 | N185: 7.922095302e-06 | O185: **** | P185: 8.690772005e-06 | Q185: 0.003041770202 | R185: **
A186: Frankliniella occidentalis | B186: Protein length [aa] | C186: AUTO | D186: OGS | E186: 17553 | F186: 18021 | G186: 16 | H186: 10 | I186: 363 | J186: 364 | K186: 7213 | L186: 7213 | M186: 0.9239732843 | N186: 1 | O186: ns | P186: 0.6623998966 | Q186: 1 | R186: ns
A187: Frankliniella occidentalis | B187: Protein length [aa] | C187: AUTO_SUB | D187: MAN_ADD | E187: 1118 | F187: 381 | G187: 49 | H187: 27 | I187: 418.5 | J187: 353 | K187: 5399 | L187: 910 | M187: 3.874334187e-11 | N187: 1.356016965e-08 | O187: **** | P187: 3.731735084e-09 | Q187: 1.306107279e-06 | R187: ****
A188: Frankliniella occidentalis | B188: Protein length [aa] | C188: AUTO_SUB | D188: MAN_SUB | E188: 1118 | F188: 1127 | G188: 49 | H188: 10 | I188: 418.5 | J188: 419 | K188: 5399 | L188: 4996 | M188: 0.8993720649 | N188: 1 | O188: ns | P188: 0.7994496604 | Q188: 1 | R188: ns
A189: Frankliniella occidentalis | B189: Protein length [aa] | C189: MAN_SUB | D189: MAN_ADD | E189: 1127 | F189: 381 | G189: 10 | H189: 27 | I189: 419 | J189: 353 | K189: 4996 | L189: 910 | M189: 4.630839934e-09 | N189: 1.620793977e-06 | O189: **** | P189: 1.516118389e-08 | Q189: 5.306414363e-06 | R189: ****
A190: Frankliniella occidentalis | B190: Protein length [aa] | C190: OGS | D190: AUTO_SUB | E190: 18021 | F190: 1118 | G190: 10 | H190: 49 | I190: 364 | J190: 418.5 | K190: 7213 | L190: 5399 | M190: 2.708297171e-06 | N190: 0.0009479040098 | O190: *** | P190: 9.31641356e-07 | Q190: 0.0003260744746 | R190: ***
A191: Frankliniella occidentalis | B191: Protein length [aa] | C191: OGS | D191: MAN_ADD | E191: 18021 | F191: 381 | G191: 10 | H191: 27 | I191: 364 | J191: 353 | K191: 7213 | L191: 910 | M191: 2.589384263e-11 | N191: 9.062844919e-09 | O191: **** | P191: 0.0004071110513 | Q191: 0.1424888679 | R191: ns
A192: Frankliniella occidentalis | B192: Protein length [aa] | C192: OGS | D192: MAN_SUB | E192: 18021 | F192: 1127 | G192: 10 | H192: 10 | I192: 364 | J192: 419 | K192: 7213 | L192: 4996 | M192: 4.101196593e-08 | N192: 1.435418808e-05 | O192: **** | P192: 4.163005728e-06 | Q192: 0.001457052005 | R192: **
A193: Frankliniella occidentalis | B193: Transcript length [bp] | C193: AUTO | D193: AUTO_SUB | E193: 17553 | F193: 1118 | G193: 180 | H193: 253 | I193: 3401 | J193: 5001.5 | K193: 307031 | L193: 162570 | M193: 0 | N193: 0 | O193: **** | P193: 4.433671705e-27 | Q193: 1.551785097e-24 | R193: ****
A194: Frankliniella occidentalis | B194: Transcript length [bp] | C194: AUTO | D194: MAN_ADD | E194: 17553 | F194: 381 | G194: 180 | H194: 111 | I194: 3401 | J194: 1844 | K194: 307031 | L194: 74253 | M194: 0 | N194: 0 | O194: **** | P194: 5.10759813e-25 | Q194: 1.787659345e-22 | R194: ****
A195: Frankliniella occidentalis | B195: Transcript length [bp] | C195: AUTO | D195: MAN_SUB | E195: 17553 | F195: 1127 | G195: 180 | H195: 78 | I195: 3401 | J195: 4064 | K195: 307031 | L195: 184107 | M195: 1.282537503e-07 | N195: 4.48888126e-05 | O195: **** | P195: 1.609260725e-11 | Q195: 5.632412538e-09 | R195: ****
A196: Frankliniella occidentalis | B196: Transcript length [bp] | C196: AUTO | D196: OGS | E196: 17553 | F196: 18021 | G196: 180 | H196: 78 | I196: 3401 | J196: 3301 | K196: 307031 | L196: 307031 | M196: 0.2959075785 | N196: 1 | O196: ns | P196: 0.09174159839 | Q196: 1 | R196: ns
A197: Frankliniella occidentalis | B197: Transcript length [bp] | C197: AUTO_SUB | D197: MAN_ADD | E197: 1118 | F197: 381 | G197: 253 | H197: 111 | I197: 5001.5 | J197: 1844 | K197: 162570 | L197: 74253 | M197: 0 | N197: 0 | O197: **** | P197: 9.359775922e-46 | Q197: 3.275921573e-43 | R197: ****
A198: Frankliniella occidentalis | B198: Transcript length [bp] | C198: AUTO_SUB | D198: MAN_SUB | E198: 1118 | F198: 1127 | G198: 253 | H198: 78 | I198: 5001.5 | J198: 4064 | K198: 162570 | L198: 184107 | M198: 0.0006958165937 | N198: 0.2435358078 | O198: ns | P198: 0.002729966411 | Q198: 0.9554882437 | R198: ns
A199: Frankliniella occidentalis | B199: Transcript length [bp] | C199: MAN_SUB | D199: MAN_ADD | E199: 1127 | F199: 381 | G199: 78 | H199: 111 | I199: 4064 | J199: 1844 | K199: 184107 | L199: 74253 | M199: 0 | N199: 0 | O199: **** | P199: 1.11650777e-35 | Q199: 3.907777195e-33 | R199: ****
A200: Frankliniella occidentalis | B200: Transcript length [bp] | C200: OGS | D200: AUTO_SUB | E200: 18021 | F200: 1118 | G200: 78 | H200: 253 | I200: 3301 | J200: 5001.5 | K200: 307031 | L200: 162570 | M200: 0 | N200: 0 | O200: **** | P200: 1.018898734e-29 | Q200: 3.566145569e-27 | R200: ****
... 152 more rows

Sheet ST4 - Correlation coefficients
A1: Supplementary Table 4a: Correlation coefficients of jackknife resampled sets and original sets. | L1: Supplementary Table 4b: Correlation coefficients of original sets (reduction of ST4a).
E2: Spearman correlation coefficient
A3: Species | B3: Set | C3: Sample | D3: Sample size | E3: Transcript length vs. Exon count | F3: Exon GC content vs. Exon count | G3: Exon length vs. Exon count | H3: Intron GC content vs. Intron count | I3: Intron length vs. Intron count | L3: Species | M3: Comparison | N3: AUTO | O3: AUTO-SUB | P3: MAN-ADD | Q3: MAN-SUB | R3: OGS
A4: AGLA | B4: AUTO | C4: AUTO | D4: 22035 | E4: 0.6843684 | F4: 0.07705996 | G4: -0.3510411 | H4: -0.0389718 | I4: 0.0896905 | L4: Anoplophora glabripennis | M4: EGC – EC | N4: 0.07705995737 | O4: -0.05586044898 | P4: -0.02170689538 | Q4: -0.008637292821 | R4: 0.08163808355
A5: AGLA | B5: AUTO | C5: 1 | D5: 981 | E5: 0.6683354 | F5: 0.1289549 | G5: -0.319008 | H5: -0.02860096 | I5: 0.1051775 | L5: Leptinotarsa decemlineata | M5: EGC – EC | N5: 0.03496670327 | O5: -0.03864387819 | P5: 0.02627868602 | Q5: 0.006903638115 | R5: 0.04142026928
A6: AGLA | B6: AUTO | C6: 2 | D6: 979 | E6: 0.6598347 | F6: 0.1176803 | G6: -0.3339732 | H6: -0.007907937 | I6: 0.05614057 | L6: Athalia rosae | M6: EGC – EC | N6: 0.06318071854 | O6: -0.07361586631 | P6: -0.1754794403 | Q6: -0.1501052328 | R6: 0.05803472006
A7: AGLA | B7: AUTO | C7: 3 | D7: 974 | E7: 0.7188549 | F7: 0.1193164 | G7: -0.3377579 | H7: -0.04401013 | I7: 0.07762015 | L7: Orussus abietinus | M7: EGC – EC | N7: -0.03323232387 | O7: -0.2977691069 | P7: 0.1673055246 | Q7: -0.2706597925 | R7: -0.02948575486
A8: AGLA | B8: AUTO | C8: 4 | D8: 982 | E8: 0.6953756 | F8: 0.02318165 | G8: -0.3354273 | H8: -0.05538069 | I8: 0.09051421 | L8: Cimex lectularius | M8: EGC – EC | N8: -0.1510141447 | O8: -0.3521342324 | P8: -0.3181843574 | Q8: -0.3802384735 | R8: -0.1441937419
A9: AGLA | B9: AUTO | C9: 5 | D9: 974 | E9: 0.7002348 | F9: 0.05898805 | G9: -0.3261116 | H9: -0.06157326 | I9: 0.1631184 | L9: Oncopeltus fasciatus | M9: EGC – EC | N9: -0.02749314241 | O9: -0.2059839099 | P9: -0.2635709321 | Q9: -0.2193644597 | R9: -0.02255957897
A10: AGLA | B10: AUTO | C10: 6 | D10: 979 | E10: 0.6602525 | F10: 0.03156355 | G10: -0.3087136 | H10: -0.009875909 | I10: 0.07950429 | L10: Frankliniella occidentalis | M10: EGC – EC | N10: -0.2277749391 | O10: -0.2834521038 | P10: -0.2356394737 | Q10: -0.2997826198 | R10: -0.2368392125
A11: AGLA | B11: AUTO | C11: 7 | D11: 984 | E11: 0.6815218 | F11: 0.05349238 | G11: -0.379702 | H11: -0.07881497 | I11: 0.1389681
A12: AGLA | B12: AUTO | C12: 8 | D12: 972 | E12: 0.6724562 | F12: 0.08845681 | G12: -0.3939355 | H12: -0.03402633 | I12: 0.07971405 | L12: Anoplophora glabripennis | M12: EL -EC | N12: -0.3510410717 | O12: -0.4613378778 | P12: -0.8409030564 | Q12: -0.5496384556 | R12: -0.360633182
A13: AGLA | B13: AUTO | C13: 9 | D13: 971 | E13: 0.6723808 | F13: 0.09880856 | G13: -0.384284 | H13: -0.03198097 | I13: 0.09118077 | L13: Leptinotarsa decemlineata | M13: EL -EC | N13: -0.3459043551 | O13: -0.3955285116 | P13: -0.6869713385 | Q13: -0.4279334224 | R13: -0.34938371
A14: AGLA | B14: AUTO | C14: 10 | D14: 984 | E14: 0.6599928 | F14: 0.003287742 | G14: -0.3159291 | H14: -0.05189114 | I14: 0.07580396 | L14: Athalia rosae | M14: EL -EC | N14: -0.3912608938 | O14: -0.5019161468 | P14: 0.406646438 | Q14: -0.4414128868 | R14: -0.3827472349
A15: AGLA | B15: AUTO | C15: 11 | D15: 984 | E15: 0.6877834 | F15: 0.06959495 | G15: -0.3934082 | H15: -0.08280966 | I15: 0.08134378 | L15: Orussus abietinus | M15: EL -EC | N15: -0.3163034193 | O15: -0.4082324741 | P15: 0.3669910784 | Q15: -0.4429065069 | R15: -0.3164131466
A16: AGLA | B16: AUTO | C16: 12 | D16: 974 | E16: 0.6821143 | F16: 0.09306588 | G16: -0.3318659 | H16: -0.05348411 | I16: 0.1012552 | L16: Cimex lectularius | M16: EL -EC | N16: -0.3886132518 | O16: -0.4374348196 | P16: -0.6345303369 | Q16: -0.5763802578 | R16: -0.3953863572
A17: AGLA | B17: AUTO | C17: 13 | D17: 979 | E17: 0.679559 | F17: 0.01302425 | G17: -0.3425667 | H17: -0.06235944 | I17: 0.105211 | L17: Oncopeltus fasciatus | M17: EL -EC | N17: -0.3697895052 | O17: -0.403601924 | P17: -0.5307773849 | Q17: -0.4393888007 | R17: -0.3702565834
A18: AGLA | B18: AUTO | C18: 14 | D18: 980 | E18: 0.7067979 | F18: 0.09190788 | G18: -0.3855057 | H18: -0.03923791 | I18: 0.1462642 | L18: Frankliniella occidentalis | M18: EL -EC | N18: -0.4869513377 | O18: -0.3670845607 | P18: -0.7447839136 | Q18: -0.4485387403 | R18: -0.4989024663
A19: AGLA | B19: AUTO | C19: 15 | D19: 982 | E19: 0.7187218 | F19: 0.06978492 | G19: -0.3695411 | H19: -0.03354322 | I19: 0.1451606
A20: AGLA | B20: AUTO | C20: 16 | D20: 981 | E20: 0.6810683 | F20: 0.1299623 | G20: -0.3395603 | H20: -0.06254244 | I20: 0.07806453 | L20: Anoplophora glabripennis | M20: IGC – IC | N20: -0.03897180338 | O20: 0.1257119614 | P20: -0.05592315102 | Q20: 0.1649156422 | R20: -0.0378567411
A21: AGLA | B21: AUTO | C21: 17 | D21: 980 | E21: 0.7009928 | F21: 0.103686 | G21: -0.3282558 | H21: -0.04895145 | I21: 0.09795238 | L21: Leptinotarsa decemlineata | M21: IGC – IC | N21: -0.02238112012 | O21: 0.1181048058 | P21: 0.06392853939 | Q21: 0.09214511228 | R21: -0.02428955244
A22: AGLA | B22: AUTO | C22: 18 | D22: 978 | E22: 0.6595528 | F22: -0.003547455 | G22: -0.3497918 | H22: -0.0362145 | I22: 0.05938264 | L22: Athalia rosae | M22: IGC – IC | N22: -0.03886656702 | O22: -0.09869391622 | P22: -0.01631338609 | Q22: -0.1348497375 | R22: -0.04114167227
A23: AGLA | B23: AUTO | C23: 19 | D23: 976 | E23: 0.648653 | F23: 0.0579731 | G23: -0.3633106 | H23: -0.04519374 | I23: 0.04226238 | L23: Orussus abietinus | M23: IGC – IC | N23: -0.09797589856 | O23: -0.187676338 | P23: -0.4262649359 | Q23: -0.171009587 | R23: -0.09691480807
A24: AGLA | B24: AUTO | C24: 20 | D24: 982 | E24: 0.6756563 | F24: 0.09554659 | G24: -0.3482235 | H24: -0.02656638 | I24: 0.08035965 | L24: Cimex lectularius | M24: IGC – IC | N24: -0.3676667857 | O24: -0.272097244 | P24: -0.1769454377 | Q24: -0.2216006738 | R24: -0.3609786811
A25: AGLA | B25: AUTO | C25: 21 | D25: 982 | E25: 0.7142502 | F25: 0.0418223 | G25: -0.3699361 | H25: -0.06824504 | I25: 0.09946441 | L25: Oncopeltus fasciatus | M25: IGC – IC | N25: 0.002425194831 | O25: 0.06354933432 | P25: 0.2689180378 | Q25: -0.01320101219 | R25: 0.0006237956604
A26: AGLA | B26: AUTO | C26: 22 | D26: 989 | E26: 0.6833199 | F26: 0.08137974 | G26: -0.2999126 | H26: -0.01846056 | I26: 0.1070674 | L26: Frankliniella occidentalis | M26: IGC – IC | N26: -0.2986465777 | O26: -0.3081898909 | P26: 0.14471812 | Q26: -0.3303639792 | R26: -0.2955887597
A27: AGLA | B27: AUTO | C27: 23 | D27: 975 | E27: 0.6702882 | F27: 0.07329068 | G27: -0.376076 | H27: -0.0102229 | I27: 0.07555461
A28: AGLA | B28: AUTO | C28: 24 | D28: 980 | E28: 0.6969614 | F28: 0.1133405 | G28: -0.3414375 | H28: -0.01236847 | I28: 0.09584886 | L28: Anoplophora glabripennis | M28: IL -IC | N28: 0.08969049566 | O28: -0.08476389754 | P28: -0.02764290267 | Q28: -0.1335656054 | R28: 0.08710282421
A29: AGLA | B29: AUTO | C29: 25 | D29: 987 | E29: 0.6993427 | F29: 0.08452241 | G29: -0.367041 | H29: 0.01999513 | I29: 0.0904541 | L29: Leptinotarsa decemlineata | M29: IL -IC | N29: 0.1520964282 | O29: 0.1002177785 | P29: -0.09078850428 | Q29: 0.1627570951 | R29: 0.1543988552
A30: AGLA | B30: AUTO | C30: 26 | D30: 982 | E30: 0.6994172 | F30: 0.07687008 | G30: -0.2974784 | H30: -0.03808602 | I30: 0.09282292 | L30: Athalia rosae | M30: IL -IC | N30: 0.103551069 | O30: 0.0273819667 | P30: 0.1799941669 | Q30: 0.001215326666 | R30: 0.1015923482
A31: AGLA | B31: AUTO | C31: 27 | D31: 980 | E31: 0.6539175 | F31: 0.03995128 | G31: -0.3410379 | H31: -0.0317491 | I31: 0.07753632 | L31: Orussus abietinus | M31: IL -IC | N31: -0.04204118419 | O31: -0.1568274132 | P31: -0.4906267208 | Q31: -0.1245190357 | R31: -0.04274775777
A32: AGLA | B32: AUTO | C32: 28 | D32: 976 | E32: 0.6869599 | F32: 0.08690397 | G32: -0.2975777 | H32: -0.05934455 | I32: 0.07890866 | L32: Cimex lectularius | M32: IL -IC | N32: -0.05960847692 | O32: -0.1919892003 | P32: -0.296356974 | Q32: -0.1222360335 | R32: -0.05559078184
A33: AGLA | B33: AUTO | C33: 29 | D33: 973 | E33: 0.6713226 | F33: 0.08647594 | G33: -0.3665362 | H33: -0.022198 | I33: 0.1108618 | L33: Oncopeltus fasciatus | M33: IL -IC | N33: 0.1940725995 | O33: 0.1740913334 | P33: -0.05144482978 | Q33: 0.190689712 | R33: 0.1958575955
A34: AGLA | B34: AUTO | C34: 30 | D34: 974 | E34: 0.6975064 | F34: 0.1130499 | G34: -0.3687281 | H34: -0.00165743 | I34: 0.1180433 | L34: Frankliniella occidentalis | M34: IL -IC | N34: -0.07475801381 | O34: -0.1761055508 | P34: -0.04729619202 | Q34: -0.1205848146 | R34: -0.07218751685
A35: AGLA | B35: AUTO | C35: 31 | D35: 975 | E35: 0.6777101 | F35: 0.06074464 | G35: -0.3501383 | H35: -0.03105667 | I35: 0.105001
A36: AGLA | B36: AUTO | C36: 32 | D36: 979 | E36: 0.6681151 | F36: 0.1239255 | G36: -0.3338322 | H36: -0.04728585 | I36: 0.09318068
A37: AGLA | B37: AUTO | C37: 33 | D37: 986 | E37: 0.6660727 | F37: 0.04780356 | G37: -0.2919814 | H37: -0.04162505 | I37: 0.0712727
A38: AGLA | B38: AUTO | C38: 34 | D38: 981 | E38: 0.6803178 | F38: 0.07029425 | G38: -0.3043673 | H38: -0.07263121 | I38: 0.1186725
A39: AGLA | B39: AUTO | C39: 35 | D39: 978 | E39: 0.6539178 | F39: 0.1160051 | G39: -0.3981253 | H39: 0.01154832 | I39: 0.04001363
A40: AGLA | B40: AUTO | C40: 36 | D40: 977 | E40: 0.6998907 | F40: 0.03341236 | G40: -0.3356299 | H40: -0.07996128 | I40: 0.1129715
A41: AGLA | B41: AUTO | C41: 37 | D41: 977 | E41: 0.6697925 | F41: 0.1022291 | G41: -0.2972722 | H41: -0.03228695 | I41: 0.1082302
A42: AGLA | B42: AUTO | C42: 38 | D42: 976 | E42: 0.6985106 | F42: 0.09738149 | G42: -0.3207949 | H42: -0.007223985 | I42: 0.1172802
A43: AGLA | B43: AUTO | C43: 39 | D43: 973 | E43: 0.6916307 | F43: 0.04887741 | G43: -0.3160308 | H43: -0.05066886 | I43: 0.1027452
A44: AGLA | B44: AUTO | C44: 40 | D44: 979 | E44: 0.7132039 | F44: 0.08327477 | G44: -0.3596575 | H44: -0.05265482 | I44: 0.07657982
A45: AGLA | B45: AUTO | C45: 41 | D45: 983 | E45: 0.6821751 | F45: 0.1162848 | G45: -0.3188378 | H45: -0.06660907 | I45: 0.04979444
A46: AGLA | B46: AUTO | C46: 42 | D46: 975 | E46: 0.6961747 | F46: 0.09558662 | G46: -0.2672145 | H46: -0.05630463 | I46: 0.1182588
A47: AGLA | B47: AUTO | C47: 43 | D47: 988 | E47: 0.6734747 | F47: 0.05742851 | G47: -0.376998 | H47: -0.00368206 | I47: 0.06262164
A48: AGLA | B48: AUTO | C48: 44 | D48: 977 | E48: 0.6938111 | F48: 0.06375204 | G48: -0.349619 | H48: -0.08400091 | I48: 0.1369348
A49: AGLA | B49: AUTO | C49: 45 | D49: 977 | E49: 0.7020597 | F49: 0.05342505 | G49: -0.3852783 | H49: -0.02834843 | I49: 0.08912603
A50: AGLA | B50: AUTO | C50: 46 | D50: 980 | E50: 0.6867676 | F50: 0.07839934 | G50: -0.3850526 | H50: -0.04900911 | I50: 0.05274612
A51: AGLA | B51: AUTO | C51: 47 | D51: 976 | E51: 0.6848411 | F51: 0.0609776 | G51: -0.3391253 | H51: -0.01973606 | I51: -0.00942538
A52: AGLA | B52: AUTO | C52: 48 | D52: 983 | E52: 0.6787335 | F52: 0.1343158 | G52: -0.3321095 | H52: -0.04370869 | I52: 0.1079322
A53: AGLA | B53: AUTO | C53: 49 | D53: 987 | E53: 0.6889772 | F53: 0.06529348 | G53: -0.3682699 | H53: -0.002249022 | I53: 0.06411573
A54: AGLA | B54: AUTO | C54: 50 | D54: 987 | E54: 0.7133934 | F54: 0.0899238 | G54: -0.3590382 | H54: -0.06958332 | I54: 0.1198054
A55: AGLA | B55: AUTO | C55: 51 | D55: 976 | E55: 0.632649 | F55: 0.03759872 | G55: -0.3331413 | H55: -0.01361307 | I55: 0.0319574
A56: AGLA | B56: AUTO | C56: 52 | D56: 973 | E56: 0.6611736 | F56: 0.03461696 | G56: -0.3678327 | H56: -0.0825463 | I56: 0.03692762
A57: AGLA | B57: AUTO | C57: 53 | D57: 979 | E57: 0.6773153 | F57: 0.009492103 | G57: -0.3268679 | H57: -0.04476845 | I57: 0.08558978
A58: AGLA | B58: AUTO | C58: 54 | D58: 982 | E58: 0.6684816 | F58: 0.09793893 | G58: -0.3174082 | H58: -0.07373992 | I58: 0.05778545
A59: AGLA | B59: AUTO | C59: 55 | D59: 981 | E59: 0.6887001 | F59: 0.08962517 | G59: -0.3776984 | H59: -0.02130169 | I59: 0.1099453
A60: AGLA | B60: AUTO | C60: 56 | D60: 981 | E60: 0.6800341 | F60: 0.0534635 | G60: -0.3282099 | H60: -0.07812618 | I60: 0.09871758
A61: AGLA | B61: AUTO | C61: 57 | D61: 979 | E61: 0.6909393 | F61: 0.04147348 | G61: -0.3531875 | H61: -0.05097352 | I61: 0.08700824
A62: AGLA | B62: AUTO | C62: 58 | D62: 977 | E62: 0.7246344 | F62: 0.05042308 | G62: -0.402105 | H62: -0.06659457 | I62: 0.08331997
A63: AGLA | B63: AUTO | C63: 59 | D63: 979 | E63: 0.7050137 | F63: 0.04697047 | G63: -0.3665831 | H63: -0.06947963 | I63: 0.1207413
A64: AGLA | B64: AUTO | C64: 60 | D64: 976 | E64: 0.6679269 | F64: 0.1001732 | G64: -0.3322736 | H64: -0.01941426 | I64: 0.04325987
A65: AGLA | B65: AUTO | C65: 61 | D65: 984 | E65: 0.7017804 | F65: 0.05159146 | G65: -0.3688692 | H65: -0.06227366 | I65: 0.1429305
A66: AGLA | B66: AUTO | C66: 62 | D66: 979 | E66: 0.6935149 | F66: 0.1299833 | G66: -0.3578439 | H66: -0.07054788 | I66: 0.1087211
A67: AGLA | B67: AUTO | C67: 63 | D67: 979 | E67: 0.6680572 | F67: 0.07002834 | G67: -0.316287 | H67: -0.06871882 | I67: 0.09147921
A68: AGLA | B68: AUTO | C68: 64 | D68: 977 | E68: 0.6771794 | F68: 0.08039025 | G68: -0.3219705 | H68: -0.003726789 | I68: 0.1231107
A69: AGLA | B69: AUTO | C69: 65 | D69: 983 | E69: 0.6873337 | F69: 0.1012138 | G69: -0.3729301 | H69: -0.01113485 | I69: 0.04929134
A70: AGLA | B70: AUTO | C70: 66 | D70: 973 | E70: 0.6923757 | F70: 0.08075321 | G70: -0.3141318 | H70: -0.05829635 | I70: 0.1169451
A71: AGLA | B71: AUTO | C71: 67 | D71: 972 | E71: 0.6786646 | F71: 0.04958445 | G71: -0.3405469 | H71: -0.02038913 | I71: 0.03195173
A72: AGLA | B72: AUTO | C72: 68 | D72: 979 | E72: 0.6620644 | F72: 0.0786239 | G72: -0.3250581 | H72: -0.03862322 | I72: 0.04190067
A73: AGLA | B73: AUTO | C73: 69 | D73: 976 | E73: 0.7024665 | F73: 0.08351652 | G73: -0.3468039 | H73: -0.02875887 | I73: 0.06114378
A74: AGLA | B74: AUTO | C74: 70 | D74: 976 | E74: 0.7066307 | F74: 0.07387156 | G74: -0.356885 | H74: -0.02583399 | I74: 0.1319208
A75: AGLA | B75: AUTO | C75: 71 | D75: 981 | E75: 0.6776574 | F75: 0.06662461 | G75: -0.4022295 | H75: -0.06285068 | I75: 0.09734645
A76: AGLA | B76: AUTO | C76: 72 | D76: 979 | E76: 0.6949874 | F76: 0.1034169 | G76: -0.3250284 | H76: -0.0382153 | I76: 0.09292065
A77: AGLA | B77: AUTO | C77: 73 | D77: 982 | E77: 0.690228 | F77: 0.110627 | G77: -0.3364626 | H77: -0.02547558 | I77: 0.129446
A78: AGLA | B78: AUTO | C78: 74 | D78: 980 | E78: 0.7023013 | F78: 0.1133641 | G78: -0.3699526 | H78: -0.05748496 | I78: 0.03677488
A79: AGLA | B79: AUTO | C79: 75 | D79: 976 | E79: 0.6986521 | F79: 0.1082568 | G79: -0.3681394 | H79: -0.03510787 | I79: 0.08930064
A80: AGLA | B80: AUTO | C80: 76 | D80: 972 | E80: 0.7049955 | F80: 0.09468592 | G80: -0.3371603 | H80: 0.04751656 | I80: 0.1050786
A81: AGLA | B81: AUTO | C81: 77 | D81: 985 | E81: 0.6697701 | F81: 0.08692141 | G81: -0.3764583 | H81: -0.08386949 | I81: 0.03835151
A82: AGLA | B82: AUTO | C82: 78 | D82: 978 | E82: 0.6869912 | F82: 0.03970072 | G82: -0.3371253 | H82: -0.08878131 | I82: 0.06783764
A83: AGLA | B83: AUTO | C83: 79 | D83: 983 | E83: 0.6692589 | F83: 0.008033796 | G83: -0.3499931 | H83: -0.09244686 | I83: 0.1244289
A84: AGLA | B84: AUTO | C84: 80 | D84: 982 | E84: 0.6448426 | F84: 0.05014502 | G84: -0.3579843 | H84: -0.04581038 | I84: 0.01945024
A85: AGLA | B85: AUTO | C85: 81 | D85: 977 | E85: 0.7037187 | F85: 0.08401788 | G85: -0.3420349 | H85: -0.0710118 | I85: 0.133593
A86: AGLA | B86: AUTO | C86: 82 | D86: 974 | E86: 0.6817896 | F86: 0.1136554 | G86: -0.2907162 | H86: -0.0501612 | I86: 0.07699229
A87: AGLA | B87: AUTO | C87: 83 | D87: 986 | E87: 0.6784723 | F87: 0.06465632 | G87: -0.3743536 | H87: -0.02397243 | I87: 0.1119498
A88: AGLA | B88: AUTO | C88: 84 | D88: 987 | E88: 0.6771555 | F88: 0.08719895 | G88: -0.3581353 | H88: 0.001300461 | I88: 0.05500857
A89: AGLA | B89: AUTO | C89: 85 | D89: 980 | E89: 0.6781496 | F89: 0.03461696 | G89: -0.3948969 | H89: -0.011857 | I89: 0.06893836
A90: AGLA | B90: AUTO | C90: 86 | D90: 978 | E90: 0.6963108 | F90: 0.04767185 | G90: -0.3236899 | H90: -0.06787245 | I90: 0.1066589
A91: AGLA | B91: AUTO | C91: 87 | D91: 984 | E91: 0.6836172 | F91: 0.08286366 | G91: -0.3883621 | H91: -0.09259784 | I91: 0.1159338
A92: AGLA | B92: AUTO | C92: 88 | D92: 980 | E92: 0.6980682 | F92: 0.04845654 | G92: -0.3486256 | H92: -0.0583078 | I92: 0.07402523
A93: AGLA | B93: AUTO | C93: 89 | D93: 973 | E93: 0.6814167 | F93: 0.1076574 | G93: -0.2942723 | H93: -0.005645927 | I93: 0.1428883
A94: AGLA | B94: AUTO | C94: 90 | D94: 979 | E94: 0.6802433 | F94: 0.1128816 | G94: -0.3308949 | H94: -0.01294159 | I94: 0.08067565
A95: AGLA | B95: AUTO | C95: 91 | D95: 986 | E95: 0.6920818 | F95: 0.118276 | G95: -0.374415 | H95: -0.0230293 | I95: 0.126156
A96: AGLA | B96: AUTO | C96: 92 | D96: 979 | E96: 0.6809054 | F96: 0.1061892 | G96: -0.3622915 | H96: -0.08326865 | I96: 0.1014287
A97: AGLA | B97: AUTO | C97: 93 | D97: 982 | E97: 0.6800573 | F97: 0.0830527 | G97: -0.4017866 | H97: -0.08048642 | I97: 0.1033338
A98: AGLA | B98: AUTO | C98: 94 | D98: 980 | E98: 0.6901095 | F98: 0.08296156 | G98: -0.424178 | H98: -0.0625838 | I98: 0.04469537
A99: AGLA | B99: AUTO | C99: 95 | D99: 984 | E99: 0.6798826 | F99: 0.09548024 | G99: -0.3909749 | H99: -0.02014865 | I99: 0.0810163
A100: AGLA | B100: AUTO | C100: 96 | D100: 979 | E100: 0.6730253 | F100: 0.09053729 | G100: -0.3677105 | H100: -0.006780767 | I100: 0.08155644
A101: AGLA | B101: AUTO | C101: 97 | D101: 972 | E101: 0.6731047 | F101: 0.08967127 | G101: -0.3681259 | H101: -0.05312033 | I101: 0.09868505
A102: AGLA | B102: AUTO | C102: 98 | D102: 982 | E102: 0.7024634 | F102: 0.07951245 | G102: -0.3689101 | H102: -0.02154914 | I102: 0.1248656
A103: AGLA | B103: AUTO | C103: 99 | D103: 977 | E103: 0.698425 | F103: 0.001865409 | G103: -0.3493256 | H103: -0.04387974 | I103: 0.0624649
A104: AGLA | B104: AUTO | C104: 100 | D104: 979 | E104: 0.6909978 | F104: 0.1598073 | G104: -0.3690686 | H104: 0.02674508 | I104: 0.1171018
A105: AGLA | B105: AUTO | C105: 101 | D105: 978 | E105: 0.6961488 | F105: 0.0547539 | G105: -0.326601 | H105: -0.0009136445 | I105: 0.1117612
A106: AGLA | B106: AUTO | C106: 102 | D106: 975 | E106: 0.6669922 | F106: 0.1446694 | G106: -0.339812 | H106: 0.03554157 | I106: 0.03185351
A107: AGLA | B107: AUTO | C107: 103 | D107: 985 | E107: 0.6558958 | F107: 0.05734444 | G107: -0.3739065 | H107: 0.001965027 | I107: 0.07578764
A108: AGLA | B108: AUTO | C108: 104 | D108: 972 | E108: 0.6978534 | F108: 0.09820864 | G108: -0.3710165 | H108: 0.09002738 | I108: 0.0785312
A109: AGLA | B109: AUTO | C109: 105 | D109: 988 | E109: 0.6869623 | F109: 0.1460678 | G109: -0.356359 | H109: -0.03295218 | I109: 0.07102313
A110: AGLA | B110: AUTO | C110: 106 | D110: 977 | E110: 0.6792512 | F110: 0.1191521 | G110: -0.3272384 | H110: 0.08194716 | I110: 0.07462212
A111: AGLA | B111: AUTO | C111: 107 | D111: 983 | E111: 0.6900267 | F111: 0.1347613 | G111: -0.36209 | H111: -0.05592912 | I111: 0.1245458
A112: AGLA | B112: AUTO | C112: 108 | D112: 977 | E112: 0.6853946 | F112: 0.04187633 | G112: -0.3166271 | H112: -0.06106837 | I112: 0.06174373
A113: AGLA | B113: AUTO | C113: 109 | D113: 986 | E113: 0.7017746 | F113: 0.05184228 | G113: -0.367301 | H113: -0.034913 | I113: 0.1055284
A114: AGLA | B114: AUTO | C114: 110 | D114: 983 | E114: 0.6999374 | F114: 0.08763288 | G114: -0.3575876 | H114: -0.02102802 | I114: 0.1323473
A115: AGLA | B115: AUTO | C115: 111 | D115: 983 | E115: 0.6531646 | F115: 0.07287143 | G115: -0.3729824 | H115: -0.005615671 | I115: 0.02098834
A116: AGLA | B116: AUTO | C116: 112 | D116: 981 | E116: 0.6752734 | F116: 0.0807273 | G116: -0.3567182 | H116: -0.03366738 | I116: 0.02201976
A117: AGLA | B117: AUTO | C117: 113 | D117: 982 | E117: 0.6859433 | F117: 0.0535566 | G117: -0.3307541 | H117: -0.07296285 | I117: 0.02543174
A118: AGLA | B118: AUTO | C118: 114 | D118: 974 | E118: 0.7023869 | F118: 0.04504643 | G118: -0.3502941 | H118: -0.105463 | I118: 0.1097945
A119: AGLA | B119: AUTO | C119: 115 | D119: 986 | E119: 0.6732427 | F119: 0.1126788 | G119: -0.3931538 | H119: -0.0081244 | I119: 0.08562679
A120: AGLA | B120: AUTO | C120: 116 | D120: 979 | E120: 0.6693568 | F120: 0.07476675 | G120: -0.356612 | H120: -0.0384567 | I120: 0.06915756
A121: AGLA | B121: AUTO | C121: 117 | D121: 976 | E121: 0.7023791 | F121: 0.06494122 | G121: -0.3967292 | H121: -0.1249215 | I121: 0.08920535
A122: AGLA | B122: AUTO | C122: 118 | D122: 978 | E122: 0.6930631 | F122: 0.03028755 | G122: -0.360273 | H122: -0.02322147 | I122: 0.1203688
A123: AGLA | B123: AUTO | C123: 119 | D123: 977 | E123: 0.7059594 | F123: 0.03610184 | G123: -0.3361165 | H123: -0.0839184 | I123: 0.1154268
A124: AGLA | B124: AUTO | C124: 120 | D124: 974 | E124: 0.6670288 | F124: 0.06016954 | G124: -0.3817932 | H124: -0.05924549 | I124: 0.07979422
A125: AGLA | B125: AUTO | C125: 121 | D125: 970 | E125: 0.6887938 | F125: 0.1155776 | G125: -0.3432625 | H125: -0.01551545 | I125: 0.1091526
A126: AGLA | B126: AUTO | C126: 122 | D126: 983 | E126: 0.673092 | F126: 0.04684501 | G126: -0.2984364 | H126: -0.06318482 | I126: 0.05885399
A127: AGLA | B127: AUTO | C127: 123 | D127: 978 | E127: 0.6753967 | F127: 0.07728728 | G127: -0.3559811 | H127: 0.001499507 | I127: 0.09906271
A128: AGLA | B128: AUTO | C128: 124 | D128: 978 | E128: 0.6931356 | F128: 0.0544978 | G128: -0.3522398 | H128: -0.08985434 | I128: 0.08420624
A129: AGLA | B129: AUTO | C129: 125 | D129: 972 | E129: 0.6949428 | F129: 0.07351088 | G129: -0.336529 | H129: -0.06141686 | I129: 0.1255295
A130: AGLA | B130: AUTO | C130: 126 | D130: 964 | E130: 0.7161877 | F130: 0.07696563 | G130: -0.3572464 | H130: -0.01508338 | I130: 0.1289641
A131: AGLA | B131: AUTO | C131: 127 | D131: 976 | E131: 0.7056947 | F131: 0.02323917 | G131: -0.3536371 | H131: -0.1437399 | I131: 0.1375598
A132: AGLA | B132: AUTO | C132: 128 | D132: 977 | E132: 0.6683428 | F132: 0.06796208 | G132: -0.3460119 | H132: -0.002658491 | I132: 0.08857326
A133: AGLA | B133: AUTO | C133: 129 | D133: 981 | E133: 0.6829751 | F133: 0.04370477 | G133: -0.3805049 | H133: -0.02889643 | I133: 0.1436415
A134: AGLA | B134: AUTO | C134: 130 | D134: 986 | E134: 0.6836059 | F134: 0.08601438 | G134: -0.3659123 | H134: -0.09466141 | I134: 0.1505271
A135: AGLA | B135: AUTO | C135: 131 | D135: 983 | E135: 0.6878483 | F135: 0.06382629 | G135: -0.2961912 | H135: -0.07524127 | I135: 0.07506189
A136: AGLA | B136: AUTO | C136: 132 | D136: 970 | E136: 0.6861914 | F136: 0.08064626 | G136: -0.3704228 | H136: -0.009824659 | I136: 0.05525756
A137: AGLA | B137: AUTO | C137: 133 | D137: 982 | E137: 0.6930016 | F137: 0.05556512 | G137: -0.3764647 | H137: -0.05363102 | I137: 0.1086645
A138: AGLA | B138: AUTO | C138: 134 | D138: 981 | E138: 0.6812815 | F138: 0.1033408 | G138: -0.3474283 | H138: -0.01696621 | I138: 0.09820316
A139: AGLA | B139: AUTO | C139: 135 | D139: 982 | E139: 0.6693097 | F139: 0.0456408 | G139: -0.3590065 | H139: -0.06716171 | I139: 0.08038503
A140: AGLA | B140: AUTO | C140: 136 | D140: 984 | E140: 0.685128 | F140: 0.08027822 | G140: -0.3496021 | H140: -0.03774907 | I140: 0.06322414
A141: AGLA | B141: AUTO | C141: 137 | D141: 982 | E141: 0.6842136 | F141: 0.11532 | G141: -0.3850176 | H141: 9.951181e-05 | I141: 0.1090221
A142: AGLA | B142: AUTO | C142: 138 | D142: 975 | E142: 0.6567609 | F142: 0.06673568 | G142: -0.3283296 | H142: -0.04248644 | I142: 0.06542952
A143: AGLA | B143: AUTO | C143: 139 | D143: 986 | E143: 0.7037108 | F143: 0.09995956 | G143: -0.3395153 | H143: -0.04898898 | I143: 0.04872006
A144: AGLA | B144: AUTO | C144: 140 | D144: 973 | E144: 0.659564 | F144: 0.04600361 | G144: -0.349314 | H144: -0.01834419 | I144: 0.05162684
A145: AGLA | B145: AUTO | C145: 141 | D145: 983 | E145: 0.6592076 | F145: 0.08844778 | G145: -0.3035176 | H145: -0.03616031 | I145: 0.07602335
A146: AGLA | B146: AUTO | C146: 142 | D146: 982 | E146: 0.7142907 | F146: 0.07516321 | G146: -0.3916802 | H146: -0.02354139 | I146: 0.1528994
A147: AGLA | B147: AUTO | C147: 143 | D147: 977 | E147: 0.6753183 | F147: 0.1211584 | G147: -0.3443557 | H147: 0.04950402 | I147: 0.03290947
A148: AGLA | B148: AUTO | C148: 144 | D148: 987 | E148: 0.670993 | F148: 0.03047837 | G148: -0.340533 | H148: -0.05863452 | I148: 0.08277383
A149: AGLA | B149: AUTO | C149: 145 | D149: 973 | E149: 0.6681988 | F149: 0.1030914 | G149: -0.3093734 | H149: -0.04658818 | I149: 0.08468289
A150: AGLA | B150: AUTO | C150: 146 | D150: 984 | E150: 0.7118261 | F150: 0.1429977 | G150: -0.3410321 | H150: -0.05421868 | I150: 0.1255873
A151: AGLA | B151: AUTO | C151: 147 | D151: 970 | E151: 0.7044363 | F151: 0.07330467 | G151: -0.294992 | H151: -0.07722785 | I151: 0.1444842
A152: AGLA | B152: AUTO | C152: 148 | D152: 973 | E152: 0.6958937 | F152: 0.08820028 | G152: -0.3421742 | H152: -0.05955502 | I152: 0.07322392
A153: AGLA | B153: AUTO | C153: 149 | D153: 976 | E153: 0.6816815 | F153: 0.05401635 | G153: -0.3434777 | H153: -0.03019178 | I153: 0.1255707
A154: AGLA | B154: AUTO | C154: 150 | D154: 985 | E154: 0.6662324 | F154: 0.06777718 | G154: -0.3868942 | H154: -0.03473318 | I154: 0.09048457
A155: AGLA | B155: AUTO | C155: 151 | D155: 982 | E155: 0.6624394 | F155: 0.0919929 | G155: -0.3763686 | H155: -0.0211424 | I155: 0.03559436
A156: AGLA | B156: AUTO | C156: 152 | D156: 986 | E156: 0.6970244 | F156: 0.0635184 | G156: -0.3918081 | H156: -0.0002030385 | I156: 0.1636627
A157: AGLA | B157: AUTO | C157: 153 | D157: 974 | E157: 0.6846297 | F157: 0.1061187 | G157: -0.3176849 | H157: -0.02672097 | I157: 0.02891451
A158: AGLA | B158: AUTO | C158: 154 | D158: 985 | E158: 0.6795534 | F158: 0.07171451 | G158: -0.327324 | H158: -0.03881527 | I158: 0.05731004
A159: AGLA | B159: AUTO | C159: 155 | D159: 967 | E159: 0.689334 | F159: 0.08927107 | G159: -0.3004443 | H159: 0.01218891 | I159: 0.1082575
A160: AGLA | B160: AUTO | C160: 156 | D160: 967 | E160: 0.6784886 | F160: 0.08442898 | G160: -0.3691342 | H160: -0.06063387 | I160: 0.1045096
A161: AGLA | B161: AUTO | C161: 157 | D161: 979 | E161: 0.6935934 | F161: 0.1061374 | G161: -0.3991221 | H161: -0.04792951 | I161: 0.1467517
A162: AGLA | B162: AUTO | C162: 158 | D162: 985 | E162: 0.6757085 | F162: 0.05198063 | G162: -0.392219 | H162: -0.05548415 | I162: 0.0819633
A163: AGLA | B163: AUTO | C163: 159 | D163: 969 | E163: 0.6827961 | F163: 0.05695181 | G163: -0.3385578 | H163: -0.002504699 | I163: 0.06108402
A164: AGLA | B164: AUTO | C164: 160 | D164: 983 | E164: 0.6963082 | F164: 0.03421016 | G164: -0.3671506 | H164: -0.003908573 | I164: 0.08536391
A165: AGLA | B165: AUTO | C165: 161 | D165: 981 | E165: 0.6944312 | F165: 0.09693791 | G165: -0.3799076 | H165: -0.08254112 | I165: 0.07303139
A166: AGLA | B166: AUTO | C166: 162 | D166: 982 | E166: 0.6931051 | F166: 0.1227466 | G166: -0.3575564 | H166: -0.03140758 | I166: 0.08069398
A167: AGLA | B167: AUTO | C167: 163 | D167: 980 | E167: 0.6947361 | F167: 0.08341914 | G167: -0.373868 | H167: -0.02617585 | I167: 0.07387063
A168: AGLA | B168: AUTO | C168: 164 | D168: 972 | E168: 0.7232472 | F168: 0.0500804 | G168: -0.3608804 | H168: -0.08068101 | I168: 0.1199074
A169: AGLA | B169: AUTO | C169: 165 | D169: 986 | E169: 0.6944688 | F169: 0.04271464 | G169: -0.3640567 | H169: -0.04054013 | I169: 0.1414087
A170: AGLA | B170: AUTO | C170: 166 | D170: 983 | E170: 0.7021224 | F170: 0.06598076 | G170: -0.3464114 | H170: -0.06060151 | I170: 0.1468098
A171: AGLA | B171: AUTO | C171: 167 | D171: 971 | E171: 0.6495865 | F171: 0.04406428 | G171: -0.3135694 | H171: -0.02702055 | I171: 0.05126179
A172: AGLA | B172: AUTO | C172: 168 | D172: 985 | E172: 0.6535997 | F172: 0.1038945 | G172: -0.351347 | H172: 0.01301008 | I172: 0.03045314
A173: AGLA | B173: AUTO | C173: 169 | D173: 981 | E173: 0.6821409 | F173: 0.09033198 | G173: -0.2826698 | H173: -0.079202 | I173: 0.1609208
A174: AGLA | B174: AUTO | C174: 170 | D174: 974 | E174: 0.6562294 | F174: 0.03758598 | G174: -0.4082213 | H174: -0.1118936 | I174: 0.0503299
A175: AGLA | B175: AUTO | C175: 171 | D175: 983 | E175: 0.6650669 | F175: 0.07086368 | G175: -0.3731691 | H175: -0.03370265 | I175: 0.0881564
A176: AGLA | B176: AUTO | C176: 172 | D176: 982 | E176: 0.7190746 | F176: 0.05280157 | G176: -0.3863062 | H176: -0.07931813 | I176: 0.1956965
A177: AGLA | B177: AUTO | C177: 173 | D177: 981 | E177: 0.6834697 | F177: 0.04819506 | G177: -0.3108935 | H177: -0.01230212 | I177: 0.06630522
A178: AGLA | B178: AUTO | C178: 174 | D178: 979 | E178: 0.6786999 | F178: 0.06015055 | G178: -0.3503115 | H178: -0.04713597 | I178: 0.02327482
A179: AGLA | B179: AUTO | C179: 175 | D179: 984 | E179: 0.6586845 | F179: 0.03314803 | G179: -0.3352135 | H179: -0.05359548 | I179: 0.0576421
A180: AGLA | B180: AUTO | C180: 176 | D180: 982 | E180: 0.6664303 | F180: 0.0615523 | G180: -0.3204919 | H180: -0.04480006 | I180: 0.09233277
A181: AGLA | B181: AUTO | C181: 177 | D181: 972 | E181: 0.7120057 | F181: 0.1425832 | G181: -0.3584161 | H181: -0.02281307 | I181: 0.1054347
A182: AGLA | B182: AUTO | C182: 178 | D182: 980 | E182: 0.7066145 | F182: 0.1262764 | G182: -0.3787675 | H182: -0.03250737 | I182: 0.1212175
A183: AGLA | B183: AUTO | C183: 179 | D183: 980 | E183: 0.6906253 | F183: 0.1037517 | G183: -0.3343744 | H183: -0.06132193 | I183: 0.07785093
A184: AGLA | B184: AUTO | C184: 180 | D184: 978 | E184: 0.6756285 | F184: 0.1411686 | G184: -0.3596221 | H184: -0.07418069 | I184: 0.06111575
A185: AGLA | B185: AUTO | C185: 181 | D185: 985 | E185: 0.6885206 | F185: 0.1012144 | G185: -0.3818477 | H185: 0.01023249 | I185: 0.1257623
A186: AGLA | B186: AUTO | C186: 182 | D186: 977 | E186: 0.6871278 | F186: 0.09509964 | G186: -0.3489019 | H186: -0.0262924 | I186: 0.04738722
A187: AGLA | B187: AUTO | C187: 183 | D187: 985 | E187: 0.688071 | F187: 0.08131309 | G187: -0.3978065 | H187: -0.03590291 | I187: 0.05249299
A188: AGLA | B188: AUTO | C188: 184 | D188: 977 | E188: 0.6596905 | F188: 0.1184636 | G188: -0.3692495 | H188: -0.02026539 | I188: 0.06587976
A189: AGLA | B189: AUTO | C189: 185 | D189: 977 | E189: 0.6837888 | F189: 0.07947271 | G189: -0.3561362 | H189: -0.04738552 | I189: 0.06879277
A190: AGLA | B190: AUTO | C190: 186 | D190: 984 | E190: 0.6556041 | F190: 0.03530459 | G190: -0.3685942 | H190: -0.03124225 | I190: 0.04929568
A191: AGLA | B191: AUTO | C191: 187 | D191: 976 | E191: 0.6897864 | F191: 0.09194579 | G191: -0.3930138 | H191: -0.04437786 | I191: 0.06160525
A192: AGLA | B192: AUTO | C192: 188 | D192: 978 | E192: 0.6815627 | F192: 0.04267682 | G192: -0.3599569 | H192: -0.04464172 | I192: 0.08842764
A193: AGLA | B193: AUTO | C193: 189 | D193: 980 | E193: 0.676277 | F193: 0.08878097 | G193: -0.390198 | H193: -0.01558641 | I193: 0.08225045
A194: AGLA | B194: AUTO | C194: 190 | D194: 979 | E194: 0.6514289 | F194: 0.03001101 | G194: -0.342358 | H194: -0.05432354 | I194: 0.06061591
A195: AGLA | B195: AUTO | C195: 191 | D195: 977 | E195: 0.6825116 | F195: 0.08577693 | G195: -0.3703978 | H195: 0.0281373 | I195: 0.1065404
A196: AGLA | B196: AUTO | C196: 192 | D196: 977 | E196: 0.7060064 | F196: 0.09170858 | G196: -0.3717157 | H196: 0.03315878 | I196: 0.09587664
A197: AGLA | B197: AUTO | C197: 193 | D197: 979 | E197: 0.6880426 | F197: 0.07665537 | G197: -0.4278369 | H197: -0.04636983 | I197: 0.05393373
A198: AGLA | B198: AUTO | C198: 194 | D198: 980 | E198: 0.692552 | F198: 0.0702979 | G198: -0.3397114 | H198: -0.06186476 | I198: 0.08547489
A199: AGLA | B199: AUTO | C199: 195 | D199: 983 | E199: 0.6772852 | F199: 0.1034963 | G199: -0.3325495 | H199: -0.003176454 | I199: 0.08525691
A200: AGLA | B200: AUTO | C200: 196 | D200: 976 | E200: 0.732958 | F200: 0.03854002 | G200: -0.363805 | H200: -0.09461467 | I200: 0.1424364
... 4300 more rows

Sheet ST5 - Cuticle proteins - all v1.1
A1: Supplementary Table 5: Cuticle proteins of Oncopeltus fasciatus, excerpt from OGS v 1.1 gff.
A2: gene_id | B2: gene_type | C2: transcript_owner | D2: transcript_scaffold | E2: transcript_start | F2: transcript_end | G2: transcript_strand | H2: transcript_type | I2: transcript_name | J2: transcript_id | K2: curation status
A3: OFAS000319 | B3: gene | C3: jbenoit | D3: Scaffold10 | E3: 636916 | F3: 640772 | G3: + | H3: mRNA | I3: Cuticle Protein Unclassified 1 | J3: OFAS000319-RA | K3: curated MAKER model
A4: OFAS000462 | B4: gene | C4: jbenoit | D4: Scaffold7 | E4: 564915 | F4: 571836 | G4: + | H4: mRNA | I4: Cuticle protein Unclassified 1 | J4: OFAS000462-RA | K4: curated MAKER model
A5: OFAS000675 | B5: gene | C5: jbenoit | D5: Scaffold24 | E5: 292220 | F5: 296416 | G5: + | H5: mRNA | I5: Cuticle Protein Unclassified 2 | J5: OFAS000675-RA | K5: curated MAKER model
A6: OFAS000933 | B6: gene | C6: jbenoit | D6: Scaffold42 | E6: 447838 | F6: 464934 | G6: + | H6: mRNA | I6: Cuticle Protein RR-2 1 | J6: OFAS000933-RA | K6: curated MAKER model
A7: OFAS001063 | B7: gene | C7: jbenoit | D7: Scaffold23 | E7: 188121 | F7: 189655 | G7: + | H7: mRNA | I7: Cuticle Protein CPAP1 1 | J7: OFAS001063-RA | K7: curated MAKER model
A8: OFAS001127 | B8: gene | C8: jbenoit | D8: Scaffold40 | E8: 1088184 | F8: 1094866 | G8: + | H8: mRNA | I8: Cuticle Protein RR-2 2 | J8: OFAS001127-RA | K8: curated MAKER model
A9: OFAS001130 | B9: gene | C9: jbenoit | D9: Scaffold40 | E9: 1123254 | F9: 1127985 | G9: + | H9: mRNA | I9: Cuticle Protein RR-2 3 | J9: OFAS001130-RA | K9: curated MAKER model
A10: OFAS001183 | B10: gene | C10: jbenoit | D10: Scaffold73 | E10: 1552 | F10: 5359 | G10: - | H10: mRNA | I10: Cuticle Protein RR-2 4 | J10: OFAS001183-RA | K10: curated MAKER model
A11: OFAS001184 | B11: gene | C11: jbenoit | D11: Scaffold73 | E11: 10577 | F11: 11775 | G11: + | H11: mRNA | I11: Cuticle Protein RR-2 5 | J11: OFAS001184-RA | K11: curated MAKER model
A12: OFAS001185 | B12: gene | C12: jbenoit | D12: Scaffold73 | E12: 144974 | F12: 163445 | G12: + | H12: mRNA | I12: Cuticle protein Unclassified 2 | J12: OFAS001185-RA | K12: curated MAKER model
A13: OFAS001483 | B13: gene | C13: jbenoit | D13: Scaffold75 | E13: 844095 | F13: 869138 | G13: - | H13: mRNA | I13: Cuticle Protein CPAP1 2 | J13: OFAS001483-RA | K13: curated MAKER model
A14: OFAS001698 | B14: gene | C14: jbenoit | D14: Scaffold43 | E14: 975825 | F14: 980109 | G14: - | H14: mRNA | I14: Cuticle Protein RR-2 6 | J14: OFAS001698-RA | K14: curated MAKER model
A15: OFAS001699 | B15: gene | C15: jbenoit | D15: Scaffold43 | E15: 998804 | F15: 1006542 | G15: - | H15: mRNA | I15: Cuticle Protein RR-2 7 | J15: OFAS001699-RA | K15: curated MAKER model
A16: OFAS001700 | B16: gene | C16: jbenoit | D16: Scaffold43 | E16: 1026009 | F16: 1033427 | G16: - | H16: mRNA | I16: Cuticle Protein RR-2 8 | J16: OFAS001700-RA | K16: curated MAKER model
A17: OFAS001745 | B17: gene | C17: jbenoit | D17: Scaffold87 | E17: 613351 | F17: 623092 | G17: - | H17: mRNA | I17: Cuticle protein Unclassified 3 | J17: OFAS001745-RA | K17: curated MAKER model
A18: OFAS001968 | B18: gene | C18: jbenoit | D18: Scaffold68 | E18: 914084 | F18: 928343 | G18: - | H18: mRNA | I18: Cuticle Protein CPAP1 3 | J18: OFAS001968-RA | K18: curated MAKER model
A19: OFAS002278 | B19: gene | C19: jbenoit | D19: Scaffold101 | E19: 729966 | F19: 755148 | G19: - | H19: mRNA | I19: Cuticle Protein CPAP1 4 | J19: OFAS002278-RA | K19: curated MAKER model
A20: OFAS002280 | B20: gene | C20: jbenoit | D20: Scaffold101 | E20: 894635 | F20: 896459 | G20: - | H20: mRNA | I20: Cuticle Protein CPAP1 5 | J20: OFAS002280-RA | K20: curated MAKER model
A21: OFAS003072 | B21: gene | C21: jbenoit | D21: Scaffold197 | E21: 44611 | F21: 51425 | G21: + | H21: mRNA | I21: Cuticle Protein RR-2 9 | J21: OFAS003072-RA | K21: curated MAKER model
A22: OFAS003084 | B22: gene | C22: jbenoit | D22: Scaffold197 | E22: 336972 | F22: 362230 | G22: - | H22: mRNA | I22: Cuticle Protein CPAP3 1 | J22: OFAS003084-RA | K22: curated MAKER model
A23: OFAS003687 | B23: gene | C23: jbenoit | D23: Scaffold264 | E23: 647662 | F23: 653350 | G23: - | H23: mRNA | I23: Cuticle Protein RR-2 10 | J23: OFAS003687-RA | K23: curated MAKER model
A24: OFAS003953 | B24: gene | C24: jbenoit | D24: Scaffold170 | E24: 75009 | F24: 93962 | G24: - | H24: mRNA | I24: Cuticle Protein Unclassified 3 | J24: OFAS003953-RA | K24: curated MAKER model
A25: OFAS003974 | B25: gene | C25: jbenoit | D25: Scaffold170 | E25: 616991 | F25: 619093 | G25: + | H25: mRNA | I25: Cuticle Protein Unclassified 4 | J25: OFAS003974-RA | K25: curated MAKER model
A26: OFAS004147 | B26: gene | C26: jbenoit | D26: Scaffold272 | E26: 502 | F26: 13147 | G26: + | H26: mRNA | I26: Cuticle Protein CPAP3 2 | J26: OFAS004147-RA | K26: curated MAKER model
A27: OFAS004148 | B27: gene | C27: jbenoit | D27: Scaffold272 | E27: 30624 | F27: 54218 | G27: + | H27: mRNA | I27: Cuticle Protein CPAP3 3 | J27: OFAS004148-RA | K27: curated MAKER model
A28: OFAS004471 | B28: gene | C28: jbenoit | D28: Scaffold180 | E28: 645390 | F28: 650276 | G28: + | H28: mRNA | I28: Cuticle protein Unclassified 4 | J28: OFAS004471-RA | K28: curated MAKER model
A29: OFAS004472 | B29: gene | C29: jbenoit | D29: Scaffold180 | E29: 674930 | F29: 679633 | G29: + | H29: mRNA | I29: Cuticle Protein RR-2 11 | J29: OFAS004472-RA | K29: curated MAKER model
A30: OFAS004861 | B30: gene | C30: jbenoit | D30: Scaffold150 | E30: 352836 | F30: 362637 | G30: + | H30: mRNA | I30: Cuticle Protein RR-2 12 | J30: OFAS004861-RA | K30: curated MAKER model
A31: OFAS004935 | B31: gene | C31: jbenoit | D31: Scaffold177 | E31: 407920 | F31: 423041 | G31: - | H31: mRNA | I31: Cuticle Protein Unclassified 5 | J31: OFAS004935-RA | K31: curated MAKER model
A32: OFAS004936 | B32: gene | C32: jbenoit | D32: Scaffold177 | E32: 431321 | F32: 432643 | G32: - | H32: mRNA | I32: Cuticle Protein Unclassified 6 | J32: OFAS004936-RA | K32: curated MAKER model
A33: OFAS005214 | B33: gene | C33: jbenoit | D33: Scaffold255 | E33: 637367 | F33: 639100 | G33: - | H33: mRNA | I33: Cuticle Protein RR-2 13 | J33: OFAS005214-RA | K33: curated MAKER model
A34: OFAS005292 | B34: gene | C34: jbenoit | D34: Scaffold376 | E34: 532985 | F34: 536348 | G34: + | H34: mRNA | I34: Cuticle Protein Unclassified 7 | J34: OFAS005292-RA | K34: curated MAKER model
A35: OFAS005480 | B35: gene | C35: jbenoit | D35: Scaffold373 | E35: 55336 | F35: 57960 | G35: + | H35: mRNA | I35: Cuticle Protein RR-2 14 | J35: OFAS005480-RA | K35: curated MAKER model
A36: OFAS005482 | B36: gene | C36: jbenoit | D36: Scaffold373 | E36: 81902 | F36: 84098 | G36: - | H36: mRNA | I36: Cuticle Protein RR-2 15 | J36: OFAS005482-RA | K36: curated MAKER model
A37: OFAS005484 | B37: gene | C37: jbenoit | D37: Scaffold373 | E37: 102944 | F37: 104799 | G37: - | H37: mRNA | I37: Cuticle Protein RR-2 16 | J37: OFAS005484-RA | K37: curated MAKER model
A38: OFAS005485 | B38: gene | C38: jbenoit | D38: Scaffold373 | E38: 116065 | F38: 117244 | G38: + | H38: mRNA | I38: Cuticle Protein RR-2 17 | J38: OFAS005485-RA | K38: curated MAKER model
A39: OFAS005486 | B39: gene | C39: jbenoit | D39: Scaffold373 | E39: 129920 | F39: 141232 | G39: - | H39: mRNA | I39: Cuticle Protein RR-2 18 | J39: OFAS005486-RA | K39: curated MAKER model
A40: OFAS005487 | B40: gene | C40: jbenoit | D40: Scaffold373 | E40: 152280 | F40: 158828 | G40: - | H40: mRNA | I40: Cuticle protein Unclassified 5 | J40: OFAS005487-RA | K40: curated MAKER model
A41: OFAS006270 | B41: gene | C41: jbenoit | D41: Scaffold499 | E41: 290978 | F41: 297439 | G41: - | H41: mRNA | I41: Cuticle protein Unclassified 6 | J41: OFAS006270-RA | K41: curated MAKER model
A42: OFAS006272 | B42: gene | C42: jbenoit | D42: Scaffold499 | E42: 408200 | F42: 425608 | G42: - | H42: mRNA | I42: Cuticle protein Unclassified 7 | J42: OFAS006272-RA | K42: curated MAKER model
A43: OFAS006295 | B43: gene | C43: jbenoit | D43: Scaffold360 | E43: 562291 | F43: 564299 | G43: - | H43: mRNA | I43: Cuticle protein Unclassified 8 | J43: OFAS006295-RA | K43: curated MAKER model
A44: OFAS006366 | B44: gene | C44: jbenoit | D44: Scaffold256 | E44: 14274 | F44: 15648 | G44: - | H44: mRNA | I44: Cuticle protein RR-1 1 | J44: OFAS006366-RA | K44: curated MAKER model
A45: OFAS006367 | B45: gene | C45: jbenoit | D45: Scaffold256 | E45: 99961 | F45: 114786 | G45: + | H45: mRNA | I45: Cuticle Protein RR-1 2 | J45: OFAS006367-RA | K45: curated MAKER model
A46: OFAS006368 | B46: gene | C46: jbenoit | D46: Scaffold256 | E46: 123317 | F46: 127611 | G46: + | H46: mRNA | I46: Cuticle protein RR-1 3 | J46: OFAS006368-RA | K46: curated MAKER model
A47: OFAS006369 | B47: gene | C47: jbenoit | D47: Scaffold256 | E47: 134693 | F47: 136958 | G47: + | H47: mRNA | I47: Cuticle protein RR-1 7 | J47: OFAS006369-RA | K47: curated MAKER model
A48: OFAS006370 | B48: gene | C48: jbenoit | D48: Scaffold256 | E48: 144663 | F48: 145474 | G48: + | H48: mRNA | I48: Cuticle protein RR-1 5 | J48: OFAS006370-RA | K48: curated MAKER model
A49: OFAS006371 | B49: gene | C49: jbenoit | D49: Scaffold256 | E49: 152736 | F49: 154455 | G49: + | H49: mRNA | I49: Cuticle protein RR-1 6 | J49: OFAS006371-RA | K49: curated MAKER model
A50: OFAS006372 | B50: gene | C50: jbenoit | D50: Scaffold256 | E50: 164968 | F50: 168111 | G50: + | H50: mRNA | I50: Cuticle protein RR-1 7 | J50: OFAS006372-RA | K50: curated MAKER model
A51: OFAS006465 | B51: gene | C51: jbenoit | D51: Scaffold251 | E51: 192682 | F51: 195064 | G51: + | H51: mRNA | I51: Cuticle Protein RR-2 19 | J51: OFAS006465-RA | K51: curated MAKER model
A52: OFAS006595 | B52: gene | C52: jbenoit | D52: Scaffold453 | E52: 288246 | F52: 291552 | G52: + | H52: mRNA | I52: Cuticle protein Unclassified 9 | J52: OFAS006595-RA | K52: curated MAKER model
A53: OFAS006950 | B53: gene | C53: jbenoit | D53: Scaffold559 | E53: 221232 | F53: 231028 | G53: + | H53: mRNA | I53: Cuticle protein Unclassified 10 | J53: OFAS006950-RA | K53: curated MAKER model
A54: OFAS006995 | B54: gene | C54: jbenoit | D54: Scaffold467 | E54: 379034 | F54: 382672 | G54: + | H54: mRNA | I54: Cuticle Protein RR-2 20 | J54: OFAS006995-RA | K54: curated MAKER model
A55: OFAS006997 | B55: gene | C55: jbenoit | D55: Scaffold467 | E55: 464317 | F55: 466984 | G55: + | H55: mRNA | I55: Cuticle Protein RR-2 21 | J55: OFAS006997-RA | K55: curated MAKER model
A56: OFAS006998 | B56: gene | C56: jbenoit | D56: Scaffold467 | E56: 486184 | F56: 492766 | G56: + | H56: mRNA | I56: Cuticle Protein RR-2 22 | J56: OFAS006998-RA | K56: curated MAKER model
A57: OFAS007196 | B57: gene | C57: jbenoit | D57: Scaffold526 | E57: 33479 | F57: 37702 | G57: - | H57: mRNA | I57: Cuticle Protein CPF 1 | J57: OFAS007196-RA | K57: curated MAKER model
A58: OFAS007199 | B58: gene | C58: jbenoit | D58: Scaffold526 | E58: 119137 | F58: 129151 | G58: + | H58: mRNA | I58: Cuticle Protein CPF 2 | J58: OFAS007199-RA | K58: curated MAKER model
A59: OFAS007201 | B59: gene | C59: jbenoit | D59: Scaffold526 | E59: 132994 | F59: 136472 | G59: + | H59: mRNA | I59: Cuticle Protein CPF 3 | J59: OFAS007201-RA | K59: curated MAKER model
A60: OFAS007202 | B60: gene | C60: jbenoit | D60: Scaffold526 | E60: 139864 | F60: 142256 | G60: - | H60: mRNA | I60: Cuticle Protein CPF 4 | J60: OFAS007202-RA | K60: curated MAKER model
A61: OFAS007203 | B61: gene | C61: jbenoit | D61: Scaffold526 | E61: 144910 | F61: 146944 | G61: + | H61: mRNA | I61: Cuticle Protein CPF 5 | J61: OFAS007203-RA | K61: curated MAKER model
A62: OFAS007204 | B62: gene | C62: jbenoit | D62: Scaffold526 | E62: 149433 | F62: 155939 | G62: - | H62: mRNA | I62: Cuticle Protein CPF 6 | J62: OFAS007204-RA | K62: curated MAKER model
A63: OFAS007206 | B63: gene | C63: jbenoit | D63: Scaffold526 | E63: 166056 | F63: 168220 | G63: - | H63: mRNA | I63: Cuticle Protein CPF 7 | J63: OFAS007206-RA | K63: curated MAKER model
A64: OFAS007228 | B64: gene | C64: jbenoit | D64: Scaffold338 | E64: 332525 | F64: 351451 | G64: - | H64: mRNA | I64: Cuticle protein Unclassified 11 | J64: OFAS007228-RA | K64: curated MAKER model
A65: OFAS007482 | B65: gene | C65: jbenoit | D65: Scaffold351 | E65: 286042 | F65: 304134 | G65: - | H65: mRNA | I65: Cuticle protein Unclassified 12 | J65: OFAS007482-RA | K65: curated MAKER model
A66: OFAS007718 | B66: gene | C66: jbenoit | D66: Scaffold810 | E66: 478165 | F66: 479646 | G66: + | H66: mRNA | I66: Cuticle protein Unclassified 13 | J66: OFAS007718-RA | K66: curated MAKER model
A67: OFAS007838 | B67: gene | C67: jbenoit | D67: Scaffold767 | E67: 422790 | F67: 424352 | G67: + | H67: mRNA | I67: Cuticle Protein Unclassified 8 | J67: OFAS007838-RA | K67: curated MAKER model
A68: OFAS008193 | B68: gene | C68: jbenoit | D68: Scaffold777 | E68: 80532 | F68: 88527 | G68: + | H68: mRNA | I68: Cuticle Protein CPAP1 6 | J68: OFAS008193-RA | K68: curated MAKER model
A69: OFAS008524 | B69: gene | C69: jbenoit | D69: Scaffold787 | E69: 18394 | F69: 25860 | G69: + | H69: mRNA | I69: Cuticle Protein RR-2 23 | J69: OFAS008524-RA | K69: curated MAKER model
A70: OFAS008525 | B70: gene | C70: jbenoit | D70: Scaffold787 | E70: 73603 | F70: 86613 | G70: + | H70: mRNA | I70: Cuticle Protein RR-2 24 | J70: OFAS008525-RA | K70: curated MAKER model
A71: OFAS009825 | B71: gene | C71: jbenoit | D71: Scaffold537 | E71: 330202 | F71: 339525 | G71: - | H71: mRNA | I71: Cuticle Protein CPAP3 4 | J71: OFAS009825-RA | K71: curated MAKER model
A72: OFAS010360 | B72: gene | C72: jbenoit | D72: Scaffold823 | E72: 204168 | F72: 213029 | G72: - | H72: mRNA | I72: Cuticle protein Unclassified 14 | J72: OFAS010360-RA | K72: curated MAKER model
A73: OFAS010361 | B73: gene | C73: jbenoit | D73: Scaffold823 | E73: 225494 | F73: 237075 | G73: - | H73: mRNA | I73: Cuticle protein Unclassified 15 | J73: OFAS010361-RA | K73: curated MAKER model
A74: OFAS010387 | B74: gene | C74: jbenoit | D74: Scaffold820 | E74: 297321 | F74: 316030 | G74: - | H74: mRNA | I74: Cuticle Protein RR-2 25 | J74: OFAS010387-RA | K74: curated MAKER model
A75: OFAS010581 | B75: gene | C75: jbenoit | D75: Scaffold808 | E75: 312389 | F75: 329150 | G75: - | H75: mRNA | I75: Cuticle Protein RR-2 26 | J75: OFAS010581-RA | K75: curated MAKER model
A76: OFAS010615 | B76: gene | C76: jbenoit | D76: Scaffold893 | E76: 305787 | F76: 308971 | G76: + | H76: mRNA | I76: Cuticle Protein Tweedle 1 | J76: OFAS010615-RA | K76: curated MAKER model
A77: OFAS010744 | B77: gene | C77: jbenoit | D77: Scaffold973 | E77: 2711 | F77: 8968 | G77: + | H77: mRNA | I77: Cuticle protein Unclassified 16 | J77: OFAS010744-RA | K77: curated MAKER model
A78: OFAS010745 | B78: gene | C78: jbenoit | D78: Scaffold973 | E78: 17371 | F78: 19702 | G78: + | H78: mRNA | I78: Cuticle Protein RR-2 27 | J78: OFAS010745-RA | K78: curated MAKER model
A79: OFAS010747 | B79: gene | C79: jbenoit | D79: Scaffold973 | E79: 44032 | F79: 46993 | G79: + | H79: mRNA | I79: Cuticle Protein Unclassified 17 | J79: OFAS010747-RA | K79: curated MAKER model
A80: OFAS010748 | B80: gene | C80: jbenoit | D80: Scaffold973 | E80: 53938 | F80: 58665 | G80: + | H80: mRNA | I80: Cuticle protein Unclassified 18 -partial | J80: OFAS010748-RA | K80: curated MAKER model
A81: OFAS010749 | B81: gene | C81: jbenoit | D81: Scaffold973 | E81: 65668 | F81: 69715 | G81: + | H81: mRNA | I81: Cuticle Protein RR-2 28 | J81: OFAS010749-RA | K81: curated MAKER model
A82: OFAS010750 | B82: gene | C82: jbenoit | D82: Scaffold973 | E82: 83698 | F82: 88697 | G82: + | H82: mRNA | I82: Cuticle protein Unclassified 19 | J82: OFAS010750-RA | K82: curated MAKER model
A83: OFAS012733 | B83: gene | C83: jbenoit | D83: Scaffold1535 | E83: 139281 | F83: 152550 | G83: - | H83: mRNA | I83: Cuticle Protein Unclassified 9 | J83: OFAS012733-RA | K83: curated MAKER model
A84: OFAS012930 | B84: gene | C84: jbenoit | D84: Scaffold1045 | E84: 57267 | F84: 64329 | G84: - | H84: mRNA | I84: Cuticle Protein CPAP1 7 | J84: OFAS012930-RA | K84: curated MAKER model
A85: OFAS013076 | B85: gene | C85: jbenoit | D85: Scaffold1472 | E85: 1403 | F85: 3023 | G85: - | H85: mRNA | I85: Cuticle Protein RR-2 29 | J85: OFAS013076-RA | K85: curated MAKER model
A86: OFAS013077 | B86: gene | C86: jbenoit | D86: Scaffold1472 | E86: 14273 | F86: 16142 | G86: - | H86: mRNA | I86: Cuticle Protein RR-2 30 | J86: OFAS013077-RA | K86: curated MAKER model
A87: OFAS013079 | B87: gene | C87: jbenoit | D87: Scaffold1472 | E87: 55995 | F87: 79410 | G87: - | H87: mRNA | I87: Cuticle protein Unclassified 20 | J87: OFAS013079-RA | K87: curated MAKER model
A88: OFAS013430 | B88: gene | C88: jbenoit | D88: Scaffold1519 | E88: 139699 | F88: 147038 | G88: - | H88: mRNA | I88: Cuticle Protein CPAP1 8 | J88: OFAS013430-RA | K88: curated MAKER model
A89: OFAS013672 | B89: gene | C89: jbenoit | D89: Scaffold1501 | E89: 170562 | F89: 226874 | G89: - | H89: mRNA | I89: Cuticle Protein CPAP1 9 | J89: OFAS013672-RA | K89: curated MAKER model
A90: OFAS013931 | B90: gene | C90: jbenoit | D90: Scaffold1240 | E90: 6782 | F90: 19597 | G90: + | H90: mRNA | I90: Cuticle Protein RR-2 31 | J90: OFAS013931-RA | K90: curated MAKER model
A91: OFAS014358 | B91: gene | C91: jbenoit | D91: Scaffold1262 | E91: 5474 | F91: 5851 | G91: + | H91: mRNA | I91: Cuticle protein RR-1 9 | J91: OFAS014358-RA | K91: curated MAKER model
A92: OFAS014359 | B92: gene | C92: jbenoit | D92: Scaffold1262 | E92: 21667 | F92: 28052 | G92: + | H92: mRNA | I92: Cuticle protein RR-1 10 | J92: OFAS014359-RA | K92: curated MAKER model
A93: OFAS014360 | B93: gene | C93: jbenoit | D93: Scaffold1262 | E93: 28929 | F93: 29963 | G93: + | H93: mRNA | I93: Cuticle protein Unclassified 21 | J93: OFAS014360-RA | K93: curated MAKER model
A94: OFAS014362 | B94: gene | C94: jbenoit | D94: Scaffold1262 | E94: 47625 | F94: 54173 | G94: + | H94: mRNA | I94: Cuticle protein Unclassified 22 | J94: OFAS014362-RA | K94: curated MAKER model
A95: OFAS014364 | B95: gene | C95: jbenoit | D95: Scaffold1262 | E95: 62932 | F95: 63780 | G95: + | H95: mRNA | I95: Cuticle protein Unclassified 23 | J95: OFAS014364-RA | K95: curated MAKER model
A96: OFAS014365 | B96: gene | C96: jbenoit | D96: Scaffold1262 | E96: 98425 | F96: 105452 | G96: + | H96: mRNA | I96: Cuticle protein RR-1 11 | J96: OFAS014365-RA | K96: curated MAKER model
A97: OFAS014892 | B97: gene | C97: jbenoit | D97: Scaffold1543 | E97: 118720 | F97: 119917 | G97: - | H97: mRNA | I97: Cuticle Protein Unclassified 10 | J97: OFAS014892-RA | K97: curated MAKER model
A98: OFAS015004 | B98: gene | C98: jbenoit | D98: Scaffold1897 | E98: 18002 | F98: 20973 | G98: + | H98: mRNA | I98: Cuticle Protein RR-2 32 | J98: OFAS015004-RA | K98: curated MAKER model
A99: OFAS015005 | B99: gene | C99: jbenoit | D99: Scaffold1897 | E99: 44230 | F99: 48994 | G99: + | H99: mRNA | I99: Cuticle Protein RR-2 33 | J99: OFAS015005-RA | K99: curated MAKER model
A100: OFAS015006 | B100: gene | C100: jbenoit | D100: Scaffold1897 | E100: 56605 | F100: 60517 | G100: + | H100: mRNA | I100: Cuticle Protein RR-2 34 | J100: OFAS015006-RA | K100: curated MAKER model
A101: OFAS015007 | B101: gene | C101: jbenoit | D101: Scaffold1897 | E101: 65103 | F101: 71776 | G101: + | H101: mRNA | I101: Cuticle Protein RR-2 35 | J101: OFAS015007-RA | K101: curated MAKER model
A102: OFAS015008 | B102: gene | C102: jbenoit | D102: Scaffold1897 | E102: 83811 | F102: 85160 | G102: + | H102: mRNA | I102: Cuticle Protein RR-2 36 | J102: OFAS015008-RA | K102: curated MAKER model
A103: OFAS015009 | B103: gene | C103: jbenoit | D103: Scaffold1897 | E103: 89700 | F103: 90970 | G103: + | H103: mRNA | I103: Cuticle Protein RR-2 37 | J103: OFAS015009-RA | K103: curated MAKER model
A104: OFAS015010 | B104: gene | C104: jbenoit | D104: Scaffold1897 | E104: 99607 | F104: 105557 | G104: - | H104: mRNA | I104: Cuticle Protein RR-2 38 | J104: OFAS015010-RA | K104: curated MAKER model
A105: OFAS015011 | B105: gene | C105: jbenoit | D105: Scaffold1897 | E105: 120409 | F105: 128096 | G105: + | H105: mRNA | I105: Cuticle Protein RR-2 39 | J105: OFAS015011-RA | K105: curated MAKER model
A106: OFAS015012 | B106: gene | C106: jbenoit | D106: Scaffold1897 | E106: 136984 | F106: 144689 | G106: + | H106: mRNA | I106: Cuticle Protein RR-2 40 | J106: OFAS015012-RA | K106: curated MAKER model
A107: OFAS015013 | B107: gene | C107: jbenoit | D107: Scaffold1897 | E107: 149976 | F107: 161061 | G107: + | H107: mRNA | I107: Cuticle Protein RR-2 41 | J107: OFAS015013-RA | K107: curated MAKER model
A108: OFAS015014 | B108: gene | C108: jbenoit | D108: Scaffold1897 | E108: 169192 | F108: 174332 | G108: + | H108: mRNA | I108: Cuticle Protein RR-2 42 | J108: OFAS015014-RA | K108: curated MAKER model
A109: OFAS015016 | B109: gene | C109: jbenoit | D109: Scaffold1897 | E109: 200004 | F109: 200565 | G109: - | H109: mRNA | I109: Cuticle Protein RR-2 43 | J109: OFAS015016-RA | K109: curated MAKER model
A110: OFAS015118 | B110: gene | C110: jbenoit | D110: Scaffold1583 | E110: 102164 | F110: 103768 | G110: - | H110: mRNA | I110: Cuticle Protein Tweedle 2 | J110: OFAS015118-RA | K110: curated MAKER model
A111: OFAS015135 | B111: gene | C111: jbenoit | D111: Scaffold1350 | E111: 178101 | F111: 195294 | G111: - | H111: mRNA | I111: Cuticle protein Unclassified 24 | J111: OFAS015135-RA | K111: curated MAKER model
A112: OFAS015341 | B112: gene | C112: jbenoit | D112: Scaffold1782 | E112: 75212 | F112: 77666 | G112: - | H112: mRNA | I112: Cuticle Protein Unclassified 11 | J112: OFAS015341-RA | K112: curated MAKER model
A113: OFAS015540 | B113: gene | C113: jbenoit | D113: Scaffold1877 | E113: 133496 | F113: 151666 | G113: - | H113: mRNA | I113: Cuticle Protein RR-2 44 | J113: OFAS015540-RA | K113: curated MAKER model
A114: OFAS015586 | B114: gene | C114: jbenoit | D114: Scaffold2073 | E114: 5574 | F114: 10262 | G114: - | H114: mRNA | I114: Cuticle protein RR-1 13 | J114: OFAS015586-RA | K114: curated MAKER model
A115: OFAS015687 | B115: gene | C115: jbenoit | D115: Scaffold1861 | E115: 8061 | F115: 14036 | G115: - | H115: mRNA | I115: Cuticle Protein RR-2 45 | J115: OFAS015687-RA | K115: curated MAKER model
A116: OFAS015688 | B116: gene | C116: jbenoit | D116: Scaffold1861 | E116: 20807 | F116: 23426 | G116: - | H116: mRNA | I116: Cuticle Protein RR-2 46 | J116: OFAS015688-RA | K116: curated MAKER model
A117: OFAS015689 | B117: gene | C117: jbenoit | D117: Scaffold1861 | E117: 25036 | F117: 26344 | G117: + | H117: mRNA | I117: Cuticle Protein RR-2 47 | J117: OFAS015689-RA | K117: curated MAKER model
A118: OFAS015690 | B118: gene | C118: jbenoit | D118: Scaffold1861 | E118: 28034 | F118: 30780 | G118: - | H118: mRNA | I118: Cuticle Protein RR-2 48 | J118: OFAS015690-RA | K118: curated MAKER model
A119: OFAS015691 | B119: gene | C119: jbenoit | D119: Scaffold1861 | E119: 31861 | F119: 33386 | G119: - | H119: mRNA | I119: Cuticle Protein RR-2 49 | J119: OFAS015691-RA | K119: curated MAKER model
A120: OFAS015692 | B120: gene | C120: jbenoit | D120: Scaffold1861 | E120: 35966 | F120: 37324 | G120: + | H120: mRNA | I120: Cuticle Protein RR-2 50 | J120: OFAS015692-RA | K120: curated MAKER model
A121: OFAS015693 | B121: gene | C121: jbenoit | D121: Scaffold1861 | E121: 43666 | F121: 45381 | G121: - | H121: mRNA | I121: Cuticle Protein RR-2 51 | J121: OFAS015693-RA | K121: curated MAKER model
A122: OFAS015694 | B122: gene | C122: jbenoit | D122: Scaffold1861 | E122: 55800 | F122: 57965 | G122: - | H122: mRNA | I122: Cuticle Protein RR-2 52 | J122: OFAS015694-RA | K122: curated MAKER model
A123: OFAS015695 | B123: gene | C123: jbenoit | D123: Scaffold1861 | E123: 62821 | F123: 63820 | G123: + | H123: mRNA | I123: Cuticle Protein RR-2 53 | J123: OFAS015695-RA | K123: curated MAKER model
A124: OFAS015696 | B124: gene | C124: jbenoit | D124: Scaffold1861 | E124: 69481 | F124: 70738 | G124: + | H124: mRNA | I124: Cuticle Protein RR-2 54 | J124: OFAS015696-RA | K124: curated MAKER model
A125: OFAS015697 | B125: gene | C125: jbenoit | D125: Scaffold1861 | E125: 73984 | F125: 78667 | G125: - | H125: mRNA | I125: Cuticle Protein RR-2 55 | J125: OFAS015697-RA | K125: curated MAKER model
A126: OFAS015699 | B126: gene | C126: jbenoit | D126: Scaffold1861 | E126: 117026 | F126: 123588 | G126: - | H126: mRNA | I126: Cuticle Protein RR-2 56 | J126: OFAS015699-RA | K126: curated MAKER model
A127: OFAS015700 | B127: gene | C127: jbenoit | D127: Scaffold1861 | E127: 127968 | F127: 128435 | G127: - | H127: mRNA | I127: Cuticle Protein RR-2 57 | J127: OFAS015700-RA | K127: curated MAKER model
A128: OFAS015701 | B128: gene | C128: jbenoit | D128: Scaffold1861 | E128: 139103 | F128: 140193 | G128: + | H128: mRNA | I128: Cuticle Protein RR-2 58 | J128: OFAS015701-RA | K128: curated MAKER model
A129: OFAS015702 | B129: gene | C129: jbenoit | D129: Scaffold1861 | E129: 143525 | F129: 154429 | G129: - | H129: mRNA | I129: Cuticle Protein RR-2 59 | J129: OFAS015702-RA | K129: curated MAKER model
A130: OFAS015703 | B130: gene | C130: jbenoit | D130: Scaffold1861 | E130: 161076 | F130: 161995 | G130: - | H130: mRNA | I130: Cuticle Protein RR-2 60 | J130: OFAS015703-RA | K130: curated MAKER model
A131: OFAS015908 | B131: gene | C131: jbenoit | D131: Scaffold1650 | E131: 53577 | F131: 61328 | G131: + | H131: mRNA | I131: Cuticle Protein RR-2 61 | J131: OFAS015908-RA | K131: curated MAKER model
A132: OFAS016244 | B132: gene | C132: jbenoit | D132: Scaffold1792 | E132: 102799 | F132: 110582 | G132: - | H132: mRNA | I132: Cuticle Protein Unclassified 12 | J132: OFAS016244-RA | K132: curated MAKER model
A133: OFAS016596 | B133: gene | C133: jbenoit | D133: Scaffold1651 | E133: 34593 | F133: 47418 | G133: - | H133: mRNA | I133: cuticular protein RR-3 motif 1 | J133: OFAS016596-RA | K133: curated MAKER model
A134: OFAS016751 | B134: gene | C134: jbenoit | D134: Scaffold2024 | E134: 71995 | F134: 76260 | G134: + | H134: mRNA | I134: Cuticle protein RR-1 14 | J134: OFAS016751-RA | K134: curated MAKER model
A135: OFAS016752 | B135: gene | C135: jbenoit | D135: Scaffold2024 | E135: 91129 | F135: 102481 | G135: + | H135: mRNA | I135: Cuticle protein RR-1 15 | J135: OFAS016752-RA | K135: curated MAKER model
A136: OFAS016874 | B136: gene | C136: jbenoit | D136: Scaffold1865 | E136: 92568 | F136: 93368 | G136: - | H136: mRNA | I136: Cuticle Protein RR-2 62 | J136: OFAS016874-RA | K136: curated MAKER model
A137: OFAS016875 | B137: gene | C137: jbenoit | D137: Scaffold1865 | E137: 116610 | F137: 117337 | G137: + | H137: mRNA | I137: Cuticle Protein RR-2 63 | J137: OFAS016875-RA | K137: curated MAKER model
A138: OFAS017072 | B138: gene | C138: jbenoit | D138: Scaffold2872 | E138: 52199 | F138: 68854 | G138: - | H138: mRNA | I138: Cuticle Protein CPAP1 10 -partial | J138: OFAS017072-RA | K138: curated MAKER model
A139: OFAS017179 | B139: gene | C139: jbenoit | D139: Scaffold2258 | E139: 57902 | F139: 63697 | G139: + | H139: mRNA | I139: Cuticle protein RR-1 16 | J139: OFAS017179-RA | K139: curated MAKER model
A140: OFAS017180 | B140: gene | C140: jbenoit | D140: Scaffold2258 | E140: 88715 | F140: 97432 | G140: + | H140: mRNA | I140: Cuticle protein RR-1 17 -partial | J140: OFAS017180-RA | K140: curated MAKER model
A141: OFAS017204 | B141: gene | C141: jbenoit | D141: Scaffold2180 | E141: 33031 | F141: 38758 | G141: - | H141: mRNA | I141: Cuticle protein RR-1 18 | J141: OFAS017204-RA | K141: curated MAKER model
A142: OFAS017205 | B142: gene | C142: jbenoit | D142: Scaffold2180 | E142: 46406 | F142: 53563 | G142: - | H142: mRNA | I142: Cuticle protein RR-1 19 | J142: OFAS017205-RA | K142: curated MAKER model
A143: OFAS017319 | B143: gene | C143: jbenoit | D143: Scaffold2440 | E143: 11357 | F143: 14986 | G143: + | H143: mRNA | I143: Cuticle protein RR-1 20 | J143: OFAS017319-RA | K143: curated MAKER model
A144: OFAS017320 | B144: gene | C144: jbenoit | D144: Scaffold2440 | E144: 29081 | F144: 31237 | G144: - | H144: mRNA | I144: Cuticle protein RR-1 21 | J144: OFAS017320-RA | K144: curated MAKER model
A145: OFAS017321 | B145: gene | C145: jbenoit | D145: Scaffold2440 | E145: 58795 | F145: 64334 | G145: + | H145: mRNA | I145: Cuticle protein RR-1 22 | J145: OFAS017321-RA | K145: curated MAKER model
A146: OFAS017322 | B146: gene | C146: jbenoit | D146: Scaffold2440 | E146: 96542 | F146: 115571 | G146: + | H146: mRNA | I146: Cuticle protein RR-1 23 | J146: OFAS017322-RA | K146: curated MAKER model
A147: OFAS017567 | B147: gene | C147: jbenoit | D147: Scaffold2581 | E147: 40137 | F147: 48782 | G147: + | H147: mRNA | I147: Cuticle protein RR-1 24 | J147: OFAS017567-RA | K147: curated MAKER model
A148: OFAS017667 | B148: gene | C148: jbenoit | D148: Scaffold2578 | E148: 31784 | F148: 35251 | G148: - | H148: mRNA | I148: Cuticle Protein RR-2 64 | J148: OFAS017667-RA | K148: curated MAKER model
A149: OFAS017668 | B149: gene | C149: jbenoit | D149: Scaffold2578 | E149: 42053 | F149: 46959 | G149: + | H149: mRNA | I149: Cuticle Protein RR-2 65 | J149: OFAS017668-RA | K149: curated MAKER model
A150: OFAS017670 | B150: gene | C150: jbenoit | D150: Scaffold2578 | E150: 76715 | F150: 80352 | G150: - | H150: mRNA | I150: Cuticle Protein RR-2 66 | J150: OFAS017670-RA | K150: curated MAKER model
A151: OFAS017671 | B151: gene | C151: jbenoit | D151: Scaffold2578 | E151: 89492 | F151: 93473 | G151: + | H151: mRNA | I151: Cuticle Protein RR-2 67 | J151: OFAS017671-RA | K151: curated MAKER model
A152: OFAS017679 | B152: gene | C152: jbenoit | D152: Scaffold2719 | E152: 20179 | F152: 20754 | G152: - | H152: mRNA | I152: cuticular protein RR-2 motif 5 | J152: OFAS017679-RA | K152: curated MAKER model
A153: OFAS017862 | B153: gene | C153: jbenoit | D153: Scaffold2662 | E153: 40650 | F153: 49403 | G153: + | H153: mRNA | I153: Cuticle protein RR-1 25 -partial | J153: OFAS017862-RA | K153: curated MAKER model
A154: OFAS017863 | B154: gene | C154: jbenoit | D154: Scaffold2662 | E154: 59985 | F154: 60864 | G154: + | H154: mRNA | I154: Cuticle protein RR-1 26 | J154: OFAS017863-RA | K154: curated MAKER model
A155: OFAS018002 | B155: gene | C155: jbenoit | D155: Scaffold2967 | E155: 48149 | F155: 54928 | G155: + | H155: mRNA | I155: Cuticle protein Unclassified 25 | J155: OFAS018002-RA | K155: curated MAKER model
A156: OFAS018222 | B156: gene | C156: jbenoit | D156: Scaffold2897 | E156: 47652 | F156: 50275 | G156: + | H156: mRNA | I156: Cuticle Protein RR-2 68 | J156: OFAS018222-RA | K156: curated MAKER model
A157: OFAS018223 | B157: gene | C157: jbenoit | D157: Scaffold2897 | E157: 54797 | F157: 59232 | G157: - | H157: mRNA | I157: Cuticle Protein RR-2 69 | J157: OFAS018223-RA | K157: curated MAKER model
A158: OFAS018224 | B158: gene | C158: jbenoit | D158: Scaffold2897 | E158: 63106 | F158: 67683 | G158: + | H158: mRNA | I158: Cuticle Protein RR-2 70 | J158: OFAS018224-RA | K158: curated MAKER model
A159: OFAS018355 | B159: gene | C159: jbenoit | D159: Scaffold3109 | E159: 15507 | F159: 33048 | G159: + | H159: mRNA | I159: Cuticle Protein RR-2 71 | J159: OFAS018355-RA | K159: curated MAKER model
A160: OFAS018356 | B160: gene | C160: jbenoit | D160: Scaffold3109 | E160: 40300 | F160: 43976 | G160: + | H160: mRNA | I160: Cuticle Protein RR-2 72 | J160: OFAS018356-RA | K160: curated MAKER model
A161: OFAS018357 | B161: gene | C161: jbenoit | D161: Scaffold3109 | E161: 46144 | F161: 46909 | G161: - | H161: mRNA | I161: Cuticle Protein RR-2 73 | J161: OFAS018357-RA | K161: curated MAKER model
A162: OFAS018358 | B162: gene | C162: jbenoit | D162: Scaffold3109 | E162: 60898 | F162: 62191 | G162: + | H162: mRNA | I162: Cuticle Protein RR-2 74 | J162: OFAS018358-RA | K162: curated MAKER model
A163: OFAS018381 | B163: gene | C163: jbenoit | D163: Scaffold3491 | E163: 44 | F163: 28758 | G163: + | H163: mRNA | I163: Cuticle Protein CPAP1 11 | J163: OFAS018381-RA | K163: curated MAKER model
A164: OFAS018450 | B164: gene | C164: jbenoit | D164: Scaffold3507 | E164: 34183 | F164: 42975 | G164: - | H164: mRNA | I164: Cuticle Protein RR-2 75 | J164: OFAS018450-RA | K164: curated MAKER model
A165: OFAS018453 | B165: gene | C165: jbenoit | D165: Scaffold3177 | E165: 377 | F165: 18817 | G165: - | H165: mRNA | I165: Cuticle protein Unclassified 26 | J165: OFAS018453-RA | K165: curated MAKER model
A166: OFAS018610 | B166: gene | C166: jbenoit | D166: Scaffold3884 | E166: 15670 | F166: 28272 | G166: - | H166: mRNA | I166: cuticular protein analogous to peritrophins 1- G2 | J166: OFAS018610-RA | K166: curated MAKER model
A167: OFAS018723 | B167: gene | C167: jbenoit | D167: Scaffold4368 | E167: 11002 | F167: 15861 | G167: - | H167: mRNA | I167: cuticular protein RR-1 motif 4 | J167: OFAS018723-RA | K167: curated MAKER model
A168: OFAS018904 | B168: gene | C168: jbenoit | D168: Scaffold5460 | E168: 19558 | F168: 25661 | G168: - | H168: mRNA | I168: Cuticle protein RR-1 28 -partial | J168: OFAS018904-RA | K168: curated MAKER model
A169: OFAS018963 | B169: gene | C169: jbenoit | D169: Scaffold4353 | E169: 940 | F169: 25284 | G169: + | H169: mRNA | I169: Cuticle Protein CPAP3 6 | J169: OFAS018963-RA | K169: curated MAKER model
A170: OFAS018967 | B170: gene | C170: jbenoit | D170: Scaffold4486 | E170: 8972 | F170: 9703 | G170: - | H170: mRNA | I170: Cuticle protein RR-1 29 | J170: OFAS018967-RA | K170: curated MAKER model
A171: OFAS019082 | B171: gene | C171: jbenoit | D171: Scaffold6238 | E171: 96 | F171: 3455 | G171: - | H171: mRNA | I171: Cuticle protein Unclassified 27 | J171: OFAS019082-RA | K171: curated MAKER model
A172: OFAS019145 | B172: gene | C172: jbenoit | D172: Scaffold5289 | E172: 4830 | F172: 12255 | G172: + | H172: mRNA | I172: Cuticle protein Unclassified 28 | J172: OFAS019145-RA | K172: curated MAKER model
A173: OFAS019149 | B173: gene | C173: jbenoit | D173: Scaffold4871 | E173: 3616 | F173: 7952 | G173: + | H173: mRNA | I173: Cuticle protein Unclassified 29 | J173: OFAS019149-RA | K173: curated MAKER model
A174: OFAS019420 | B174: gene | C174: jbenoit | D174: Scaffold6776 | E174: 3090 | F174: 7344 | G174: + | H174: mRNA | I174: Cuticle protein Tweedle 3 -partial | J174: OFAS019420-RA | K174: curated MAKER model
A175: OFAS019537 | B175: gene | C175: jbenoit | D175: Scaffold8538 | E175: 138 | F175: 1239 | G175: + | H175: mRNA | I175: Cuticle protein RR-1 30 | J175: OFAS019537-RA | K175: curated MAKER model
A176: OFAS019591 | B176: gene | C176: jbenoit | D176: Scaffold8884 | E176: 5304 | F176: 5519 | G176: - | H176: mRNA | I176: Cuticle Protein CPAP3 7 | J176: OFAS019591-RA | K176: curated MAKER model
A177: OFAS025099 | B177: gene | C177: jbenoit | D177: Scaffold1350 | E177: 144163 | F177: 155923 | G177: - | H177: mRNA | I177: Cuticle protein RR-1 12 | J177: OFAS025099-RA | K177: de novo model
A178: OFAS025135 | B178: gene | C178: jbenoit | D178: Scaffold1213 | E178: 86874 | F178: 94390 | G178: - | H178: mRNA | I178: Cuticle protein RR-1 8 | J178: OFAS025135-RA | K178: de novo model
A179: OFAS025207 | B179: gene | C179: jbenoit | D179: Scaffold3220 | E179: 29495 | F179: 46992 | G179: - | H179: mRNA | I179: Cuticle protein RR-1 27 -partial | J179: OFAS025207-RA | K179: de novo model
A180: OFAS025251 | B180: gene | C180: jbenoit | D180: Scaffold1678 | E180: 40479 | F180: 43528 | G180: - | H180: mRNA | I180: Cuticle Protein CPAP3 5 | J180: OFAS025251-RA | K180: de novo model

Sheet ST6 - Chemoreceptors - all v1.1
A1: Supplementary Table 6: Chemoreceptors of Oncopeltus fasciatus, excerpt from OGS v 1.1 gff.
A2: gene_id | B2: gene_type | C2: transcript_owner | D2: transcript_scaffold | E2: transcript_start | F2: transcript_end | G2: transcript_strand | H2: transcript_type | I2: transcript_name | J2: transcript_id | K2: curation status | L2: Chemoreceptor class
A3: OFAS000730 | B3: gene | C3: ivargas | D3: Scaffold27 | E3: 222113 | F3: 234162 | G3: - | H3: mRNA | I3: Ofas-Gustatory receptor 99-RA | J3: OFAS000730-RB | K3: curated MAKER model | L3: gustatory
A4: OFAS000730 | B4: gene | C4: ivargas | D4: Scaffold27 | E4: 222113 | F4: 228122 | G4: - | H4: mRNA | I4: Ofas-Gustatory receptor 99-RB | J4: OFAS000730-RA | K4: curated MAKER model | L4: gustatory
A5: OFAS000913 | B5: gene | C5: kpanfilio | D5: Scaffold64 | E5: 825889 | F5: 831727 | G5: - | H5: mRNA | I5: Ofas-Gustatory receptor 46 | J5: OFAS000913-RA | K5: curated MAKER model | L5: gustatory
A6: OFAS002338 | B6: gene | C6: kpanfilio | D6: Scaffold123 | E6: 589380 | F6: 607295 | G6: - | H6: mRNA | I6: Ofas-Gustatory receptor 7-RA | J6: OFAS002338-RB | K6: curated MAKER model | L6: gustatory
A7: OFAS002338 | B7: gene | C7: kpanfilio | D7: Scaffold123 | E7: 589380 | F7: 607295 | G7: - | H7: mRNA | I7: Ofas-Gustatory receptor 7-RB | J7: OFAS002338-RA | K7: curated MAKER model | L7: gustatory
A8: OFAS003821 | B8: gene | C8: kpanfilio | D8: Scaffold246 | E8: 439047 | F8: 457117 | G8: + | H8: mRNA | I8: ionotropic receptor 21-like | J8: OFAS003821-RA | K8: curated MAKER model | L8: ionotropic
A9: OFAS004794 | B9: gene | C9: kpanfilio | D9: Scaffold292 | E9: 533806 | F9: 547233 | G9: + | H9: mRNA | I9: Ofas-Gustatory receptor 12 | J9: OFAS004794-RA | K9: curated MAKER model | L9: gustatory
A10: OFAS005387 | B10: gene | C10: ivargas | D10: Scaffold313 | E10: 283186 | F10: 294627 | G10: - | H10: mRNA | I10: Ofas-Gustatory receptor 52 | J10: OFAS005387-RA | K10: curated MAKER model | L10: gustatory
A11: OFAS005850 | B11: gene | C11: kpanfilio | D11: Scaffold382 | E11: 411136 | F11: 437575 | G11: - | H11: mRNA | I11: Ofas-Gustatory receptor 21-RA | J11: OFAS005850-RB | K11: curated MAKER model | L11: gustatory
A12: OFAS005850 | B12: gene | C12: kpanfilio | D12: Scaffold382 | E12: 411027 | F12: 429413 | G12: - | H12: mRNA | I12: Ofas-Gustatory receptor 21-RB | J12: OFAS005850-RD | K12: curated MAKER model | L12: gustatory
A13: OFAS005850 | B13: gene | C13: kpanfilio | D13: Scaffold382 | E13: 411027 | F13: 425297 | G13: - | H13: mRNA | I13: Ofas-Gustatory receptor 21-RC | J13: OFAS005850-RC | K13: curated MAKER model | L13: gustatory
A14: OFAS005850 | B14: gene | C14: kpanfilio | D14: Scaffold382 | E14: 411136 | F14: 419330 | G14: - | H14: mRNA | I14: Ofas-Gustatory receptor 21-RD | J14: OFAS005850-RA | K14: curated MAKER model | L14: gustatory
A15: OFAS007928 | B15: gene | C15: kpanfilio | D15: Scaffold525 | E15: 150018 | F15: 156648 | G15: + | H15: mRNA | I15: Ofas-Gustatory receptor 84 | J15: OFAS007928-RA | K15: curated MAKER model | L15: gustatory
A16: OFAS007931 | B16: gene | C16: kpanfilio | D16: Scaffold525 | E16: 415689 | F16: 425191 | G16: + | H16: mRNA | I16: Ofas-Gustatory receptor 88-RA | J16: OFAS007931-RB | K16: curated MAKER model | L16: gustatory
A17: OFAS007931 | B17: gene | C17: kpanfilio | D17: Scaffold525 | E17: 419649 | F17: 425191 | G17: + | H17: mRNA | I17: Ofas-Gustatory receptor 88-RB | J17: OFAS007931-RA | K17: curated MAKER model | L17: gustatory
A18: OFAS008798 | B18: gene | C18: kpanfilio | D18: Scaffold696 | E18: 255082 | F18: 257456 | G18: + | H18: mRNA | I18: Ofas-Gustatory receptor 97 | J18: OFAS008798-RA | K18: curated MAKER model | L18: gustatory
A19: OFAS009411 | B19: gene | C19: kpanfilio | D19: Scaffold576 | E19: 138689 | F19: 188206 | G19: + | H19: mRNA | I19: ionotropic glutamate receptor kainate 2-like-RA | J19: OFAS009411-RA | K19: curated MAKER model | L19: ionotropic
A20: OFAS009411 | B20: gene | C20: kpanfilio | D20: Scaffold576 | E20: 138689 | F20: 188206 | G20: + | H20: mRNA | I20: ionotropic glutamate receptor kainate 2-like-RB | J20: OFAS009411-RB | K20: curated MAKER model | L20: ionotropic
A21: OFAS010685 | B21: gene | C21: kpanfilio | D21: Scaffold998 | E21: 209549 | F21: 216182 | G21: + | H21: mRNA | I21: Ofas-Gustatory receptor 80 | J21: OFAS010685-RA | K21: curated MAKER model | L21: gustatory
A22: OFAS010847 | B22: gene | C22: kpanfilio | D22: Scaffold1025 | E22: 220608 | F22: 232038 | G22: + | H22: mRNA | I22: Ofas-Gustatory receptor 2 | J22: OFAS010847-RA | K22: curated MAKER model | L22: gustatory
A23: OFAS012372 | B23: gene | C23: ivargas | D23: Scaffold1145 | E23: 42561 | F23: 54219 | G23: - | H23: mRNA | I23: Ofas-Gustatory receptor 45-RA | J23: OFAS012372-RB | K23: curated MAKER model | L23: gustatory
A24: OFAS012372 | B24: gene | C24: kpanfilio | D24: Scaffold1145 | E24: 42561 | F24: 50843 | G24: - | H24: mRNA | I24: Ofas-Gustatory receptor 45-RB | J24: OFAS012372-RA | K24: curated MAKER model | L24: gustatory
A25: OFAS013019 | B25: gene | C25: ivargas | D25: Scaffold1407 | E25: 172572 | F25: 183437 | G25: + | H25: mRNA | I25: Ofas-Gustatory receptor 64 -partial | J25: OFAS013019-RA | K25: curated MAKER model | L25: gustatory
A26: OFAS013199 | B26: gene | C26: kpanfilio | D26: Scaffold957 | E26: 116249 | F26: 138461 | G26: + | H26: mRNA | I26: Ofas-Gustatory receptor 8 -partial | J26: OFAS013199-RA | K26: curated MAKER model | L26: gustatory
A27: OFAS013505 | B27: gene | C27: kpanfilio | D27: Scaffold1031 | E27: 8674 | F27: 34886 | G27: + | H27: mRNA | I27: ionotropic receptor 25-like -part 2 of 3 (Exons 4%2C 7%2C 9-11%2C 13-16) | J27: OFAS013505-RA | K27: curated MAKER model | L27: ionotropic
A28: OFAS013515 | B28: gene | C28: ivargas | D28: Scaffold1232 | E28: 17918 | F28: 31245 | G28: - | H28: mRNA | I28: Odorant receptor putative | J28: OFAS013515-RA | K28: curated MAKER model | L28: odorant
A29: OFAS013887 | B29: gene | C29: ivargas | D29: Scaffold2156 | E29: 76114 | F29: 106164 | G29: + | H29: mRNA | I29: Ofas-Gustatory receptor 94-RA | J29: OFAS013887-RA | K29: curated MAKER model | L29: gustatory
A30: OFAS013887 | B30: gene | C30: ivargas | D30: Scaffold2156 | E30: 78972 | F30: 106164 | G30: + | H30: mRNA | I30: Ofas-Gustatory receptor 94-RB | J30: OFAS013887-RB | K30: curated MAKER model | L30: gustatory
A31: OFAS014163 | B31: gene | C31: ivargas | D31: Scaffold1391 | E31: 181478 | F31: 191077 | G31: - | H31: mRNA | I31: Odorant receptor putative | J31: OFAS014163-RA | K31: curated MAKER model | L31: odorant
A32: OFAS014262 | B32: gene | C32: kpanfilio | D32: Scaffold1752 | E32: 38628 | F32: 48693 | G32: + | H32: mRNA | I32: Ofas-Gustatory receptor 17 | J32: OFAS014262-RA | K32: curated MAKER model | L32: gustatory
A33: OFAS014342 | B33: gene | C33: kpanfilio | D33: Scaffold1775 | E33: 66599 | F33: 80294 | G33: + | H33: mRNA | I33: Ofas-Gustatory receptor 55 -partial | J33: OFAS014342-RA | K33: curated MAKER model | L33: gustatory
A34: OFAS015205 | B34: gene | C34: kpanfilio | D34: Scaffold1945 | E34: 58084 | F34: 72451 | G34: + | H34: mRNA | I34: Ofas-Gustatory receptor 11 | J34: OFAS015205-RA | K34: curated MAKER model | L34: gustatory
A35: OFAS015461 | B35: gene | C35: ivargas | D35: Scaffold2123 | E35: 160257 | F35: 174496 | G35: + | H35: mRNA | I35: Ofas-Gustatory receptor 48 | J35: OFAS015461-RA | K35: curated MAKER model | L35: gustatory
A36: OFAS016042 | B36: gene | C36: kpanfilio | D36: Scaffold1905 | E36: 373 | F36: 13582 | G36: + | H36: mRNA | I36: Ofas-Gustatory receptor 82-RA | J36: OFAS016042-RB | K36: curated MAKER model | L36: gustatory
A37: OFAS016042 | B37: gene | C37: kpanfilio | D37: Scaffold1905 | E37: 2908 | F37: 13582 | G37: + | H37: mRNA | I37: Ofas-Gustatory receptor 82-RB | J37: OFAS016042-RA | K37: curated MAKER model | L37: gustatory
A38: OFAS016042 | B38: gene | C38: kpanfilio | D38: Scaffold1905 | E38: 7540 | F38: 13582 | G38: + | H38: mRNA | I38: Ofas-Gustatory receptor 82-RC -partial | J38: OFAS016042-RC | K38: curated MAKER model | L38: gustatory
A39: OFAS016250 | B39: gene | C39: kpanfilio | D39: Scaffold1879 | E39: 78576 | F39: 88514 | G39: - | H39: mRNA | I39: ionotropic receptor 75-like | J39: OFAS016250-RA | K39: curated MAKER model | L39: ionotropic
A40: OFAS018192 | B40: gene | C40: kpanfilio | D40: Scaffold3721 | E40: 23227 | F40: 49247 | G40: + | H40: mRNA | I40: Odorant receptor | J40: OFAS018192-RA | K40: curated MAKER model | L40: odorant
A41: OFAS025001 | B41: gene | C41: ivargas | D41: Scaffold79 | E41: 492052 | F41: 518280 | G41: + | H41: mRNA | I41: Ofas-Gustatory receptor 98-RA | J41: OFAS025001-RC | K41: de novo model | L41: gustatory
A42: OFAS025001 | B42: gene | C42: ivargas | D42: Scaffold79 | E42: 496280 | F42: 518280 | G42: + | H42: mRNA | I42: Ofas-Gustatory receptor 98-RB | J42: OFAS025001-RB | K42: de novo model | L42: gustatory
A43: OFAS025001 | B43: gene | C43: ivargas | D43: Scaffold79 | E43: 501537 | F43: 518280 | G43: + | H43: mRNA | I43: Ofas-Gustatory receptor 98-RD | J43: OFAS025001-RA | K43: de novo model | L43: gustatory
A44: OFAS025001 | B44: gene | C44: ivargas | D44: Scaffold79 | E44: 504819 | F44: 518280 | G44: + | H44: mRNA | I44: Ofas-Gustatory receptor 98-RE | J44: OFAS025001-RD | K44: de novo model | L44: gustatory
A45: OFAS025008 | B45: gene | C45: kpanfilio | D45: Scaffold409 | E45: 399250 | F45: 409720 | G45: - | H45: mRNA | I45: Ofas-Gustatory receptor 14 | J45: OFAS025008-RA | K45: de novo model | L45: gustatory
A46: OFAS025009 | B46: gene | C46: kpanfilio | D46: Scaffold86 | E46: 371069 | F46: 377744 | G46: - | H46: mRNA | I46: Ofas-Gustatory receptor 78 -partial | J46: OFAS025009-RA | K46: de novo model | L46: gustatory
A47: OFAS025011 | B47: gene | C47: ivargas | D47: Scaffold2307 | E47: 14005 | F47: 27191 | G47: + | H47: mRNA | I47: Ofas-Gustatory receptor 93 | J47: OFAS025011-RA | K47: de novo model | L47: gustatory
A48: OFAS025015 | B48: gene | C48: ivargas | D48: Scaffold332 | E48: 513260 | F48: 521820 | G48: - | H48: mRNA | I48: Ofas-Gustatory receptor 96 | J48: OFAS025015-RA | K48: de novo model | L48: gustatory
A49: OFAS025017 | B49: gene | C49: kpanfilio | D49: Scaffold247 | E49: 492419 | F49: 493279 | G49: + | H49: mRNA | I49: Ofas-Gustatory receptor 58 -partial | J49: OFAS025017-RA | K49: de novo model | L49: gustatory
A50: OFAS025021 | B50: gene | C50: kpanfilio | D50: Scaffold361 | E50: 185944 | F50: 191705 | G50: + | H50: mRNA | I50: Ofas-Gustatory receptor 54 -partial | J50: OFAS025021-RA | K50: de novo model | L50: gustatory
A51: OFAS025023 | B51: gene | C51: kpanfilio | D51: Scaffold226 | E51: 312429 | F51: 328137 | G51: - | H51: mRNA | I51: Ofas-Gustatory receptor 114-RA | J51: OFAS025023-RA | K51: de novo model | L51: gustatory
A52: OFAS025023 | B52: gene | C52: kpanfilio | D52: Scaffold226 | E52: 312429 | F52: 325093 | G52: - | H52: mRNA | I52: Ofas-Gustatory receptor 114-RB | J52: OFAS025023-RC | K52: de novo model | L52: gustatory
A53: OFAS025023 | B53: gene | C53: kpanfilio | D53: Scaffold226 | E53: 312429 | F53: 318557 | G53: - | H53: mRNA | I53: Ofas-Gustatory receptor 114-RC | J53: OFAS025023-RB | K53: de novo model | L53: gustatory
A54: OFAS025025 | B54: gene | C54: kpanfilio | D54: Scaffold1752 | E54: 29824 | F54: 32147 | G54: + | H54: mRNA | I54: Ofas-Gustatory receptor 16 | J54: OFAS025025-RA | K54: de novo model | L54: gustatory
A55: OFAS025030 | B55: gene | C55: kpanfilio | D55: Scaffold1025 | E55: 249761 | F55: 257555 | G55: + | H55: mRNA | I55: Ofas-Gustatory receptor 4 -part 1 of 2 | J55: OFAS025030-RA | K55: de novo model | L55: gustatory
A56: OFAS025032 | B56: gene | C56: ivargas | D56: Scaffold1932 | E56: 129897 | F56: 142910 | G56: - | H56: mRNA | I56: Ofas-Gustatory receptor 38-RA | J56: OFAS025032-RB | K56: de novo model | L56: gustatory
A57: OFAS025032 | B57: gene | C57: ivargas | D57: Scaffold1932 | E57: 129897 | F57: 136882 | G57: - | H57: mRNA | I57: Ofas-Gustatory receptor 38-RB | J57: OFAS025032-RA | K57: de novo model | L57: gustatory
A58: OFAS025034 | B58: gene | C58: kpanfilio | D58: Scaffold517 | E58: 9532 | F58: 20633 | G58: + | H58: mRNA | I58: Ofas-Gustatory receptor 47-RA | J58: OFAS025034-RC | K58: de novo model | L58: gustatory
A59: OFAS025034 | B59: gene | C59: kpanfilio | D59: Scaffold517 | E59: 11509 | F59: 20633 | G59: + | H59: mRNA | I59: Ofas-Gustatory receptor 47-RB | J59: OFAS025034-RB | K59: de novo model | L59: gustatory
A60: OFAS025034 | B60: gene | C60: kpanfilio | D60: Scaffold517 | E60: 14093 | F60: 20633 | G60: + | H60: mRNA | I60: Ofas-Gustatory receptor 47-RC | J60: OFAS025034-RA | K60: de novo model | L60: gustatory
A61: OFAS025044 | B61: gene | C61: kpanfilio | D61: Scaffold1477 | E61: 194817 | F61: 199323 | G61: - | H61: mRNA | I61: Ofas-Gustatory receptor 113 | J61: OFAS025044-RA | K61: de novo model | L61: gustatory
A62: OFAS025045 | B62: gene | C62: kpanfilio | D62: Scaffold1411 | E62: 1873 | F62: 31890 | G62: + | H62: mRNA | I62: ionotropic glutamate receptor kainate 2-like | J62: OFAS025045-RA | K62: de novo model | L62: ionotropic
A63: OFAS025046 | B63: gene | C63: kpanfilio | D63: Scaffold382 | E63: 440243 | F63: 451996 | G63: - | H63: mRNA | I63: Ofas-Gustatory receptor 20-RA | J63: OFAS025046-RA | K63: de novo model | L63: gustatory
A64: OFAS025046 | B64: gene | C64: ivargas | D64: Scaffold382 | E64: 440243 | F64: 449429 | G64: - | H64: mRNA | I64: Ofas-Gustatory receptor 20-RB | J64: OFAS025046-RB | K64: de novo model | L64: gustatory
A65: OFAS025048 | B65: gene | C65: ivargas | D65: Scaffold355 | E65: 228901 | F65: 235560 | G65: + | H65: mRNA | I65: Odorant receptor putative | J65: OFAS025048-RA | K65: de novo model | L65: odorant
A66: OFAS025049 | B66: gene | C66: ivargas | D66: Scaffold1529 | E66: 52926 | F66: 58689 | G66: + | H66: mRNA | I66: Ofas-Gustatory receptor 30 -partial | J66: OFAS025049-RA | K66: de novo model | L66: gustatory
A67: OFAS025050 | B67: gene | C67: kpanfilio | D67: Scaffold4029 | E67: 11408 | F67: 18695 | G67: + | H67: mRNA | I67: Ofas-Gustatory receptor 90 | J67: OFAS025050-RA | K67: de novo model | L67: gustatory
A68: OFAS025051 | B68: gene | C68: ivargas | D68: Scaffold1932 | E68: 121997 | F68: 126499 | G68: - | H68: mRNA | I68: Ofas-Gustatory receptor 39 | J68: OFAS025051-RA | K68: de novo model | L68: gustatory
A69: OFAS025052 | B69: gene | C69: kpanfilio | D69: Scaffold1317 | E69: 63561 | F69: 81554 | G69: - | H69: mRNA | I69: Ofas-Gustatory receptor 1 -partial | J69: OFAS025052-RA | K69: de novo model | L69: gustatory
A70: OFAS025053 | B70: gene | C70: ivargas | D70: Scaffold8 | E70: 537830 | F70: 550587 | G70: - | H70: mRNA | I70: Odorant receptor putative | J70: OFAS025053-RA | K70: de novo model | L70: odorant
A71: OFAS025057 | B71: gene | C71: kpanfilio | D71: Scaffold5315 | E71: 13321 | F71: 17432 | G71: + | H71: mRNA | I71: Ofas-Gustatory receptor 27 -partial | J71: OFAS025057-RA | K71: de novo model | L71: gustatory
A72: OFAS025058 | B72: gene | C72: kpanfilio | D72: Scaffold3032 | E72: 6264 | F72: 6589 | G72: - | H72: mRNA | I72: ionotropic receptor 25-like -part 1 of 3 (Exons 1-2) | J72: OFAS025058-RA | K72: de novo model | L72: ionotropic
A73: OFAS025061 | B73: gene | C73: kpanfilio | D73: Scaffold525 | E73: 433827 | F73: 440024 | G73: - | H73: mRNA | I73: Ofas-Gustatory receptor 89 -partial | J73: OFAS025061-RA | K73: de novo model | L73: gustatory
A74: OFAS025065 | B74: gene | C74: kpanfilio | D74: Scaffold2192 | E74: 121446 | F74: 126589 | G74: - | H74: mRNA | I74: Ofas-Gustatory receptor 26 -partial | J74: OFAS025065-RA | K74: de novo model | L74: gustatory
A75: OFAS025066 | B75: gene | C75: kpanfilio | D75: Scaffold14914 | E75: 4420 | F75: 4542 | G75: - | H75: mRNA | I75: Ofas-Gustatory receptor 4 -part 2 of 2 | J75: OFAS025066-RA | K75: de novo model | L75: gustatory
A76: OFAS025067 | B76: gene | C76: kpanfilio | D76: Scaffold1529 | E76: 11226 | F76: 17013 | G76: + | H76: mRNA | I76: Ofas-Gustatory receptor 29 | J76: OFAS025067-RA | K76: de novo model | L76: gustatory
A77: OFAS025071 | B77: gene | C77: kpanfilio | D77: Scaffold115 | E77: 88861 | F77: 97166 | G77: - | H77: mRNA | I77: Odorant receptor | J77: OFAS025071-RA | K77: de novo model | L77: odorant
A78: OFAS025072 | B78: gene | C78: kpanfilio | D78: Scaffold1818 | E78: 90708 | F78: 97575 | G78: - | H78: mRNA | I78: Ofas-Gustatory receptor 9 -partial | J78: OFAS025072-RA | K78: de novo model | L78: gustatory
A79: OFAS025080 | B79: gene | C79: ivargas | D79: Scaffold1266 | E79: 245495 | F79: 249014 | G79: - | H79: mRNA | I79: Ofas-Gustatory receptor 104 -partial | J79: OFAS025080-RA | K79: de novo model | L79: gustatory
A80: OFAS025082 | B80: gene | C80: ivargas | D80: Scaffold155 | E80: 218796 | F80: 219614 | G80: + | H80: mRNA | I80: Ofas-Gustatory receptor 61 -partial | J80: OFAS025082-RA | K80: de novo model | L80: gustatory
A81: OFAS025083 | B81: gene | C81: ivargas | D81: Scaffold2096 | E81: 22874 | F81: 56114 | G81: - | H81: mRNA | I81: Ofas-Gustatory receptor 70-RA | J81: OFAS025083-RA | K81: de novo model | L81: gustatory
A82: OFAS025083 | B82: gene | C82: ivargas | D82: Scaffold2096 | E82: 22874 | F82: 51208 | G82: - | H82: mRNA | I82: Ofas-Gustatory receptor 70-RB | J82: OFAS025083-RD | K82: de novo model | L82: gustatory
A83: OFAS025083 | B83: gene | C83: ivargas | D83: Scaffold2096 | E83: 22874 | F83: 45008 | G83: - | H83: mRNA | I83: Ofas-Gustatory receptor 70-RC | J83: OFAS025083-RC | K83: de novo model | L83: gustatory
A84: OFAS025083 | B84: gene | C84: ivargas | D84: Scaffold2096 | E84: 22874 | F84: 39972 | G84: - | H84: mRNA | I84: Ofas-Gustatory receptor 70-RD -partial | J84: OFAS025083-RE | K84: de novo model | L84: gustatory
A85: OFAS025083 | B85: gene | C85: ivargas | D85: Scaffold2096 | E85: 22874 | F85: 36252 | G85: - | H85: mRNA | I85: Ofas-Gustatory receptor 70-RE -partial | J85: OFAS025083-RB | K85: de novo model | L85: gustatory
A86: OFAS025083 | B86: gene | C86: ivargas | D86: Scaffold2096 | E86: 22874 | F86: 31201 | G86: - | H86: mRNA | I86: Ofas-Gustatory receptor 70-RF | J86: OFAS025083-RF | K86: de novo model | L86: gustatory
A87: OFAS025085 | B87: gene | C87: kpanfilio | D87: Scaffold1190 | E87: 30782 | F87: 38556 | G87: - | H87: mRNA | I87: Ofas-Gustatory receptor 23 | J87: OFAS025085-RA | K87: de novo model | L87: gustatory
A88: OFAS025087 | B88: gene | C88: kpanfilio | D88: Scaffold2219 | E88: 462 | F88: 7383 | G88: - | H88: mRNA | I88: ionotropic receptor 40-like -part 2 of 2 (Exons 3%2C 6%2C 8) | J88: OFAS025087-RA | K88: de novo model | L88: ionotropic
A89: OFAS025088 | B89: gene | C89: kpanfilio | D89: Scaffold525 | E89: 405158 | F89: 412189 | G89: - | H89: mRNA | I89: Ofas-Gustatory receptor 87 | J89: OFAS025088-RA | K89: de novo model | L89: gustatory
A90: OFAS025090 | B90: gene | C90: ivargas | D90: Scaffold95 | E90: 603302 | F90: 615423 | G90: - | H90: mRNA | I90: Ofas-Gustatory receptor 36 | J90: OFAS025090-RA | K90: de novo model | L90: gustatory
A91: OFAS025093 | B91: gene | C91: ivargas | D91: Scaffold4 | E91: 670065 | F91: 681483 | G91: + | H91: mRNA | I91: Ofas-Gustatory receptor 108-RA | J91: OFAS025093-RA | K91: de novo model | L91: gustatory
A92: OFAS025093 | B92: gene | C92: ivargas | D92: Scaffold4 | E92: 672620 | F92: 681483 | G92: + | H92: mRNA | I92: Ofas-Gustatory receptor 108-RB | J92: OFAS025093-RC | K92: de novo model | L92: gustatory
A93: OFAS025093 | B93: gene | C93: ivargas | D93: Scaffold4 | E93: 674278 | F93: 681483 | G93: + | H93: mRNA | I93: Ofas-Gustatory receptor 108-RC | J93: OFAS025093-RB | K93: de novo model | L93: gustatory
A94: OFAS025095 | B94: gene | C94: kpanfilio | D94: Scaffold681 | E94: 28390 | F94: 35182 | G94: + | H94: mRNA | I94: Ofas-Gustatory receptor 105 | J94: OFAS025095-RA | K94: de novo model | L94: gustatory
A95: OFAS025100 | B95: gene | C95: ivargas | D95: Scaffold3039 | E95: 69128 | F95: 73602 | G95: + | H95: mRNA | I95: Ofas-Gustatory receptor 95 | J95: OFAS025100-RA | K95: de novo model | L95: gustatory
A96: OFAS025103 | B96: gene | C96: ivargas | D96: Scaffold344 | E96: 532686 | F96: 547089 | G96: + | H96: mRNA | I96: Odorant receptor putative | J96: OFAS025103-RA | K96: de novo model | L96: odorant
A97: OFAS025104 | B97: gene | C97: kpanfilio | D97: Scaffold3482 | E97: 77663 | F97: 82257 | G97: + | H97: mRNA | I97: Ofas-Gustatory receptor 25 | J97: OFAS025104-RA | K97: de novo model | L97: gustatory
A98: OFAS025109 | B98: gene | C98: ivargas | D98: Scaffold636 | E98: 271331 | F98: 279169 | G98: - | H98: mRNA | I98: Ofas-Gustatory receptor 63 | J98: OFAS025109-RA | K98: de novo model | L98: gustatory
A99: OFAS025112 | B99: gene | C99: ivargas | D99: Scaffold139 | E99: 630846 | F99: 641830 | G99: - | H99: mRNA | I99: Ofas-Gustatory receptor 103-RB | J99: OFAS025112-RB | K99: de novo model | L99: gustatory
A100: OFAS025112 | B100: gene | C100: ivargas | D100: Scaffold139 | E100: 630846 | F100: 636147 | G100: - | H100: mRNA | I100: Ofas-Gustatory receptor 103-RC | J100: OFAS025112-RA | K100: de novo model | L100: gustatory
A101: OFAS025118 | B101: gene | C101: kpanfilio | D101: Scaffold2123 | E101: 23784 | F101: 32250 | G101: - | H101: mRNA | I101: Ofas-Gustatory receptor 51 | J101: OFAS025118-RA | K101: de novo model | L101: gustatory
A102: OFAS025121 | B102: gene | C102: kpanfilio | D102: Scaffold95 | E102: 628542 | F102: 632989 | G102: - | H102: mRNA | I102: Ofas-Gustatory receptor 34 -partial | J102: OFAS025121-RA | K102: de novo model | L102: gustatory
A103: OFAS025122 | B103: gene | C103: kpanfilio | D103: Scaffold760 | E103: 291448 | F103: 304287 | G103: + | H103: mRNA | I103: Ofas-Gustatory receptor 19 | J103: OFAS025122-RA | K103: de novo model | L103: gustatory
A104: OFAS025124 | B104: gene | C104: kpanfilio | D104: Scaffold313 | E104: 184537 | F104: 198930 | G104: - | H104: mRNA | I104: Ofas-Gustatory receptor 53-RA | J104: OFAS025124-RA | K104: de novo model | L104: gustatory
A105: OFAS025124 | B105: gene | C105: kpanfilio | D105: Scaffold313 | E105: 184537 | F105: 192885 | G105: - | H105: mRNA | I105: Ofas-Gustatory receptor 53-RB | J105: OFAS025124-RB | K105: de novo model | L105: gustatory
A106: OFAS025128 | B106: gene | C106: ivargas | D106: Scaffold308 | E106: 613464 | F106: 618698 | G106: + | H106: mRNA | I106: Ofas-Gustatory receptor 107 | J106: OFAS025128-RA | K106: de novo model | L106: gustatory
A107: OFAS025136 | B107: gene | C107: ivargas | D107: Scaffold95 | E107: 636312 | F107: 644361 | G107: - | H107: mRNA | I107: Ofas-Gustatory receptor 33 | J107: OFAS025136-RA | K107: de novo model | L107: gustatory
A108: OFAS025142 | B108: gene | C108: kpanfilio | D108: Scaffold247 | E108: 497231 | F108: 498061 | G108: + | H108: mRNA | I108: Ofas-Gustatory receptor 59 -partial | J108: OFAS025142-RA | K108: de novo model | L108: gustatory
A109: OFAS025146 | B109: gene | C109: kpanfilio | D109: Scaffold998 | E109: 219301 | F109: 224677 | G109: + | H109: mRNA | I109: Ofas-Gustatory receptor 81 | J109: OFAS025146-RA | K109: de novo model | L109: gustatory
A110: OFAS025153 | B110: gene | C110: kpanfilio | D110: Scaffold2131 | E110: 176374 | F110: 183902 | G110: + | H110: mRNA | I110: Ofas-Gustatory receptor 31 | J110: OFAS025153-RA | K110: de novo model | L110: gustatory
A111: OFAS025160 | B111: gene | C111: kpanfilio | D111: Scaffold1158 | E111: 175153 | F111: 175306 | G111: - | H111: mRNA | I111: ionotropic receptor 76-like -part 2 of 2 (internal part of exon 3) | J111: OFAS025160-RA | K111: de novo model | L111: ionotropic
A112: OFAS025163 | B112: gene | C112: kpanfilio | D112: Scaffold5546 | E112: 1511 | F112: 2499 | G112: - | H112: mRNA | I112: Ofas-Gustatory receptor -partial | J112: OFAS025163-RA | K112: de novo model | L112: gustatory
A113: OFAS025164 | B113: gene | C113: ivargas | D113: Scaffold375 | E113: 158290 | F113: 161627 | G113: + | H113: mRNA | I113: Ofas-Gustatory receptor 76 | J113: OFAS025164-RA | K113: de novo model | L113: gustatory
A114: OFAS025165 | B114: gene | C114: kpanfilio | D114: Scaffold1007 | E114: 19652 | F114: 34428 | G114: + | H114: mRNA | I114: ionotropic receptor 40-like -part 1 of 2 (Exons 2%2C 4-5%2C 7%2C 9-12) | J114: OFAS025165-RA | K114: de novo model | L114: ionotropic
A115: OFAS025171 | B115: gene | C115: kpanfilio | D115: Scaffold1025 | E115: 236278 | F115: 241393 | G115: + | H115: mRNA | I115: Ofas-Gustatory receptor 3 -partial | J115: OFAS025171-RA | K115: de novo model | L115: gustatory
A116: OFAS025174 | B116: gene | C116: ivargas | D116: Scaffold2448 | E116: 19238 | F116: 33648 | G116: - | H116: mRNA | I116: Ofas-Gustatory receptor 65-RA -partial | J116: OFAS025174-RB | K116: de novo model | L116: gustatory
A117: OFAS025174 | B117: gene | C117: ivargas | D117: Scaffold2448 | E117: 19238 | F117: 27894 | G117: - | H117: mRNA | I117: Ofas-Gustatory receptor 65-RB -partial | J117: OFAS025174-RA | K117: de novo model | L117: gustatory
A118: OFAS025176 | B118: gene | C118: kpanfilio | D118: Scaffold998 | E118: 163831 | F118: 205245 | G118: + | H118: mRNA | I118: Ofas-Gustatory receptor 79-RA | J118: OFAS025176-RA | K118: de novo model | L118: gustatory
A119: OFAS025176 | B119: gene | C119: kpanfilio | D119: Scaffold998 | E119: 183035 | F119: 205245 | G119: + | H119: mRNA | I119: Ofas-Gustatory receptor 79-RB | J119: OFAS025176-RB | K119: de novo model | L119: gustatory
A120: OFAS025176 | B120: gene | C120: kpanfilio | D120: Scaffold998 | E120: 193099 | F120: 205245 | G120: + | H120: mRNA | I120: Ofas-Gustatory receptor 79-RC | J120: OFAS025176-RC | K120: de novo model | L120: gustatory
A121: OFAS025176 | B121: gene | C121: kpanfilio | D121: Scaffold998 | E121: 198162 | F121: 205245 | G121: + | H121: mRNA | I121: Ofas-Gustatory receptor 79-RD | J121: OFAS025176-RD | K121: de novo model | L121: gustatory
A122: OFAS025177 | B122: gene | C122: ivargas | D122: Scaffold2096 | E122: 3893 | F122: 10136 | G122: + | H122: mRNA | I122: Ofas-Gustatory receptor 68 | J122: OFAS025177-RA | K122: de novo model | L122: gustatory
A123: OFAS025185 | B123: gene | C123: kpanfilio | D123: Scaffold1025 | E123: 270517 | F123: 278388 | G123: + | H123: mRNA | I123: Ofas-Gustatory receptor 5 -part 2 of 2 | J123: OFAS025185-RA | K123: de novo model | L123: gustatory
A124: OFAS025190 | B124: gene | C124: ivargas | D124: Scaffold2096 | E124: 11426 | F124: 15812 | G124: + | H124: mRNA | I124: Ofas-Gustatory receptor 69 | J124: OFAS025190-RA | K124: de novo model | L124: gustatory
A125: OFAS025193 | B125: gene | C125: kpanfilio | D125: Scaffold1260 | E125: 230928 | F125: 255426 | G125: - | H125: mRNA | I125: Ofas-Gustatory receptor 112-RA -partial | J125: OFAS025193-RB | K125: de novo model | L125: gustatory
A126: OFAS025193 | B126: gene | C126: kpanfilio | D126: Scaffold1260 | E126: 230928 | F126: 245953 | G126: - | H126: mRNA | I126: Ofas-Gustatory receptor 112-RB | J126: OFAS025193-RA | K126: de novo model | L126: gustatory
A127: OFAS025197 | B127: gene | C127: kpanfilio | D127: Scaffold1025 | E127: 281870 | F127: 293884 | G127: + | H127: mRNA | I127: Ofas-Gustatory receptor 6 | J127: OFAS025197-RA | K127: de novo model | L127: gustatory
A128: OFAS025198 | B128: gene | C128: ivargas | D128: Scaffold2321 | E128: 7716 | F128: 8606 | G128: - | H128: mRNA | I128: Ofas-Gustatory receptor 62 -partial | J128: OFAS025198-RA | K128: de novo model | L128: gustatory
A129: OFAS025200 | B129: gene | C129: ivargas | D129: Scaffold1488 | E129: 66141 | F129: 71798 | G129: + | H129: mRNA | I129: Odorant receptor putative (partial) | J129: OFAS025200-RA | K129: de novo model | L129: odorant
A130: OFAS025206 | B130: gene | C130: kpanfilio | D130: Scaffold622 | E130: 165704 | F130: 169912 | G130: - | H130: mRNA | I130: Ofas-Gustatory receptor 106 -partial | J130: OFAS025206-RA | K130: de novo model | L130: gustatory
A131: OFAS025210 | B131: gene | C131: kpanfilio | D131: Scaffold525 | E131: 397482 | F131: 401387 | G131: - | H131: mRNA | I131: Ofas-Gustatory receptor 86 | J131: OFAS025210-RA | K131: de novo model | L131: gustatory
A132: OFAS025211 | B132: gene | C132: kpanfilio | D132: Scaffold91 | E132: 688410 | F132: 693487 | G132: - | H132: mRNA | I132: Ofas-Gustatory receptor 22 | J132: OFAS025211-RA | K132: de novo model | L132: gustatory
A133: OFAS025219 | B133: gene | C133: kpanfilio | D133: Scaffold611 | E133: 168237 | F133: 174246 | G133: + | H133: mRNA | I133: Ofas-Gustatory receptor 110 | J133: OFAS025219-RA | K133: de novo model | L133: gustatory
A134: OFAS025221 | B134: gene | C134: ivargas | D134: Scaffold269 | E134: 561866 | F134: 568724 | G134: - | H134: mRNA | I134: Odorant receptor putative | J134: OFAS025221-RA | K134: de novo model | L134: odorant
A135: OFAS025229 | B135: gene | C135: ivargas | D135: Scaffold375 | E135: 126633 | F135: 127427 | G135: + | H135: mRNA | I135: Ofas-Gustatory receptor 72 -partial | J135: OFAS025229-RA | K135: de novo model | L135: gustatory
A136: OFAS025234 | B136: gene | C136: ivargas | D136: Scaffold375 | E136: 150134 | F136: 152210 | G136: + | H136: mRNA | I136: Ofas-Gustatory receptor 75 -partial | J136: OFAS025234-RA | K136: de novo model | L136: gustatory
A137: OFAS025236 | B137: gene | C137: kpanfilio | D137: Scaffold1630 | E137: 190783 | F137: 197523 | G137: + | H137: mRNA | I137: Ofas-Gustatory receptor 92-RA | J137: OFAS025236-RB | K137: de novo model | L137: gustatory
A138: OFAS025236 | B138: gene | C138: kpanfilio | D138: Scaffold1630 | E138: 193133 | F138: 197523 | G138: + | H138: mRNA | I138: Ofas-Gustatory receptor 92-RB | J138: OFAS025236-RA | K138: de novo model | L138: gustatory
A139: OFAS025237 | B139: gene | C139: ivargas | D139: Scaffold790 | E139: 330055 | F139: 343049 | G139: - | H139: mRNA | I139: Ofas-Gustatory receptor 41-RA | J139: OFAS025237-RA | K139: de novo model | L139: gustatory
A140: OFAS025237 | B140: gene | C140: kpanfilio | D140: Scaffold790 | E140: 330055 | F140: 339522 | G140: - | H140: mRNA | I140: Ofas-Gustatory receptor 41-RB | J140: OFAS025237-RC | K140: de novo model | L140: gustatory
A141: OFAS025237 | B141: gene | C141: ivargas | D141: Scaffold790 | E141: 330055 | F141: 336429 | G141: - | H141: mRNA | I141: Ofas-Gustatory receptor 41-RC | J141: OFAS025237-RB | K141: de novo model | L141: gustatory
A142: OFAS025238 | B142: gene | C142: kpanfilio | D142: Scaffold525 | E142: 180557 | F142: 184970 | G142: - | H142: mRNA | I142: Ofas-Gustatory receptor 85-RA | J142: OFAS025238-RB | K142: de novo model | L142: gustatory
A143: OFAS025238 | B143: gene | C143: kpanfilio | D143: Scaffold525 | E143: 180557 | F143: 182950 | G143: - | H143: mRNA | I143: Ofas-Gustatory receptor 85-RB | J143: OFAS025238-RA | K143: de novo model | L143: gustatory
A144: OFAS025240 | B144: gene | C144: kpanfilio | D144: Scaffold2123 | E144: 69603 | F144: 77115 | G144: - | H144: mRNA | I144: Ofas-Gustatory receptor 49-RA | J144: OFAS025240-RB | K144: de novo model | L144: gustatory
A145: OFAS025240 | B145: gene | C145: kpanfilio | D145: Scaffold2123 | E145: 69603 | F145: 73078 | G145: - | H145: mRNA | I145: Ofas-Gustatory receptor 49-RB | J145: OFAS025240-RA | K145: de novo model | L145: gustatory
A146: OFAS025242 | B146: gene | C146: ivargas | D146: Scaffold3505 | E146: 36683 | F146: 39307 | G146: - | H146: mRNA | I146: Odorant receptor putative | J146: OFAS025242-RA | K146: de novo model | L146: odorant
A147: OFAS025246 | B147: gene | C147: kpanfilio | D147: Scaffold4 | E147: 1118704 | F147: 1119522 | G147: - | H147: mRNA | I147: Ofas-Gustatory receptor 109-RA -partial | J147: OFAS025246-RA | K147: de novo model | L147: gustatory
A148: OFAS025246 | B148: gene | C148: ivargas | D148: Scaffold4 | E148: 1116756 | F148: 1117559 | G148: - | H148: mRNA | I148: Ofas-Gustatory receptor 109-RB -partial | J148: OFAS025246-RB | K148: de novo model | L148: gustatory
A149: OFAS025246 | B149: gene | C149: ivargas | D149: Scaffold4 | E149: 1112020 | F149: 1112823 | G149: - | H149: mRNA | I149: Ofas-Gustatory receptor 109-RC -partial | J149: OFAS025246-RC | K149: de novo model | L149: gustatory
A150: OFAS025247 | B150: gene | C150: kpanfilio | D150: Scaffold1752 | E150: 45735 | F150: 51656 | G150: + | H150: mRNA | I150: Ofas-Gustatory receptor 18 | J150: OFAS025247-RA | K150: de novo model | L150: gustatory
A151: OFAS025249 | B151: gene | C151: kpanfilio | D151: Scaffold1752 | E151: 8265 | F151: 27114 | G151: + | H151: mRNA | I151: Ofas-Gustatory receptor 15-RA | J151: OFAS025249-RA | K151: de novo model | L151: gustatory
A152: OFAS025249 | B152: gene | C152: kpanfilio | D152: Scaffold1752 | E152: 18425 | F152: 27114 | G152: + | H152: mRNA | I152: Ofas-Gustatory receptor 15-RB | J152: OFAS025249-RC | K152: de novo model | L152: gustatory
A153: OFAS025249 | B153: gene | C153: kpanfilio | D153: Scaffold1752 | E153: 20186 | F153: 27114 | G153: + | H153: mRNA | I153: Ofas-Gustatory receptor 15-RC | J153: OFAS025249-RB | K153: de novo model | L153: gustatory
A154: OFAS025255 | B154: gene | C154: kpanfilio | D154: Scaffold1630 | E154: 177426 | F154: 186813 | G154: + | H154: mRNA | I154: Ofas-Gustatory receptor 91-RA -partial | J154: OFAS025255-RB | K154: de novo model | L154: gustatory
A155: OFAS025255 | B155: gene | C155: kpanfilio | D155: Scaffold1630 | E155: 180848 | F155: 186813 | G155: + | H155: mRNA | I155: Ofas-Gustatory receptor 91-RB -partial | J155: OFAS025255-RA | K155: de novo model | L155: gustatory
A156: OFAS025258 | B156: gene | C156: kpanfilio | D156: Scaffold247 | E156: 482507 | F156: 483349 | G156: + | H156: mRNA | I156: Ofas-Gustatory receptor 57 -partial | J156: OFAS025258-RA | K156: de novo model | L156: gustatory
A157: OFAS025259 | B157: gene | C157: kpanfilio | D157: Scaffold264 | E157: 624465 | F157: 636652 | G157: + | H157: mRNA | I157: ionotropic glutamate receptor -partial | J157: OFAS025259-RA | K157: de novo model | L157: ionotropic
A158: OFAS025261 | B158: gene | C158: kpanfilio | D158: Scaffold73 | E158: 25408 | F158: 33197 | G158: + | H158: mRNA | I158: Ofas-Gustatory receptor 40-RA | J158: OFAS025261-RA | K158: de novo model | L158: gustatory
A159: OFAS025261 | B159: gene | C159: kpanfilio | D159: Scaffold73 | E159: 28386 | F159: 33197 | G159: + | H159: mRNA | I159: Ofas-Gustatory receptor 40-RB | J159: OFAS025261-RB | K159: de novo model | L159: gustatory
A160: OFAS025264 | B160: gene | C160: kpanfilio | D160: Scaffold2131 | E160: 156401 | F160: 171146 | G160: - | H160: mRNA | I160: Ofas-Gustatory receptor 32 | J160: OFAS025264-RA | K160: de novo model | L160: gustatory
A161: OFAS025267 | B161: gene | C161: ivargas | D161: Scaffold175 | E161: 221067 | F161: 240035 | G161: + | H161: mRNA | I161: Odorant receptor putative | J161: OFAS025267-RA | K161: de novo model | L161: odorant
A162: OFAS025269 | B162: gene | C162: kpanfilio | D162: Scaffold913 | E162: 156744 | F162: 167489 | G162: + | H162: mRNA | I162: Ofas-Gustatory receptor 83 | J162: OFAS025269-RA | K162: de novo model | L162: gustatory
A163: OFAS025271 | B163: gene | C163: ivargas | D163: Scaffold606 | E163: 477244 | F163: 483564 | G163: - | H163: mRNA | I163: Ofas-Gustatory receptor 43-RA | J163: OFAS025271-RA | K163: de novo model | L163: gustatory
A164: OFAS025271 | B164: gene | C164: ivargas | D164: Scaffold606 | E164: 477244 | F164: 480928 | G164: - | H164: mRNA | I164: Ofas-Gustatory receptor 43-RB | J164: OFAS025271-RB | K164: de novo model | L164: gustatory
A165: OFAS025283 | B165: gene | C165: ivargas | D165: Scaffold375 | E165: 131783 | F165: 134670 | G165: + | H165: mRNA | I165: Ofas-Gustatory receptor 73 | J165: OFAS025283-RA | K165: de novo model | L165: gustatory
A166: OFAS025289 | B166: gene | C166: kpanfilio | D166: Scaffold10 | E166: 1275105 | F166: 1284427 | G166: + | H166: mRNA | I166: Ofas-Gustatory receptor 115 | J166: OFAS025289-RA | K166: de novo model | L166: gustatory
A167: OFAS025294 | B167: gene | C167: kpanfilio | D167: Scaffold2235 | E167: 19267 | F167: 27947 | G167: - | H167: mRNA | I167: Ofas-Gustatory receptor 77 -partial | J167: OFAS025294-RA | K167: de novo model | L167: gustatory
A168: OFAS025302 | B168: gene | C168: ivargas | D168: Scaffold84 | E168: 614899 | F168: 625815 | G168: - | H168: mRNA | I168: Ofas-Gustatory receptor 44-RA | J168: OFAS025302-RA | K168: de novo model | L168: gustatory
A169: OFAS025302 | B169: gene | C169: ivargas | D169: Scaffold84 | E169: 614899 | F169: 620031 | G169: - | H169: mRNA | I169: Ofas-Gustatory receptor 44-RB | J169: OFAS025302-RB | K169: de novo model | L169: gustatory
A170: OFAS025303 | B170: gene | C170: kpanfilio | D170: Scaffold230 | E170: 354869 | F170: 385729 | G170: - | H170: mRNA | I170: Ofas-Gustatory receptor 10 | J170: OFAS025303-RA | K170: de novo model | L170: gustatory
A171: OFAS025304 | B171: gene | C171: ivargas | D171: Scaffold352 | E171: 268908 | F171: 292585 | G171: + | H171: mRNA | I171: Ofas-Gustatory receptor 100 | J171: OFAS025304-RA | K171: de novo model | L171: gustatory
A172: OFAS025306 | B172: gene | C172: kpanfilio | D172: Scaffold409 | E172: 412151 | F172: 417085 | G172: - | H172: mRNA | I172: Ofas-Gustatory receptor 13-RA | J172: OFAS025306-RB | K172: de novo model | L172: gustatory
A173: OFAS025306 | B173: gene | C173: kpanfilio | D173: Scaffold409 | E173: 412151 | F173: 415046 | G173: - | H173: mRNA | I173: Ofas-Gustatory receptor 13-RB | J173: OFAS025306-RA | K173: de novo model | L173: gustatory
A174: OFAS025311 | B174: gene | C174: ivargas | D174: Scaffold2448 | E174: 16264 | F174: 17960 | G174: - | H174: mRNA | I174: Ofas-Gustatory receptor 67 -partial | J174: OFAS025311-RA | K174: de novo model | L174: gustatory
A175: OFAS025314 | B175: gene | C175: kpanfilio | D175: Scaffold790 | E175: 164046 | F175: 177056 | G175: - | H175: mRNA | I175: Ofas-Gustatory receptor 42-RA | J175: OFAS025314-RB | K175: de novo model | L175: gustatory
A176: OFAS025314 | B176: gene | C176: ivargas | D176: Scaffold790 | E176: 164046 | F176: 174256 | G176: - | H176: mRNA | I176: Ofas-Gustatory receptor 42-RB | J176: OFAS025314-RA | K176: de novo model | L176: gustatory
A177: OFAS025315 | B177: gene | C177: kpanfilio | D177: Scaffold542 | E177: 150374 | F177: 151297 | G177: + | H177: mRNA | I177: Ofas-Gustatory receptor 28 -partial | J177: OFAS025315-RA | K177: de novo model | L177: gustatory
A178: OFAS025316 | B178: gene | C178: ivargas | D178: Scaffold611 | E178: 175059 | F178: 181121 | G178: + | H178: mRNA | I178: Ofas-Gustatory receptor 111 | J178: OFAS025316-RA | K178: de novo model | L178: gustatory
A179: OFAS025319 | B179: gene | C179: ivargas | D179: Scaffold375 | E179: 145287 | F179: 148710 | G179: + | H179: mRNA | I179: Ofas-Gustatory receptor 74 | J179: OFAS025319-RA | K179: de novo model | L179: gustatory
A180: OFAS025320 | B180: gene | C180: ivargas | D180: Scaffold155 | E180: 203800 | F180: 212533 | G180: + | H180: mRNA | I180: Ofas-Gustatory receptor 60 -partial | J180: OFAS025320-RA | K180: de novo model | L180: gustatory
A181: OFAS025322 | B181: gene | C181: kpanfilio | D181: Scaffold3032 | E181: 776 | F181: 3176 | G181: - | H181: mRNA | I181: ionotropic receptor 25-like -part 3 of 3 (Exons 5-6) | J181: OFAS025322-RA | K181: de novo model | L181: ionotropic
A182: OFAS025326 | B182: gene | C182: kpanfilio | D182: Scaffold44 | E182: 545258 | F182: 549744 | G182: + | H182: mRNA | I182: Ofas-Gustatory receptor 24 | J182: OFAS025326-RA | K182: de novo model | L182: gustatory
A183: OFAS025329 | B183: gene | C183: ivargas | D183: Scaffold95 | E183: 671265 | F183: 683181 | G183: - | H183: mRNA | I183: Ofas-Gustatory receptor 37-RA | J183: OFAS025329-RA | K183: de novo model | L183: gustatory
A184: OFAS025329 | B184: gene | C184: ivargas | D184: Scaffold95 | E184: 671265 | F184: 673828 | G184: - | H184: mRNA | I184: Ofas-Gustatory receptor 37-RB | J184: OFAS025329-RB | K184: de novo model | L184: gustatory
A185: OFAS025331 | B185: gene | C185: kpanfilio | D185: Scaffold14914 | E185: 379 | F185: 541 | G185: - | H185: mRNA | I185: Ofas-Gustatory receptor 5 -part 1 of 2 | J185: OFAS025331-RA | K185: de novo model | L185: gustatory
A186: OFAS025333 | B186: gene | C186: kpanfilio | D186: Scaffold2123 | E186: 54296 | F186: 64930 | G186: + | H186: mRNA | I186: Ofas-Gustatory receptor 50-RA | J186: OFAS025333-RA | K186: de novo model | L186: gustatory
A187: OFAS025333 | B187: gene | C187: kpanfilio | D187: Scaffold2123 | E187: 56828 | F187: 64930 | G187: + | H187: mRNA | I187: Ofas-Gustatory receptor 50-RB | J187: OFAS025333-RB | K187: de novo model | L187: gustatory
A188: OFAS025337 | B188: gene | C188: kpanfilio | D188: Scaffold1411 | E188: 99876 | F188: 157276 | G188: + | H188: mRNA | I188: ionotropic glutamate receptor kainate 2-like | J188: OFAS025337-RA | K188: de novo model | L188: ionotropic
A189: OFAS025338 | B189: gene | C189: kpanfilio | D189: Scaffold1158 | E189: 170511 | F189: 227446 | G189: + | H189: mRNA | I189: ionotropic receptor 76-like -part 1 of 2 -partial | J189: OFAS025338-RA | K189: de novo model | L189: ionotropic
A190: OFAS026004 | B190: pseudogene | C190: ivargas | D190: Scaffold79 | E190: 499819 | F190: 518280 | G190: + | H190: pseudogenic_transcript | I190: Ofas-Gustatory receptor 98-RC | J190: OFAS026004-RA | K190: de novo model | L190: gustatory
A191: OFAS026005 | B191: pseudogene | C191: ivargas | D191: Scaffold95 | E191: 619954 | F191: 622389 | G191: - | H191: pseudogenic_transcript | I191: Ofas-Gustatory receptor 35 | J191: OFAS026005-RA | K191: de novo model | L191: gustatory
A192: OFAS026006 | B192: pseudogene | C192: ivargas | D192: Scaffold139 | E192: 630846 | F192: 644982 | G192: - | H192: pseudogenic_transcript | I192: Ofas-Gustatory receptor 103-RA | J192: OFAS026006-RA | K192: de novo model | L192: gustatory
A193: OFAS026008 | B193: pseudogene | C193: kpanfilio | D193: Scaffold1630 | E193: 183008 | F193: 186813 | G193: + | H193: pseudogenic_transcript | I193: Ofas-Gustatory receptor 91-RC -partial | J193: OFAS026008-RA | K193: de novo model | L193: gustatory
A194: OFAS026009 | B194: pseudogene | C194: ivargas | D194: Scaffold79 | E194: 506757 | F194: 518280 | G194: + | H194: pseudogenic_transcript | I194: Ofas-Gustatory receptor 98-RF | J194: OFAS026009-RA | K194: de novo model | L194: gustatory
A195: OFAS026010 | B195: pseudogene | C195: kpanfilio | D195: Scaffold9243 | E195: 3784 | F195: 6862 | G195: + | H195: pseudogenic_transcript | I195: Ofas-Gustatory receptor 56 -partial | J195: OFAS026010-RA | K195: de novo model | L195: gustatory
A196: OFAS027005 | B196: gene | C196: kpanfilio | D196: Scaffold784 | E196: 87697 | F196: 187185 | G196: + | H196: mRNA | I196: ionotropic glutamate receptor kainate 2-like -partial | J196: OFAS027005-RA | K196: de novo model | L196: ionotropic

Sheet ST7 - CP and CR KS-Tests
A2: Supplementary Table 7a: Oncopeltus fasciatus cuticle proteins and chemoreceptors, two-sample Kolmogorov-Smirnov tests
P3: Set | Q3: n
C4: CR/CP: ma MAKER model vs CR/CP: dn model | D4: CR/CP: ma MAKER model vs OGS | E4: CR/CP: dn model vs OGS | F4: CR/CP: dn model vs MAN-ADD | G4: CP (ma+dn) vs MAN-ADD | H4: GR (ma+dn) vs MAN-ADD | I4: OR (ma+dn) vs MAN-ADD | J4: IR (ma+dn) vs MAN-ADD | K4: CP (ma) vs. (dn) | L4: GR (ma) vs. (dn) | M4: IR (ma) vs. (dn) | N4: OR (ma) vs. (dn) | P4: CR/CP (ma MAKER) | Q4: 201
A5: Oncopeltus fasciatus | B5: Transcript length | C5: 0.05837 | D5: 5.133e-07 | E5: 0.000147 | F5: 0.001469 | G5: 8.687e-05 | H5: 0.0001987 | I5: 0.01342 | J5: 0.005522 | K5: 0.4037 | L5: 0.006093 | M5: 0.4096 | N5: 0.303 | P5: CR/CP (dn) | Q5: 113
B6: Protein length | C6: 2.2e-16 | D6: 0.01618 | E6: 2.2e-16 | F6: 0.001499 | G6: 3.043e-10 | H6: 2.679e-06 | I6: 0.296 | J6: 0.005114 | K6: 0.9562 | L6: 0.0182 | M6: 0.4096 | N6: 1 | P6: OGS | Q6: 19587
B7: Exon count | C7: 0.0004375 | D7: 1.528e-13 | E7: 1.099e-09 | F7: 0.0002153 | G7: 1.61e-06 | H7: 2.217e-05 | I7: 0.1106 | J7: 0.0001299 | K7: 0.589 | L7: 0.2984 | M7: 0.1216 | N7: 0.1717 | P7: CP (ma+dn) | Q7: 178
B8: Median exon length | C8: 8.257e-06 | D8: 1.402e-05 | E8: 3.34e-08 | F8: 0.2728 | G8: 0.001418 | H8: 0.07057 | I8: 0.1335 | J8: 0.04955 | K8: 0.9158 | L8: 0.08673 | M8: 0.8752 | N8: 0.303 | P8: GR (ma+dn) | Q8: 111
B9: Median intron length | C9: 0.01626 | D9: 0.02865 | E9: 0.1377 | F9: 0.9993 | G9: 0.0224 | H9: 0.9928 | I9: 0.9569 | J9: 0.5768 | K9: 0.7532 | L9: 0.6272 | M9: 0.5175 | N9: 0.5636 | P9: OR (ma+dn) | Q9: 11
P10: IR (ma+dn) | Q10: 14
P11: CP (ma) | Q11: 174
P12: CP (dn) | Q12: 4 | R12: note the small sample size!
A13: Supplementary Table 7b: Oncopeltus fasciatus cuticle proteins and chemoreceptors, Bonferroni-corrected two-sample Kolmogorov-Smirnov tests | P13: GR (ma) | Q13: 20
A14: corrected for multiple testing by multiplying with # tests (p*60) | P14: GR (dn) | Q14: 91
P15: IR (ma) | Q15: 4 | R15: note the small sample size!
C16: CR/CP: ma MAKER model vs CR/CP: dn model | D16: CR/CP: ma MAKER model vs OGS | E16: CR/CP: dn model vs OGS | F16: CR/CP: dn model vs MAN-ADD | G16: CP (ma+dn) vs MAN-ADD | H16: GR (ma+dn) vs MAN-ADD | I16: OR (ma+dn) vs MAN-ADD | J16: IR (ma+dn) vs MAN-ADD | K16: CP (ma) vs. (dn) | L16: GR (ma) vs. (dn) | M16: IR (ma) vs. (dn) | N16: OR (ma) vs. (dn) | P16: IR (dn) | Q16: 10 | R16: note the small sample size!
A17: Oncopeltus fasciatus | B17: Transcript length | C17: 3.5022 | D17: 3.0798e-05 | E17: 0.00882 | F17: 0.08814 | G17: 0.0052122 | H17: 0.011922 | I17: 0.8052 | J17: 0.33132 | K17: 24.222 | L17: 0.36558 | M17: 24.576 | N17: 18.18 | P17: OR (ma) | Q17: 3 | R17: note the small sample size!
B18: Protein length | C18: 1.32e-14 | D18: 0.9708 | E18: 1.32e-14 | F18: 0.08994 | G18: 1.8258e-08 | H18: 0.00016074 | I18: 17.76 | J18: 0.30684 | K18: 57.372 | L18: 1.092 | M18: 24.576 | N18: 60 | P18: OR (dn) | Q18: 8 | R18: note the small sample size!
B19: Exon count | C19: 0.02625 | D19: 9.168e-12 | E19: 6.594e-08 | F19: 0.012918 | G19: 9.66e-05 | H19: 0.0013302 | I19: 6.636 | J19: 0.007794 | K19: 35.34 | L19: 17.904 | M19: 7.296 | N19: 10.302
B20: Median exon length | C20: 0.00049542 | D20: 0.0008412 | E20: 2.004e-06 | F20: 16.368 | G20: 0.08508 | H20: 4.2342 | I20: 8.01 | J20: 2.973 | K20: 54.948 | L20: 5.2038 | M20: 52.512 | N20: 18.18
B21: Median intron length | C21: 0.9756 | D21: 1.719 | E21: 8.262 | F21: 59.958 | G21: 1.344 | H21: 59.568 | I21: 57.414 | J21: 34.608 | K21: 45.192 | L21: 37.632 | M21: 31.05 | N21: 33.816
A25: CR | B25: chemoreceptor
A26: CP | B26: cuticle protein
A27: ma | B27: manually annotated
A28: dn | B28: de novo
A29: GR | B29: gustatory receptor
A30: IR | B30: ionotropic receptor
A31: OR | B31: odorant receptor
